{"text_format":"1","workbook":"xlsx","n_sheets":37,"sheets":["Instructions","TablesOverview","ProjectOverview","Overview","FieldSites","Persons","Citations","Treatments","ExperUnits","MapPhotos","Methods","WeatherStation","WeatherDaily","MgtAmendments","MgtPlanting","MgtTillage","MgtGrowthStages","MgtResidue","MgtGrazing","MeasSoilPhys","MeasSoilChem","MeasSoilBiol","MeasSoilCover","MeasGHGFlux","MeasHarvestRemoval","MeasPlantFraction","MeasBiomassCHO","MeasBiomassEnergy","MeasBiomassMinAn","MeasGrazingPlants","MeasSuppRes","AllCellComments","DropDownLists","ValueDomains","ValidationData","DET_Import","AutoCorrect"],"not_rendered":{"charts":0,"images":2,"macros":1,"external_links":0,"defined_names":68,"comments":1,"pivot_tables":0},"unopened":[],"bounds":{"document_bytes":16777216,"sheet_cells":100000,"rows_first":2000,"rows_last":500,"rows_between":2000,"halvings":0,"cell_chars":16384,"cell_head_chars":4096},"cells_cut":0,"cells_raw":0,"read":"whole","date_system":"1900"}

{"sheet":"Instructions","index":0,"n_rows":77,"n_cols":14,"rows_kept":77,"cut":false,"hidden":false,"merged":[[74,1,74,6],[72,1,72,5],[10,1,10,10],[20,1,20,10],[70,1,70,10],[21,1,21,10],[23,1,23,10],[63,1,63,10],[67,1,67,10],[69,1,69,10],[6,1,6,9],[12,1,12,10],[4,1,4,10],[5,1,5,10],[7,1,7,10],[8,1,8,10],[9,1,9,10]]}
["Welcome to GRACEnet"]
["     Greenhouse gas Reduction Through Agricultural Carbon Enhancement Network"]
[null,null,null,"and REAP!"]
[null,null,null,"Renewable Energy Assessment Project",null,null,null,null,null,null,null,null," "]
[null,"   Worksheets with yellow tabs are for information relevent to the set-up of the experiment."]
[]
[null,"  Red tabs indicate site characterization worksheets."]
[]
[null,"  Brown tabs indicate management worksheets."]
[]
[null,"  Black tabs indicate measurement worksheets where experimental unit data are reported."]
[]
[null,"  Purple tabs offer information that may be useful to the user.  This includes drop down lists of treatment specific information and ranges of expected values."]
[]
[null,"General Instructions (PLEASE READ):"]
[null,"Use a separate file for each experiment."]
[null,"Begin by filling Treatments and ExperUnits tabs. If you have ANY questions, please contact your data contact."]
[null,"Click on column headings for additional instructions and clarifications.  Some instructions are also included above column headings to facilitate viewing."]
[null,"Please enter ALL data in SI units."]
[null,"For missing values, cells can either be left blank or can be populated with 'null'.  Do NOT fill blanks with periods."]
[null,"Some columns have drop down menus.  If your option is not available it can be added to the bottom of a list by locating the appropriate column heading on the DropDownLists page."]
[null,"The ExperUnits tab defines the spatial hierarchy of blocks, plots, subplots, etc. SiteID will be added to your Experimental Units; you do not need to include it in your description."]
[null,"Please paste a map of your experimental unit hierarchy and photos (if available) in the MapPhotos tab."]
[null,"On sheets where the first 3 columns are Exp_UnitID, Date, and TreatmentID (e.g. management tables) the date must always be filled in (mm/dd/yyyy) and Exp_UnitID and/or a TreatmentID must be entered. "]
[null,"If you report Means for measurements, please also provide the Standard Deviations. Columns for STD can be found at the far right of the Measurement tabs."]
[null,"Data submitted will be shared among the GRACEnet or REAP community and will eventually be made available to other registered users."]
[]
[null,"Data Validation Check"]
[null,"When finished entering data please click the button below to run a quick range check on the data."]
[null,"If errors are indicated but the data are in fact correct please make a note on the comments page."]
[null,"If you wish to adjust the ranges to reduce the marked errors please go to the \"ValidationData\" sheet, update the desired range there, then make a note in the "]
[null,"comments page that you did so."]
[]
[]
[null,null,"Table","Rows","Validation",null,null,null,null,null,null,null,null," "]
[null,null,"Overview",{"$f":"ValidationData!G1","v":0},"-"]
[null,null,"FieldSites",{"$f":"ValidationData!O1","v":0},"-"]
[null,null,"Persons",{"$f":"ValidationData!W1","v":0},"-"]
[null,null,"Citations",{"$f":"ValidationData!AE1","v":0},"-"]
[null,null,"Treatments",{"$f":"ValidationData!AM1","v":0},"-"]
[null,null,"ExperUnits",{"$f":"ValidationData!AU1","v":0},"-"]
[null,null,"WeatherStation",{"$f":"ValidationData!BC1","v":0},"-"]
[null,null,"WeatherDaily",{"$f":"ValidationData!BK1","v":0},"-"]
[null,null,"MgtAmendments",{"$f":"ValidationData!BS1","v":0},"-"]
[null,null,"MgtPlanting",{"$f":"ValidationData!CA1","v":0},"-"]
[null,null,"MgtTillage",{"$f":"ValidationData!CI1","v":0},"-"]
[null,null,"MgtGrowthStages",{"$f":"ValidationData!CQ1","v":0},"-"]
[null,null,"MgtResidue",{"$f":"ValidationData!CY1","v":0},"-"]
[null,null,"MgtGrazing",{"$f":"ValidationData!DG1","v":0},"-"]
[null,null,"MeasSoilPhys",{"$f":"ValidationData!DO1","v":0},"-"]
[null,null,"MeasSoilChem",{"$f":"ValidationData!DW1","v":0},"-"]
[null,null,"MeasSoilBiol",{"$f":"ValidationData!EE1","v":0},"-"]
[null,null,"MeasSoilCover",{"$f":"ValidationData!EM1","v":0},"-"]
[null,null,"MeasGHGFlux",{"$f":"ValidationData!EU1","v":0},"-"]
[null,null,"MeasHarvestRemoval",{"$f":"ValidationData!FC1","v":0},"-"]
[null,null,"MeasPlantFraction",{"$f":"ValidationData!FK1","v":0},"-"]
[null,null,"MeasBiomassCHO",{"$f":"ValidationData!FS1","v":0},"-"]
[null,null,"MeasBiomassEnergy",{"$f":"ValidationData!GA1","v":0},"-"]
[null,null,"MeasBiomassMinAn",{"$f":"ValidationData!GI1","v":0},"-"]
[null,null,"MeasGrazingPlants",{"$f":"ValidationData!GQ1","v":0},"-"]
[null,null,"MeasSuppRes",{"$f":"ValidationData!GY1","v":0},"-"]
[]
[]
[null,"Additional information regarding the GRACEnet project, including a link to download this workbook, can be found at: www.ars.usda.gov/research/GRACEnet"]
[]
[null,"For more information about GRACEnet protocols, please see:"]
[null,"Ronald Follett. 2010. Sampling Protocols. Introduction. In Sampling Protocols. R.F. Follett, editor. p. I-1 to I-4. "]
[null,"Mark Liebig, Gary Varvel, and Wayne Honeycutt. 2010. Sampling Protocols. Chapter 1. Guidelines for Site Description and Soil Sampling, Processing, Analysis, and Archiving. IN Sampling Protocols. R.F. Follett, editor. p. 1-1 to 1-5. "]
[null,"Jane M-F Johnson and Jack Morgan. 2010. Sampling Protocols. Chapter 2. Plant Sampling Guidelines. IN Sampling Protocols. R.F. Follett, editor. p. 2-1 to 2-10. "]
[null,"Parkin, T.B. and Venterea, R.T. 2010. Sampling Protocols. Chapter 3. Chamber-Based Trace Gas Flux Measurements. IN Sampling Protocols. R.F. Follett, editor. p. 3-1 to 3-39."]
[null,"John Baker and Bruce Kimball. 2010. Sampling Protocols. Chapter 4. Micrometeorological Measurements. IN Sampling Protocols. R.F. Follett, editor. p. 4-1 to 4-10. "]
[]
[null,"All protocols are available at: www.ars.usda.gov/research/GRACEnet"]
[]
[null,"To look up 3 character ISO Country Codes please refer to http://countrycode.org"]
[]
[null,"v2014.01.0009    (08/13/2014)"]

{"sheet":"TablesOverview","index":1,"n_rows":40,"n_cols":3,"rows_kept":40,"cut":false,"hidden":false,"merged":[]}
["This is an overview of the page names and what is in each page. "]
["If you want a complete listing of the variables in each page, see the ValueDomains page. "]
["Search on the \"Information in…\" column to find where specific data might be found, recorded."]
[]
["Page Names","Information in this page is:","type of information"]
["Instructions",null,"instruction"]
["TablesOverview",null,"instruction"]
["ProjectOverview","Description of research project (s) for gathering data","background"]
["Overview","About your experiment","background"]
["FieldSites","Physical locations of experiment","background"]
["Persons","People doing the research","background"]
["Citations","Publications about this research","background"]
["Treatments","Research treatments","background"]
["ExperUnits","Experimental units or plot identification","background"]
["MapPhotos","Map and photos of experimental layout","background"]
["Methods","Methods used","background"]
["WeatherStation","Where your weather station is located","characterization"]
["WeatherDaily","Weather data from your site","characterization"]
["MgtAmendments","Amendments that you added, fertilizer, pesticides, irrigation","management"]
["MgtPlanting","How you planted","management"]
["MgtTillage","How you tilled","management"]
["MgtGrowthStages","The stage of plant development at time of observation","management"]
["MgtResidue","How you removed residue from the experiment","management"]
["MgtGrazing","Grazing information","management"]
["MeasSoilPhys","Physical soil measurements","data"]
["MeasSoilChem","Chemical soil measurements","data"]
["MeasSoilBiol","Biological soil measurements","data"]
["MeasSoilCover","Percentage of soil covered with plant residue","data"]
["MeasGHGFlux","Greenhouse gas flux--nitrous oxide, carbon dioxide and methane emission or consumption","data"]
["MeasHarvestRemoval","What was harvested and what remained on the field","data"]
["MeasPlantFraction","Mass, C and N of harvested plant fractions","data"]
["MeasBiomassCHO","Biomass carbohydrates","data"]
["MeasBiomassEnergy","Energy from biomass, calorific value","data"]
["MeasBiomassMinAn","Mineral analysis of the biomass","data"]
["MeasGrazingPlants","Grazing plants biomass","data"]
["MeasSuppRes","Supporting research--things you can not find a place for, but think other would want to see","data"]
["AllCellComments","Comments that people looking at your data might want to read. ","comments"]
["DropDownLists","Lists for names which allow you to use drop downs","bookkeeping"]
["ValueDomains","A listing of all the variables on all the pages","bookkeeping"]
["ValidationData","Quality assurance page; used by macros to check high and low values","bookkeeping"]

{"sheet":"ProjectOverview","index":2,"n_rows":1,"n_cols":1,"rows_kept":1,"cut":false,"hidden":false,"merged":[]}
["Please enter a project summary in .html format."]

{"sheet":"Overview","index":3,"n_rows":8,"n_cols":7,"rows_kept":8,"cut":false,"hidden":false,"merged":[]}
[]
["Enter a 2 digit state, 2 digit city/town code with up to 4 additional characters for unique experimental ID with no spaces or special characters.  E.g., MNMOBRR1 representing Minnesota, Morris, Field BRR1.","Describe your site.","Drop down."]
[]
[]
["Experiment Details"]
[null,null,null,null,null,"mm/dd/yyyy","mm/dd/yyyy"]
[null,null,{"$f":"HYPERLINK(\"#DropDownLists!Y6\",\"Add to this list\")","v":"Add to this list"},{"$f":"HYPERLINK(\"#DropDownLists!V6\",\"Add to this list\")","v":"Add to this list"}]
["SiteID","SiteID_descriptor","Research_Unit","Project_Name","Experiment_Display_Name","Date_experiment_began","Date_experiment_ended"]

{"sheet":"FieldSites","index":4,"n_rows":8,"n_cols":13,"rows_kept":8,"cut":false,"hidden":false,"merged":[]}
[]
[null,"Major Land Resource Area","To look up 3 character ISO Country Codes please refer to http://countrycode.org ",null,null,null,"Enter in decimal format,  negative in North America. Please specify out to 6 decimal places.",null,null,"Mean Annual Precipitation","Mean Annual Temperature"]
[]
[]
["Field Location Data"]
[null,null,null,null,null,null,"decimal","decimal","meters","mm","oC"]
[null,null,null,null,"Study Site Location"]
["FieldID","MLRA","Country","State/Province","County","City","Latitude","Longitude","Elevation","MAP","MAT","Native_Vegetation","Site_History"]

{"sheet":"Persons","index":5,"n_rows":8,"n_cols":15,"rows_kept":8,"cut":false,"hidden":false,"merged":[]}
[]
[]
[]
[]
["Enter Information "]
[null,null,null,null,null,null,null,null,null,"mm/dd/yyyy",null,null,"xxx-xxx-xxxx"]
[]
["SiteID","Last_name","First_name","Middle_name","Suffix","Role_in_study","Primary_contact","Department_institute","Organization","Date_created","Profession","Person_e_mail","Telephone","Person_web_site","Person_note"]

{"sheet":"Citations","index":6,"n_rows":8,"n_cols":10,"rows_kept":8,"cut":false,"hidden":false,"merged":[[3,0,5,0],[4,9,5,9],[3,3,5,3],[1,4,5,4],[2,8,5,8],[2,5,5,5],[2,6,5,6],[3,7,5,7],[1,1,3,1],[2,2,4,2]]}
["Enter Information on Relevant Citations"]
[null,"If you only know year of publication, enter 1/1/yyyy.",null,null,"If Book Chapter enter title of book. Otherwise, leave blank."]
[null,null,"Type of reference, journal article, book chapter, etc. pick from drop down.",null,null,"Usually this would be the first author's name, but this could be an organization.","Corresponding author, you may want to add email or phone number",null,"A description you think the user would find helpful."]
["Same as previous pages.",null,null,"Title of reference.",null,null,null,"Permanent identifier like DOI, Handle, PURL, etc."]
[null,null,null,null,null,null,null,null,null,"Please enter the full citation."]
[null,"Publication date."]
[null,"mm/dd/yyyy",{"$f":"HYPERLINK(\"#DropDownLists!X6\",\"Add to this list\")","v":"Add to this list"}]
["SiteID","Date_Published","Reference_type","Title","Is_Part_Of","Author_Creator","Corresponding_Author","Identifier","Description","Full_citation"]

{"sheet":"Treatments","index":7,"n_rows":8,"n_cols":13,"rows_kept":8,"cut":false,"hidden":false,"merged":[[2,6,6,6]]}
["Provide Detailed Description of Management Treatments Here"]
["The TreatmentID must be a unique string of up to 5 characters without spaces or special characters.  The system will add the SiteID to this string to make it unique across all locations.",null,"Treatment Descriptor should describe the treatment without abbreviations, so anyone could understand what the treatment is.","Drop down.","Drop down. You may add to this list using the purple \"DropDownLists\" tab.","Describe your nitrogen treatment.","Define the aim of GRACEnet or REAP","Drop down. You may add to this list using the purple \"DropDownLists\" tab.","Drop down.","Drop down; yes, no, partial. Will be described more fully in MgtResidue.","Drop down; yes, no.","Drop down; yes, no.","Drop down; low, medium, high, none."]
[null,null,null,"Comma indicates a year",null,null,"If you consider your work part of GRACEnet, please enter the number of the GRACEnet scenario. If you consider you work part of REAP, please enter the letter that describes your removal scheme."]
[null,null,null,"Forward slash indicates multiple crops in one year"]
[]
[]
[null,"mm/dd/yyyy",null,{"$f":"HYPERLINK(\"#DropDownLists!L6\",\"Add to this list\")","v":"Add to this list"},{"$f":"HYPERLINK(\"#DropDownLists!AC6\",\"Add to this list\")","v":"Add to this list"},null,null,{"$f":"HYPERLINK(\"#DropDownLists!M6\",\"Add to this list\")","v":"Add to this list"},{"$f":"HYPERLINK(\"#DropDownLists!J6\",\"Add to this list\")","v":"Add to this list"},{"$f":"HYPERLINK(\"#DropDownLists!Z6\",\"Add to this list\")","v":"Add to this list"},null,null,{"$f":"HYPERLINK(\"#DropDownLists!N6\",\"Add to this list\")","v":"Add to this list"}]
["TreatmentID","Start_Date","Detailed_Tx_Descriptor","Crop_Rotation_Descriptor","Tillage_Descriptor","Nitrogen_Treatment_Descriptor","Project_Scenario","Fertilizer_Amendment_Class","Cover_Crop","Residue_Removal","Irrigation","Organic_Management","Grazing_Rate"]

{"sheet":"ExperUnits","index":8,"n_rows":464,"n_cols":23,"rows_kept":464,"cut":false,"hidden":false,"merged":[]}
["Provide Detailed Description of Spatial Hierarchy of Experimental Units"]
[]
["Enter block identifier--a string of up to 9 characters without spaces or special characters.   Note: the SiteID from the Locations table will be added by the system.","Specify the spatial scale for column A (e.g., block, plot, subplot, rep).","Enter plot identifier--a string of up to 9 characters without spaces or special characters.   ","Specify the spatial scale for column C (e.g., block, plot, subplot, rep).","Can be used as subplot identifier to Exp Unit2--a string of up to 9 characters without spaces or special characters.   ","Specify the spatial scale for column E (e.g., block, plot, subplot, rep).","Can be used as subplot identifier to Exp Unit3--a string of up to 9 characters without spaces or special characters.   ","Specify the spatial scale for column G (e.g., block, plot, subplot, rep).","Can be used as subplot identifier to Exp Unit34--a string of up to 9 characters without spaces or special characters.   ","Specify the spatial scale for column I (e.g., block, plot, subplot, rep).","Do not fill this column, automatically generated","Drop down, consistent with Treatments page",null,null,null,null,null,null,null,"Latitude and longitude of northwest corner of plots, in decimal degrees"]
[]
[]
[null,null,null,null,null,null,null,null,null,null,null,null,null,"mm/dd/yyyy","mm/dd/yyyy",null,"http://www.nrcs.usda.gov/wps/portal/nrcs/detail/soils/survey/class/?cid=nrcs142p2_053583",null,null,null,null,"percent","m2 "]
[null,null,null,null,null,null,null,null,null,null,null,null,null,null,null,null,null,null,{"$f":"HYPERLINK(\"#DropDownLists!R6\",\"Add to this list\")","v":"Add to this list"},null,null,{"$f":"HYPERLINK(\"#DropDownLists!A6\",\"Add to this list\")","v":"Add to this list"}]
["Exp_Unit1","Exp_Unit1_Descriptor","Exp_Unit2","Exp_Unit2_Descriptor","Exp_Unit3","Exp_Unit3_Descriptor","Exp_Unit4","Exp_Unit4_Descriptor","Exp_Unit5","Exp_Unit5_Descriptor","Exp_UnitID","TreatmentID","FieldID","Start_Date","End_Date","Change_in_Management","Soil_Series","Soil_Classification","Landscape_Position","Latitude","Longitude","Slope","Exp_Unit_Size"]
[null,null,null,null,null,null,null,null,null,null,{"$f":"A9&C9&E9&G9&I9","v":""}]
[null,null,null,null,null,null,null,null,null,null,{"$f":"A10&C10&E10&G10&I10","v":""}]
[null,null,null,null,null,null,null,null,null,null,""]
[null,null,null,null,null,null,null,null,null,null,""]
[null,null,null,null,null,null,null,null,null,null,""]
[null,null,null,null,null,null,null,null,null,null,""]
[null,null,null,null,null,null,null,null,null,null,""]
[null,null,null,null,null,null,null,null,null,null,""]
[null,null,null,null,null,null,null,null,null,null,""]
[null,null,null,null,null,null,null,null,null,null,""]
[null,null,null,null,null,null,null,null,null,null,""]
[null,null,null,null,null,null,null,null,null,null,""]
[null,null,null,null,null,null,null,null,null,null,""]
[null,null,null,null,null,null,null,null,null,null,""]
[null,null,null,null,null,null,null,null,null,null,""]
[null,null,null,null,null,null,null,null,null,null,""]
[null,null,null,null,null,null,null,null,null,null,""]
[null,null,null,null,null,null,null,null,null,null,""]
[null,null,null,null,null,null,null,null,null,null,""]
[null,null,null,null,null,null,null,null,null,null,""]
[null,null,null,null,null,null,null,null,null,null,""]
[null,null,null,null,null,null,null,null,null,null,""]
[null,null,null,null,null,null,null,null,null,null,""]
[null,null,null,null,null,null,null,null,null,null,""]
[null,null,null,null,null,null,null,null,null,null,""]
[null,null,null,null,null,null,null,null,null,null,""]
[null,null,null,null,null,null,null,null,null,null,""]
[null,null,null,null,null,null,null,null,null,null,""]
[null,null,null,null,null,null,null,null,null,null,""]
[null,null,null,null,null,null,null,null,null,null,""]
[null,null,null,null,null,null,null,null,null,null,""]
[null,null,null,null,null,null,null,null,null,null,""]
[null,null,null,null,null,null,null,null,null,null,""]
[null,null,null,null,null,null,null,null,null,null,""]
[null,null,null,null,null,null,null,null,null,null,""]
[null,null,null,null,null,null,null,null,null,null,""]
[null,null,null,null,null,null,null,null,null,null,""]
[null,null,null,null,null,null,null,null,null,null,""]
[null,null,null,null,null,null,null,null,null,null,""]
[null,null,null,null,null,null,null,null,null,null,""]
[null,null,null,null,null,null,null,null,null,null,""]
[null,null,null,null,null,null,null,null,null,null,""]
[null,null,null,null,null,null,null,null,null,null,""]
[null,null,null,null,null,null,null,null,null,null,""]
[null,null,null,null,null,null,null,null,null,null,""]
[null,null,null,null,null,null,null,null,null,null,""]
[null,null,null,null,null,null,null,null,null,null,""]
[null,null,null,null,null,null,null,null,null,null,""]
[null,null,null,null,null,null,null,null,null,null,""]
[null,null,null,null,null,null,null,null,null,null,""]
[null,null,null,null,null,null,null,null,null,null,""]
[null,null,null,null,null,null,null,null,null,null,""]
[null,null,null,null,null,null,null,null,null,null,""]
[null,null,null,null,null,null,null,null,null,null,""]
[null,null,null,null,null,null,null,null,null,null,""]
[null,null,null,null,null,null,null,null,null,null,""]
[null,null,null,null,null,null,null,null,null,null,""]
[null,null,null,null,null,null,null,null,null,null,""]
[null,null,null,null,null,null,null,null,null,null,""]
[null,null,null,null,null,null,null,null,null,null,""]
[null,null,null,null,null,null,null,null,null,null,""]
[null,null,null,null,null,null,null,null,null,null,""]
[null,null,null,null,null,null,null,null,null,null,""]
[null,null,null,null,null,null,null,null,null,null,""]
[null,null,null,null,null,null,null,null,null,null,""]
[null,null,null,null,null,null,null,null,null,null,{"$f":"A74&C74&E74&G74&I74","v":""}]
[null,null,null,null,null,null,null,null,null,null,""]
[null,null,null,null,null,null,null,null,null,null,""]
[null,null,null,null,null,null,null,null,null,null,""]
[null,null,null,null,null,null,null,null,null,null,""]
[null,null,null,null,null,null,null,null,null,null,""]
[null,null,null,null,null,null,null,null,null,null,""]
[null,null,null,null,null,null,null,null,null,null,""]
[null,null,null,null,null,null,null,null,null,null,""]
[null,null,null,null,null,null,null,null,null,null,""]
[null,null,null,null,null,null,null,null,null,null,""]
[null,null,null,null,null,null,null,null,null,null,""]
[null,null,null,null,null,null,null,null,null,null,""]
[null,null,null,null,null,null,null,null,null,null,""]
[null,null,null,null,null,null,null,null,null,null,""]
[null,null,null,null,null,null,null,null,null,null,""]
[null,null,null,null,null,null,null,null,null,null,""]
[null,null,null,null,null,null,null,null,null,null,""]
[null,null,null,null,null,null,null,null,null,null,""]
[null,null,null,null,null,null,null,null,null,null,""]
[null,null,null,null,null,null,null,null,null,null,""]
[null,null,null,null,null,null,null,null,null,null,""]
[null,null,null,null,null,null,null,null,null,null,""]
[null,null,null,null,null,null,null,null,null,null,""]
[null,null,null,null,null,null,null,null,null,null,""]
[null,null,null,null,null,null,null,null,null,null,""]
[null,null,null,null,null,null,null,null,null,null,""]
[null,null,null,null,null,null,null,null,null,null,""]
[null,null,null,null,null,null,null,null,null,null,""]
[null,null,null,null,null,null,null,null,null,null,""]
[null,null,null,null,null,null,null,null,null,null,""]
[null,null,null,null,null,null,null,null,null,null,""]
[null,null,null,null,null,null,null,null,null,null,""]
[null,null,null,null,null,null,null,null,null,null,""]
[null,null,null,null,null,null,null,null,null,null,""]
[null,null,null,null,null,null,null,null,null,null,""]
[null,null,null,null,null,null,null,null,null,null,""]
[null,null,null,null,null,null,null,null,null,null,""]
[null,null,null,null,null,null,null,null,null,null,""]
[null,null,null,null,null,null,null,null,null,null,""]
[null,null,null,null,null,null,null,null,null,null,""]
[null,null,null,null,null,null,null,null,null,null,""]
[null,null,null,null,null,null,null,null,null,null,""]
[null,null,null,null,null,null,null,null,null,null,""]
[null,null,null,null,null,null,null,null,null,null,""]
[null,null,null,null,null,null,null,null,null,null,""]
[null,null,null,null,null,null,null,null,null,null,""]
[null,null,null,null,null,null,null,null,null,null,""]
[null,null,null,null,null,null,null,null,null,null,""]
[null,null,null,null,null,null,null,null,null,null,""]
[null,null,null,null,null,null,null,null,null,null,""]
[null,null,null,null,null,null,null,null,null,null,""]
[null,null,null,null,null,null,null,null,null,null,""]
[null,null,null,null,null,null,null,null,null,null,""]
[null,null,null,null,null,null,null,null,null,null,""]
[null,null,null,null,null,null,null,null,null,null,""]
[null,null,null,null,null,null,null,null,null,null,""]
[null,null,null,null,null,null,null,null,null,null,""]
[null,null,null,null,null,null,null,null,null,null,""]
[null,null,null,null,null,null,null,null,null,null,""]
[null,null,null,null,null,null,null,null,null,null,""]
[null,null,null,null,null,null,null,null,null,null,""]
[null,null,null,null,null,null,null,null,null,null,""]
[null,null,null,null,null,null,null,null,null,null,""]
[null,null,null,null,null,null,null,null,null,null,{"$f":"A138&C138&E138&G138&I138","v":""}]
[null,null,null,null,null,null,null,null,null,null,""]
[null,null,null,null,null,null,null,null,null,null,""]
[null,null,null,null,null,null,null,null,null,null,""]
[null,null,null,null,null,null,null,null,null,null,""]
[null,null,null,null,null,null,null,null,null,null,""]
[null,null,null,null,null,null,null,null,null,null,""]
[null,null,null,null,null,null,null,null,null,null,""]
[null,null,null,null,null,null,null,null,null,null,""]
[null,null,null,null,null,null,null,null,null,null,""]
[null,null,null,null,null,null,null,null,null,null,""]
[null,null,null,null,null,null,null,null,null,null,""]
[null,null,null,null,null,null,null,null,null,null,""]
[null,null,null,null,null,null,null,null,null,null,""]
[null,null,null,null,null,null,null,null,null,null,""]
[null,null,null,null,null,null,null,null,null,null,""]
[null,null,null,null,null,null,null,null,null,null,""]
[null,null,null,null,null,null,null,null,null,null,""]
[null,null,null,null,null,null,null,null,null,null,""]
[null,null,null,null,null,null,null,null,null,null,""]
[null,null,null,null,null,null,null,null,null,null,""]
[null,null,null,null,null,null,null,null,null,null,""]
[null,null,null,null,null,null,null,null,null,null,""]
[null,null,null,null,null,null,null,null,null,null,""]
[null,null,null,null,null,null,null,null,null,null,""]
[null,null,null,null,null,null,null,null,null,null,""]
[null,null,null,null,null,null,null,null,null,null,""]
[null,null,null,null,null,null,null,null,null,null,""]
[null,null,null,null,null,null,null,null,null,null,""]
[null,null,null,null,null,null,null,null,null,null,""]
[null,null,null,null,null,null,null,null,null,null,""]
[null,null,null,null,null,null,null,null,null,null,""]
[null,null,null,null,null,null,null,null,null,null,""]
[null,null,null,null,null,null,null,null,null,null,""]
[null,null,null,null,null,null,null,null,null,null,""]
[null,null,null,null,null,null,null,null,null,null,""]
[null,null,null,null,null,null,null,null,null,null,""]
[null,null,null,null,null,null,null,null,null,null,""]
[null,null,null,null,null,null,null,null,null,null,""]
[null,null,null,null,null,null,null,null,null,null,""]
[null,null,null,null,null,null,null,null,null,null,""]
[null,null,null,null,null,null,null,null,null,null,""]
[null,null,null,null,null,null,null,null,null,null,""]
[null,null,null,null,null,null,null,null,null,null,""]
[null,null,null,null,null,null,null,null,null,null,""]
[null,null,null,null,null,null,null,null,null,null,""]
[null,null,null,null,null,null,null,null,null,null,""]
[null,null,null,null,null,null,null,null,null,null,""]
[null,null,null,null,null,null,null,null,null,null,""]
[null,null,null,null,null,null,null,null,null,null,""]
[null,null,null,null,null,null,null,null,null,null,""]
[null,null,null,null,null,null,null,null,null,null,""]
[null,null,null,null,null,null,null,null,null,null,""]
[null,null,null,null,null,null,null,null,null,null,""]
[null,null,null,null,null,null,null,null,null,null,""]
[null,null,null,null,null,null,null,null,null,null,""]
[null,null,null,null,null,null,null,null,null,null,""]
[null,null,null,null,null,null,null,null,null,null,""]
[null,null,null,null,null,null,null,null,null,null,""]
[null,null,null,null,null,null,null,null,null,null,""]
[null,null,null,null,null,null,null,null,null,null,""]
[null,null,null,null,null,null,null,null,null,null,""]
[null,null,null,null,null,null,null,null,null,null,""]
[null,null,null,null,null,null,null,null,null,null,""]
[null,null,null,null,null,null,null,null,null,null,{"$f":"A202&C202&E202&G202&I202","v":""}]
[null,null,null,null,null,null,null,null,null,null,""]
[null,null,null,null,null,null,null,null,null,null,""]
[null,null,null,null,null,null,null,null,null,null,""]
[null,null,null,null,null,null,null,null,null,null,""]
[null,null,null,null,null,null,null,null,null,null,""]
[null,null,null,null,null,null,null,null,null,null,""]
[null,null,null,null,null,null,null,null,null,null,""]
[null,null,null,null,null,null,null,null,null,null,""]
[null,null,null,null,null,null,null,null,null,null,""]
[null,null,null,null,null,null,null,null,null,null,""]
[null,null,null,null,null,null,null,null,null,null,""]
[null,null,null,null,null,null,null,null,null,null,""]
[null,null,null,null,null,null,null,null,null,null,""]
[null,null,null,null,null,null,null,null,null,null,""]
[null,null,null,null,null,null,null,null,null,null,""]
[null,null,null,null,null,null,null,null,null,null,""]
[null,null,null,null,null,null,null,null,null,null,""]
[null,null,null,null,null,null,null,null,null,null,""]
[null,null,null,null,null,null,null,null,null,null,""]
[null,null,null,null,null,null,null,null,null,null,""]
[null,null,null,null,null,null,null,null,null,null,""]
[null,null,null,null,null,null,null,null,null,null,""]
[null,null,null,null,null,null,null,null,null,null,""]
[null,null,null,null,null,null,null,null,null,null,""]
[null,null,null,null,null,null,null,null,null,null,""]
[null,null,null,null,null,null,null,null,null,null,""]
[null,null,null,null,null,null,null,null,null,null,""]
[null,null,null,null,null,null,null,null,null,null,""]
[null,null,null,null,null,null,null,null,null,null,""]
[null,null,null,null,null,null,null,null,null,null,""]
[null,null,null,null,null,null,null,null,null,null,""]
[null,null,null,null,null,null,null,null,null,null,""]
[null,null,null,null,null,null,null,null,null,null,""]
[null,null,null,null,null,null,null,null,null,null,""]
[null,null,null,null,null,null,null,null,null,null,""]
[null,null,null,null,null,null,null,null,null,null,""]
[null,null,null,null,null,null,null,null,null,null,""]
[null,null,null,null,null,null,null,null,null,null,""]
[null,null,null,null,null,null,null,null,null,null,""]
[null,null,null,null,null,null,null,null,null,null,""]
[null,null,null,null,null,null,null,null,null,null,""]
[null,null,null,null,null,null,null,null,null,null,""]
[null,null,null,null,null,null,null,null,null,null,""]
[null,null,null,null,null,null,null,null,null,null,""]
[null,null,null,null,null,null,null,null,null,null,""]
[null,null,null,null,null,null,null,null,null,null,""]
[null,null,null,null,null,null,null,null,null,null,""]
[null,null,null,null,null,null,null,null,null,null,""]
[null,null,null,null,null,null,null,null,null,null,""]
[null,null,null,null,null,null,null,null,null,null,""]
[null,null,null,null,null,null,null,null,null,null,""]
[null,null,null,null,null,null,null,null,null,null,""]
[null,null,null,null,null,null,null,null,null,null,""]
[null,null,null,null,null,null,null,null,null,null,""]
[null,null,null,null,null,null,null,null,null,null,""]
[null,null,null,null,null,null,null,null,null,null,""]
[null,null,null,null,null,null,null,null,null,null,""]
[null,null,null,null,null,null,null,null,null,null,""]
[null,null,null,null,null,null,null,null,null,null,""]
[null,null,null,null,null,null,null,null,null,null,""]
[null,null,null,null,null,null,null,null,null,null,""]
[null,null,null,null,null,null,null,null,null,null,""]
[null,null,null,null,null,null,null,null,null,null,""]
[null,null,null,null,null,null,null,null,null,null,{"$f":"A266&C266&E266&G266&I266","v":""}]
[null,null,null,null,null,null,null,null,null,null,""]
[null,null,null,null,null,null,null,null,null,null,""]
[null,null,null,null,null,null,null,null,null,null,""]
[null,null,null,null,null,null,null,null,null,null,""]
[null,null,null,null,null,null,null,null,null,null,""]
[null,null,null,null,null,null,null,null,null,null,""]
[null,null,null,null,null,null,null,null,null,null,""]
[null,null,null,null,null,null,null,null,null,null,""]
[null,null,null,null,null,null,null,null,null,null,""]
[null,null,null,null,null,null,null,null,null,null,""]
[null,null,null,null,null,null,null,null,null,null,""]
[null,null,null,null,null,null,null,null,null,null,""]
[null,null,null,null,null,null,null,null,null,null,""]
[null,null,null,null,null,null,null,null,null,null,""]
[null,null,null,null,null,null,null,null,null,null,""]
[null,null,null,null,null,null,null,null,null,null,""]
[null,null,null,null,null,null,null,null,null,null,""]
[null,null,null,null,null,null,null,null,null,null,""]
[null,null,null,null,null,null,null,null,null,null,""]
[null,null,null,null,null,null,null,null,null,null,""]
[null,null,null,null,null,null,null,null,null,null,""]
[null,null,null,null,null,null,null,null,null,null,""]
[null,null,null,null,null,null,null,null,null,null,""]
[null,null,null,null,null,null,null,null,null,null,""]
[null,null,null,null,null,null,null,null,null,null,""]
[null,null,null,null,null,null,null,null,null,null,""]
[null,null,null,null,null,null,null,null,null,null,""]
[null,null,null,null,null,null,null,null,null,null,""]
[null,null,null,null,null,null,null,null,null,null,""]
[null,null,null,null,null,null,null,null,null,null,""]
[null,null,null,null,null,null,null,null,null,null,""]
[null,null,null,null,null,null,null,null,null,null,""]
[null,null,null,null,null,null,null,null,null,null,""]
[null,null,null,null,null,null,null,null,null,null,""]
[null,null,null,null,null,null,null,null,null,null,""]
[null,null,null,null,null,null,null,null,null,null,""]
[null,null,null,null,null,null,null,null,null,null,""]
[null,null,null,null,null,null,null,null,null,null,""]
[null,null,null,null,null,null,null,null,null,null,""]
[null,null,null,null,null,null,null,null,null,null,""]
[null,null,null,null,null,null,null,null,null,null,""]
[null,null,null,null,null,null,null,null,null,null,""]
[null,null,null,null,null,null,null,null,null,null,""]
[null,null,null,null,null,null,null,null,null,null,""]
[null,null,null,null,null,null,null,null,null,null,""]
[null,null,null,null,null,null,null,null,null,null,""]
[null,null,null,null,null,null,null,null,null,null,""]
[null,null,null,null,null,null,null,null,null,null,""]
[null,null,null,null,null,null,null,null,null,null,""]
[null,null,null,null,null,null,null,null,null,null,""]
[null,null,null,null,null,null,null,null,null,null,""]
[null,null,null,null,null,null,null,null,null,null,""]
[null,null,null,null,null,null,null,null,null,null,""]
[null,null,null,null,null,null,null,null,null,null,""]
[null,null,null,null,null,null,null,null,null,null,""]
[null,null,null,null,null,null,null,null,null,null,""]
[null,null,null,null,null,null,null,null,null,null,""]
[null,null,null,null,null,null,null,null,null,null,""]
[null,null,null,null,null,null,null,null,null,null,""]
[null,null,null,null,null,null,null,null,null,null,""]
[null,null,null,null,null,null,null,null,null,null,""]
[null,null,null,null,null,null,null,null,null,null,""]
[null,null,null,null,null,null,null,null,null,null,""]
[null,null,null,null,null,null,null,null,null,null,{"$f":"A330&C330&E330&G330&I330","v":""}]
[null,null,null,null,null,null,null,null,null,null,""]
[null,null,null,null,null,null,null,null,null,null,""]
[null,null,null,null,null,null,null,null,null,null,""]
[null,null,null,null,null,null,null,null,null,null,""]
[null,null,null,null,null,null,null,null,null,null,""]
[null,null,null,null,null,null,null,null,null,null,""]
[null,null,null,null,null,null,null,null,null,null,""]
[null,null,null,null,null,null,null,null,null,null,""]
[null,null,null,null,null,null,null,null,null,null,""]
[null,null,null,null,null,null,null,null,null,null,""]
[null,null,null,null,null,null,null,null,null,null,""]
[null,null,null,null,null,null,null,null,null,null,""]
[null,null,null,null,null,null,null,null,null,null,""]
[null,null,null,null,null,null,null,null,null,null,""]
[null,null,null,null,null,null,null,null,null,null,""]
[null,null,null,null,null,null,null,null,null,null,""]
[null,null,null,null,null,null,null,null,null,null,""]
[null,null,null,null,null,null,null,null,null,null,""]
[null,null,null,null,null,null,null,null,null,null,""]
[null,null,null,null,null,null,null,null,null,null,""]
[null,null,null,null,null,null,null,null,null,null,""]
[null,null,null,null,null,null,null,null,null,null,""]
[null,null,null,null,null,null,null,null,null,null,""]
[null,null,null,null,null,null,null,null,null,null,""]
[null,null,null,null,null,null,null,null,null,null,""]
[null,null,null,null,null,null,null,null,null,null,""]
[null,null,null,null,null,null,null,null,null,null,""]
[null,null,null,null,null,null,null,null,null,null,""]
[null,null,null,null,null,null,null,null,null,null,""]
[null,null,null,null,null,null,null,null,null,null,""]
[null,null,null,null,null,null,null,null,null,null,""]
[null,null,null,null,null,null,null,null,null,null,""]
[null,null,null,null,null,null,null,null,null,null,""]
[null,null,null,null,null,null,null,null,null,null,""]
[null,null,null,null,null,null,null,null,null,null,""]
[null,null,null,null,null,null,null,null,null,null,""]
[null,null,null,null,null,null,null,null,null,null,""]
[null,null,null,null,null,null,null,null,null,null,""]
[null,null,null,null,null,null,null,null,null,null,""]
[null,null,null,null,null,null,null,null,null,null,""]
[null,null,null,null,null,null,null,null,null,null,""]
[null,null,null,null,null,null,null,null,null,null,""]
[null,null,null,null,null,null,null,null,null,null,""]
[null,null,null,null,null,null,null,null,null,null,""]
[null,null,null,null,null,null,null,null,null,null,""]
[null,null,null,null,null,null,null,null,null,null,""]
[null,null,null,null,null,null,null,null,null,null,""]
[null,null,null,null,null,null,null,null,null,null,""]
[null,null,null,null,null,null,null,null,null,null,""]
[null,null,null,null,null,null,null,null,null,null,""]
[null,null,null,null,null,null,null,null,null,null,""]
[null,null,null,null,null,null,null,null,null,null,""]
[null,null,null,null,null,null,null,null,null,null,""]
[null,null,null,null,null,null,null,null,null,null,""]
[null,null,null,null,null,null,null,null,null,null,""]
[null,null,null,null,null,null,null,null,null,null,""]
[null,null,null,null,null,null,null,null,null,null,""]
[null,null,null,null,null,null,null,null,null,null,""]
[null,null,null,null,null,null,null,null,null,null,""]
[null,null,null,null,null,null,null,null,null,null,""]
[null,null,null,null,null,null,null,null,null,null,""]
[null,null,null,null,null,null,null,null,null,null,""]
[null,null,null,null,null,null,null,null,null,null,""]
[null,null,null,null,null,null,null,null,null,null,{"$f":"A394&C394&E394&G394&I394","v":""}]
[null,null,null,null,null,null,null,null,null,null,""]
[null,null,null,null,null,null,null,null,null,null,""]
[null,null,null,null,null,null,null,null,null,null,""]
[null,null,null,null,null,null,null,null,null,null,""]
[null,null,null,null,null,null,null,null,null,null,""]
[null,null,null,null,null,null,null,null,null,null,""]
[null,null,null,null,null,null,null,null,null,null,""]
[null,null,null,null,null,null,null,null,null,null,""]
[null,null,null,null,null,null,null,null,null,null,""]
[null,null,null,null,null,null,null,null,null,null,""]
[null,null,null,null,null,null,null,null,null,null,""]
[null,null,null,null,null,null,null,null,null,null,""]
[null,null,null,null,null,null,null,null,null,null,""]
[null,null,null,null,null,null,null,null,null,null,""]
[null,null,null,null,null,null,null,null,null,null,""]
[null,null,null,null,null,null,null,null,null,null,""]
[null,null,null,null,null,null,null,null,null,null,""]
[null,null,null,null,null,null,null,null,null,null,""]
[null,null,null,null,null,null,null,null,null,null,""]
[null,null,null,null,null,null,null,null,null,null,""]
[null,null,null,null,null,null,null,null,null,null,""]
[null,null,null,null,null,null,null,null,null,null,""]
[null,null,null,null,null,null,null,null,null,null,""]
[null,null,null,null,null,null,null,null,null,null,""]
[null,null,null,null,null,null,null,null,null,null,""]
[null,null,null,null,null,null,null,null,null,null,""]
[null,null,null,null,null,null,null,null,null,null,""]
[null,null,null,null,null,null,null,null,null,null,""]
[null,null,null,null,null,null,null,null,null,null,""]
[null,null,null,null,null,null,null,null,null,null,""]
[null,null,null,null,null,null,null,null,null,null,""]
[null,null,null,null,null,null,null,null,null,null,""]
[null,null,null,null,null,null,null,null,null,null,""]
[null,null,null,null,null,null,null,null,null,null,""]
[null,null,null,null,null,null,null,null,null,null,""]
[null,null,null,null,null,null,null,null,null,null,""]
[null,null,null,null,null,null,null,null,null,null,""]
[null,null,null,null,null,null,null,null,null,null,""]
[null,null,null,null,null,null,null,null,null,null,""]
[null,null,null,null,null,null,null,null,null,null,""]
[null,null,null,null,null,null,null,null,null,null,""]
[null,null,null,null,null,null,null,null,null,null,""]
[null,null,null,null,null,null,null,null,null,null,""]
[null,null,null,null,null,null,null,null,null,null,""]
[null,null,null,null,null,null,null,null,null,null,""]
[null,null,null,null,null,null,null,null,null,null,""]
[null,null,null,null,null,null,null,null,null,null,""]
[null,null,null,null,null,null,null,null,null,null,""]
[null,null,null,null,null,null,null,null,null,null,""]
[null,null,null,null,null,null,null,null,null,null,""]
[null,null,null,null,null,null,null,null,null,null,""]
[null,null,null,null,null,null,null,null,null,null,""]
[null,null,null,null,null,null,null,null,null,null,""]
[null,null,null,null,null,null,null,null,null,null,""]
[null,null,null,null,null,null,null,null,null,null,""]
[null,null,null,null,null,null,null,null,null,null,""]
[null,null,null,null,null,null,null,null,null,null,""]
[null,null,null,null,null,null,null,null,null,null,""]
[null,null,null,null,null,null,null,null,null,null,""]
[null,null,null,null,null,null,null,null,null,null,""]
[null,null,null,null,null,null,null,null,null,null,""]
[null,null,null,null,null,null,null,null,null,null,""]
[null,null,null,null,null,null,null,null,null,null,""]
[null,null,null,null,null,null,null,null,null,null,{"$f":"A458&C458&E458&G458&I458","v":""}]
[null,null,null,null,null,null,null,null,null,null,""]
[null,null,null,null,null,null,null,null,null,null,""]
[null,null,null,null,null,null,null,null,null,null,""]
[null,null,null,null,null,null,null,null,null,null,""]
[null,null,null,null,null,null,null,null,null,null,""]
[null,null,null,null,null,null,null,null,null,null,""]

{"sheet":"MapPhotos","index":9,"n_rows":17,"n_cols":6,"rows_kept":17,"cut":false,"hidden":false,"merged":[]}
[null,"Please include plot diagram, Google Maps photo, and/or aerial photo of experimental units found in this workbook."]
[null,"Please identify where on image the experimental units defined in this workbook are found and make sure photos include scale designation."]
[null,"Enter decimal units out to 6 digits from North West corner of plot where experimental units are found."]
[null,"If your coordinates are in deg/min/sec, please convert to decimal degrees:",null,null,null,"http://transition.fcc.gov/mb/audio/bickel/DDDMMSS-decimal.html"]
[]
[null,"Latitude","Longitude"]
[]
[]
["Please enter coordinates from Mapquest "]
["http://www.mapquest.com/"]
["MapQuest's information is unambiguous whereas GPS coordinates depend on system, etc. "]
["Once at the MapQuest site:"]
["·         Navigate to the general area of your location by entering the local zip code into the SEARCH FOR box on the MapQuest page."]
["·         Zoom in until you see the field you want to identify."]
["·         Move the hand (cursor) over the North West corner of the field (upper left corner) and right click there.  A balloon will pop up."]
["·         Within the balloon highlight the coordinates (two numbers with 6 decimal places of accuracy) and copy them."]
["·    Ctl/Alt/Print screen, paste then crop photo."]

{"sheet":"Methods","index":10,"n_rows":3,"n_cols":1,"rows_kept":3,"cut":false,"hidden":false,"merged":[]}
["Please enter the methods you used for this work:"]
["We suggest you copy materials and methods from a publication."]
["You can use as many lines as you wish; the information will be stored as html."]

{"sheet":"WeatherStation","index":11,"n_rows":8,"n_cols":10,"rows_kept":8,"cut":false,"hidden":false,"merged":[[6,4,6,5],[6,6,6,7],[2,4,2,5]]}
["Characterization data:  Weather Station"]
[null,null,null,null,null,"Enter in decimal format, negative in North America.",null,null,"Enter direction of weather station to plots (e.g. NE)."]
[null,null,null,null,"Enter to 6 decimal places if possible"]
[]
["Enter Weather Site Data for Experiment"]
[null,null,"mm/dd/yyyy"]
[null,null,null,null,"decimal degrees",null,"meters"]
["SiteID","FieldID","Date","Wth_Station_ID","Weather_Lat","Weather_Long","Weather_Elev","Dist_from_field","Direction_from_field","Wth_Station_URL"]

{"sheet":"WeatherDaily","index":12,"n_rows":8,"n_cols":21,"rows_kept":8,"cut":false,"hidden":false,"merged":[[5,11,5,12],[2,18,2,19],[6,4,6,5],[2,13,2,14],[2,15,2,16],[4,8,4,14],[4,15,4,20],[5,4,5,5],[5,13,5,14],[5,16,5,17],[1,7,3,7]]}
["Characterization data: Daily Weather"]
[null,null,null,null,null,null,null,"If weather data for a day are suspect, enter -999. Otherwise leave blank."]
[]
[]
["Weather Data"]
[null,null,"mm/dd/yyyy",null,"Co",null,"mm/d",null,"%","Co","m/s","MJ/m2/d",null,"Temp Co",null,"Degrees from North","mm/d",null,"kg/ha/d","MJ/m2/d","mm/day"]
[null,null,null,null,"Air Temperature",null,"Water Inputs"]
["SiteID","FieldID","Weather_Date","Wth_StationID","TMax","TMin","Precip","Bad_Value_Flag","RH","Dew_point","Wind_speed","Solar_Radn_Veg","Solar_Radn_Bare","SoilTemp_5cm","SoilTemp_10cm","Wind_Direction","Open_Pan_Evaporation","Closed_Pan_Evaporation","Wet_Dry_N_Deposition","Total_Net_Radn","Snow"]

{"sheet":"MgtAmendments","index":13,"n_rows":8,"n_cols":19,"rows_kept":8,"cut":false,"hidden":false,"merged":[[5,0,7,0],[4,21,4,29],[5,12,6,12],[1,13,3,13],[2,14,3,14]]}
["Management data: Amendments"]
[null,null,null,null,null,null,null,null,"Weight of amendment. This should be greater than the sum of H through J.","Weight of nitrogen","Weight of phosphorus","Weight of potassium",null,"Enter active ingredient, not formulation name. i.e. glyphosate, not Roundup.","Target species for this application"]
[]
[]
["Experimental Unit and Treatment Information",null,null,null,null,"Amendment Information",null,null,null,null,"not as P2O5","not as K2O","Pesticide and Growth Control Information",null,null,null,"Irrigation Information"]
["Expands a single management line across treatments and fields.",null,"mm/dd/yyyy",null,null,null,"cm",null,"kg/ha","kg N/ha","kg P/ha","kg K/ha","active ingredient in kg/ha",null,"Compendium of pesticide common names",null,"cm","Irrigation Application","mg/L"]
[null,null,null,null,{"$f":"HYPERLINK(\"#DropDownLists!K6\",\"Add to this list\")","v":"Add to this list"},{"$f":"HYPERLINK(\"#DropDownLists!C6\",\"Add to this list\")","v":"Add to this list"},null,{"$f":"HYPERLINK(\"#DropDownLists!D6\",\"Add to this list\")","v":"Add to this list"},null,null,"P=P2O5*0.4364","K=K2O*0.8302",null,{"$f":"HYPERLINK(\"#DropDownLists!B8\",\"Add to this list\")","v":"Add to this list"},"Herbicide names and mixtures",null,null,{"$f":"HYPERLINK(\"#DropDownLists!Q6\",\"Add to this list\")","v":"Add to this list"}]
[null,"Exp_UnitID","Date","TreatmentID","Crop","Amend_Placement","Amend_Depth","Amend_Type","Total_Amend_Amount","Total_N_Amount","Total_P_Amount","Total_K_Amount","Total_Pest_Amount","Active_Ingredient_Type","Pest_Target","Pest_Placement","Irrigation_Amount","Irrigation_Type","Irrigation_N"]

{"sheet":"MgtPlanting","index":14,"n_rows":8,"n_cols":11,"rows_kept":8,"cut":false,"hidden":false,"merged":[[4,9,4,10],[5,0,7,0]]}
["Management data: Planting"]
[]
[]
[]
["Experimental Unit and Treatment Information"]
["Expands a single management line across treatments and fields.",null,"mm/dd/yyyy",null,null,null,"plants/ha","kg/ha",null,"cm","cm"]
[null,null,null,null,{"$f":"HYPERLINK(\"#DropDownLists!K6\",\"Add to this list\")","v":"Add to this list"},null,null,null,{"$f":"HYPERLINK(\"#DropDownLists!U6\",\"Add to this list\")","v":"Add to this list"}]
[null,"Exp_UnitID","Date","TreatmentID","Crop","Cultivar","Planting_Rate","Planting_Density","Planting_Method","Planting_Depth","Row_Width"]

{"sheet":"MgtTillage","index":15,"n_rows":8,"n_cols":8,"rows_kept":8,"cut":false,"hidden":false,"merged":[[5,0,7,0]]}
["Management data: Tillage"]
[null,null,null,null,null,"No-till is not tillage so should not be entered."]
[]
[]
["Operations Information"]
["Expands a single management line across treatments and fields.",null,"mm/dd/yyyy",null,null,null,"cm"]
[null,null,null,null,{"$f":"HYPERLINK(\"#DropDownLists!K6\",\"Add to this list\")","v":"Add to this list"},{"$f":"HYPERLINK(\"#DropDownLists!AD6\",\"Add to this list\")","v":"Add to this list"}]
[null,"Exp_UnitID","Date","TreatmentID","Crop","Tillage_Event","Tillage_Event_Depth","Tillage_Event_Method"]

{"sheet":"MgtGrowthStages","index":16,"n_rows":8,"n_cols":6,"rows_kept":8,"cut":false,"hidden":false,"merged":[[5,0,7,0]]}
["Management data: Growth Stages"]
[]
[]
[]
["Experimental Unit and Treatment Information"]
["Expands a single management line across treatments and fields.",null,"mm/dd/yyyy"]
[null,null,null,null,{"$f":"HYPERLINK(\"#DropDownLists!K6\",\"Add to this list\")","v":"Add to this list"},{"$f":"HYPERLINK(\"#DropDownLists!O6\",\"Add to this list\")","v":"Add to this list"}]
[null,"Exp_UnitID","Date","TreatmentID","Crop","Growth_Stage"]

{"sheet":"MgtResidue","index":17,"n_rows":8,"n_cols":10,"rows_kept":8,"cut":false,"hidden":false,"merged":[[1,6,3,6],[5,0,7,0]]}
["Management data: Residue Harvest"]
[null,null,null,null,null,null,"Enter low, high, etc or actual cutting height in cm or material harvested like \"cob\""]
[]
[]
["Experimental Unit and Treatment Information",null,null,null,null,"Residue (non-grain) harvest"]
["Expands a single management line across treatments and fields.",null,"mm/dd/yyyy",null,null,null,null,"%","years"]
[null,null,null,null,{"$f":"HYPERLINK(\"#DropDownLists!K6\",\"Add to this list\")","v":"Add to this list"},null,null,null,null,{"$f":"HYPERLINK(\"#DropDownLists!O6\",\"Add to this list\")","v":"Add to this list"}]
[null,"Exp_UnitID","Date","TreatmentID","Crop","Equipment_used_for_non-grain_harvest","Cutting_height_or_Material_harvested","Percent_rows_harvested","If_perennial_stand_age_in_years","If_annual_growth_stage_at_residue_harvest"]

{"sheet":"MgtGrazing","index":18,"n_rows":8,"n_cols":11,"rows_kept":8,"cut":false,"hidden":false,"merged":[[4,5,4,8],[5,2,5,3],[5,0,7,0]]}
["Management data: Grazing"]
[]
[]
[]
["Experimental Unit and Treatment Information",null,null,null,null,"Grazing Management Events"]
["Expands a single management line to additional expunits.",null,"mm/dd/yyyy",null,null,"# of animals/ha",null,null,null,"years/burn"]
[null,null,null,null,null,null,{"$f":"HYPERLINK(\"#DropDownLists!F6\",\"Add to this list\")","v":"Add to this list"},{"$f":"HYPERLINK(\"#DropDownLists!E6\",\"Add to this list\")","v":"Add to this list"},null,null,{"$f":"HYPERLINK(\"#DropDownLists!H6\",\"Add to this list\")","v":"Add to this list"}]
[null,"Exp_UnitID","Start_Date","End_Date","TreatmentID","Stocking_Rate","Animal_Species","Animal_Class","Other_Events","Burn_Frequency","Burn_Intensity"]

{"sheet":"MeasSoilPhys","index":19,"n_rows":8,"n_cols":25,"rows_kept":8,"cut":false,"hidden":false,"merged":[[1,12,4,12],[5,18,5,19],[5,23,5,24],[6,18,6,20],[5,3,5,4],[5,5,5,7],[5,9,5,10],[5,15,5,16],[6,3,6,4],[6,5,6,7],[6,9,6,11]]}
["Measurements Table: Soil Physical"]
[null,null,null,null,null,"Please enter methods for all your measurements on the Methods page.",null,null,null,null,null,null,"Do you have Moisture Release Curve data?",null,null,null,null,"STD","STD","STD","STD","STD","STD","STD","STD"]
[]
[]
["Experimental Unit and Treatment Information"]
[null,"mm/dd/yyyy",null,"cm",null,"%",null,null,"g/cm3","% vol",null,"cm/sec","Yes or No","MJ/m2","%","g C/kg soil",null,null,"% vol",null,"cm/sec","MJ/m2","%","g C/kg soil"]
[null,null,null,"Sample Depth",null,"Particle-Size Distribution"]
["Exp_UnitID","Date","TreatmentID","Upper","Lower","Sand","Silt","Clay","Bulk_Density","WP","FC","Ksat","MRC_MPA","Soil_Heat_Flux","Macro-aggregation","Water_Stable_Aggregates","Mid_Near_Infrared_Total_C","Bulk_Density_STD","WP_STD","FC_STD","Ksat_STD","Soil_Heat_Flux_STD","Macro-aggregation_STD","Water_Stable_Aggregates_STD","Mid_Near_Infrared_Total_C_STD"]

{"sheet":"MeasSoilChem","index":20,"n_rows":8,"n_cols":47,"rows_kept":8,"cut":false,"hidden":false,"merged":[[4,27,4,28],[5,29,5,30],[5,35,5,36],[6,27,6,28],[6,29,6,30],[6,35,6,44],[6,3,6,4],[6,6,6,7],[6,8,6,10],[6,14,6,23],[4,0,4,2],[5,3,5,4],[5,8,5,10],[5,14,5,15]]}
["Measurements Table: Soil Chemical"]
[null,null,null,"Please enter methods for all your measurements on the Methods page.",null,null,null,null,null,null,null,null,null,null,null,null,null,null,null,null,null,null,null,null,null,null,"STD","STD","STD","STD","STD","STD","STD","STD","STD","STD","STD","STD","STD","STD","STD","STD","STD","STD","STD","STD","STD"]
[]
[]
["Experimental Unit and Treatment Information"]
[null,"mm/dd/yyyy",null,"cm",null,null,"g C/kg soil","g N/kg soil","g C/kg soil",null,null,"cmol/kg","dS/m","mg C/kg soil","mg N/kg soil",null,"mg P/kg soil","mg K/kg soil","mg Ca/kg soil","mg Mg/kg soil","mg Cu/kg soil","Fe mg/kg soil","Mn mg/kg soil","Zn mg/kg soil","g/kg","mg/kg",null,"g C/kg soil","g N/kg soil","g C/kg soil",null,null,"cmol/kg","dS/m","mg C/kg soil","mg N/kg soil",null,"mg P/kg soil","mg K/kg soil","mg Ca/kg soil","mg Mg/kg soil","mg Cu/kg soil","Fe mg/kg soil","Mn mg/kg soil","Zn mg/kg soil","g/kg","mg/kg"]
[null,null,null,"Sample Depth",null,null,"Soil  Total C & N",null,"Inorganic and Other Carbon",null,null,null,null,null,"Extractable Mineral Measurements",null,null,null,null,null,null,null,null,null,"Nmin",null,null,"Soil Total C & N",null,"Inorganic and Other Carbon",null,null,null,null,null,"Extractable Mineral Measurements",null,null,null,null,null,null,null,null,null,"Nmin"]
["Exp_UnitID","Date","TreatmentID","Upper","Lower","pH","TSC","TSN","Inorganic_C","Organic_C","Cmin","CEC","Electrical_Conductivity","Soluble_Organic_C","Ammonium_NH4","Nitrate_NO3","Phosphorous_P","Potassium_K","Ca","Mg","Cu","Fe","Mn","Zn","Potentially_Mineralizable_N","Nitrite","pH_STD","TSC_STD","TSN_STD","Inorganic_C_STD","Organic_C_STD","Cmin_STD","CEC_STD","Electrical_Conductivity_STD","Soluble_Organic_C_STD","Ammonium_NH4_STD","Nitrate_NO3_STD","Phosphorous_P_STD","Potassium_K_STD","Ca_STD","Mg_STD","Cu_STD","Fe_STD","Mn_STD","Zn_STD","Potentially_Mineralizable_N_STD","Nitrite_STD"]

{"sheet":"MeasSoilBiol","index":21,"n_rows":8,"n_cols":28,"rows_kept":8,"cut":false,"hidden":false,"merged":[[6,26,6,27],[5,18,5,21],[5,24,5,25],[6,16,6,17],[2,11,4,13],[5,3,5,4],[5,5,5,8],[5,11,5,13],[5,14,5,15],[6,3,6,4],[6,11,6,13]]}
["Measurements Table: Soil Biological "]
[null,null,null,null,null,"Please enter methods for all your measurements on the Methods page.",null,null,null,null,null,null,null,null,null,null,null,null,"STD","STD","STD","STD","STD",null,"STD","STD","STD","STD"]
[null,null,null,null,null,null,null,null,null,null,null,"We will not collect FAME, PLFA, or DNA data at this time, but please respond whether you collect that data or not."]
[]
["Experimental Unit and Treatment Information",null,null,null,null,null,null,"pH 6.5","pH 11.0"]
[null,"mm/dd/yyyy",null,"cm",null,"mg ρ-nitrophenol released kg-1 soil  h-1",null,null,null,"mg fluorescein kg-1 h-1","g/kg","Yes or No",null,null,"g C/kg soil",null,"mg C/kg soil","mg N/kg soil","mg ρ-nitrophenol released kg-1 soil  h-1",null,null,null,"mg fluorescein kg-1 h-1","g/kg","g C/kg soil",null,"mg C/kg soil","mg N/kg soil"]
[null,null,null,"Sample Depth",null,null,null,null,null,null,null,"Do you have Profiles for:",null,null,null,null,"Microbial Biomass",null,null,null,null,null,null,null,null,null,"Microbial Biomass"]
["Exp_UnitID","Date","TreatmentID","Upper","Lower","Beta_Glucosidase","Beta_Glucosaminidase_NAG","Acid_Phosphatase","Alkaline_Phosphatase","Fluorescein_Diacetate_Hydrolysis","Glomalin","FAME","PLFA","DNA","Identifiable_Plant_Material","POM","MoBio_Carbon","MoBio_Nitrogen","Beta_Glucosidase_STD","Beta_Glucosaminidase_NAG_STD","Acid_Phosphatase_STD","Alkaline_Phosphatase_STD","Fluorescein_Diacetate_Hydrolysis_STD","Glomalin_STD","Identifiable_Plant_Material_STD","POM_STD","MoBio_Carbon_STD","MoBio_Nitrogen_STD"]

{"sheet":"MeasSoilCover","index":22,"n_rows":8,"n_cols":6,"rows_kept":8,"cut":false,"hidden":false,"merged":[[4,0,4,2]]}
["Measurements Table: Soil Cover "]
[null,null,null,null,null,"Please enter methods for all your measurements on the Methods page."]
[]
[]
["Experimental Unit and Treatment Information"]
[null,"mm/dd/yyyy"]
[null,null,null,{"$f":"HYPERLINK(\"#DropDownLists!AE6\",\"Add to this list\")","v":"Add to this list"},{"$f":"HYPERLINK(\"#DropDownLists!K6\",\"Add to this list\")","v":"Add to this list"},"%"]
["Exp_UnitID","Date","TreatmentID","Timing_Descriptor","Crop","Soil_Covered_with_Residue"]

{"sheet":"MeasGHGFlux","index":23,"n_rows":8,"n_cols":22,"rows_kept":8,"cut":false,"hidden":false,"merged":[[4,0,4,3],[1,7,6,7],[1,9,6,9],[6,19,6,20],[1,11,6,11],[6,12,6,13],[1,4,2,6]]}
["Measurement Table: Greenhouse Gas Flux"]
[null,null,null,null,"Please enter methods for all your measurements on the Methods page.",null,null,"Required! Enter the number 1 if preceding data is from an actual field measurement, or enter the number 0 if data is interpolated.",null,"Required! Enter the number 1 if preceding data is from an actual field measurement, or enter the number 0 if data is interpolated.",null,"Required! Enter the number 1 if preceding data is from an actual field measurement, or enter the number 0 if data is interpolated.",null,null,null,null,"STD","STD","STD","STD","STD","STD"]
[]
[]
["Experimental Unit and Treatment Information",null,null,null,"Greenhouse Gas Flux Data"]
[null,"mm/dd/yyyy"]
[null,null,null,null,{"$f":"HYPERLINK(\"#DropDownLists!K6\",\"Add to this list\")","v":"Add to this list"},{"$f":"HYPERLINK(\"#DropDownLists!I6\",\"Add to this list\")","v":"Add to this list"},"g N/ha/day",null,"g C/ha/day",null,"g C/ha/day",null,"Co",null,"% vol (cm3H2O/cm3soil)","cm","g N/ha/day","g C/ha/day","g C/ha/day","C",null,"% vol (cm3H2O/cm3soil)"]
["Exp_UnitID","Date","Time","TreatmentID","Crop","Chamber_Placement","N2O","N2O_Interp_Obs","CO2","CO2_Interp_Obs","CH4","CH4_Interp_Obs","Air_Temp","Soil_Temp","Soil_Moisture","Soil_Moisture_Depth","N2O_STD","CO2_STD","CH4_STD","Air_Temp_STD","Soil_Temp_STD","Soil_Moisture_STD"]

{"sheet":"MeasHarvestRemoval","index":24,"n_rows":8,"n_cols":44,"rows_kept":8,"cut":false,"hidden":false,"merged":[[6,40,6,43],[6,27,6,31],[4,36,4,43],[6,13,6,16],[6,17,6,20],[6,21,6,24],[6,32,6,35],[6,36,6,39],[1,0,2,4],[2,9,4,9],[1,7,4,7],[6,0,6,5],[6,8,6,12]]}
["Measurement Table: Harvest Removal "]
["This page is to describe for each experimental unit, what was harvested and what remained on the field after harvest.",null,null,null,null,null,null,"Above Ground Biomass includes grain at 0% moisture.  (The total of what was removed and what remains in the field)","Please enter methods for all your measurements on the Methods page.",null,null,null,null,null,null,null,null,null,null,null,null,null,null,null,null,"STD","STD","STD","STD","STD","STD","STD","STD","STD","STD","STD","STD","STD","STD","STD","STD","STD","STD","STD"]
[null,null,null,null,null,"Report what was harvested from experimental unit (this should describe your residue removal treatment). Percent fractions removed are assumed to be approximations.",null,null,null,"Report grain mass at 0% moisture"]
["Please use one line for each growth stage, Exp_UnitID combination. "]
["Experimental Unit and Treatment Information",null,null,"Information about sample",null,null,null,null,"Kernel weight",null,null,null,null,"Report the mass of non grain biomass that was removed from the field",null,null,null,"Report biomass left on the field, if measured.",null,null,null,"Report root biomass, if measured."]
[null,"mm/dd/yyyy",null,{"$f":"HYPERLINK(\"#DropDownLists!O6\",\"Add to this list\")","v":"Add to this list"},{"$f":"HYPERLINK(\"#DropDownLists!K6\",\"Add to this list\")","v":"Add to this list"},{"$f":"HYPERLINK(\"#DropDownLists!P6\",\"Add to this list\")","v":"Add to this list"},"cm","kg biomass/ha","mg biomass","kg biomass/ha","%","kg C/ha","kg N/ha","kg biomass/ha","%","kg C/ha","kg N/ha","kg biomass/ha","%","kg C/ha","kg N/ha","kg biomass/ha","%","kg C/ha","kg N/ha","cm","kg biomass/ha","mg biomass","kg biomass/ha","%","kg C/ha","kg N/ha","kg biomass/ha","%","kg C/ha","kg N/ha","kg biomass/ha","%","kg C/ha","kg N/ha","kg biomass/ha","%","kg C/ha","kg N/ha"]
["These columns must be filled for any entry.",null,null,null,null,null,null,null,"Harvested Grain",null,null,null,null,"Harvested Residue",null,null,null,"Non-Harvested Residue",null,null,null,"Roots\\Tubers",null,null,null,null,"DRY Biomass, inc. grain at 0% moisture","Harvested Grain",null,null,null,null,"Harvested Residue",null,null,null,"Non-Harvested Residue",null,null,null,"Roots\\Tubers"]
["Exp_UnitID","Date","TreatmentID","Growth_Stage","Crop","Harvested_Fraction","Corn_Ear_Height","Above_Ground_Biomass","Unit_Grain_Weight","Grain_DryMatter","Grain_MoisturePct","Grain_C","Grain_N","Harv_Res_DryMatter","HarvRes_MoisturePct","Harv_Res_C","Harv_Res_N","nonHarv_Res_DryMatter","nonHarvRes_MoisturePct","nonHarv_Res_C","nonHarv_Res_N","Root_DryMatter","Root_MoisturePct","Root_C","Root_N","Corn_Ear_Height_STD","Above_Ground_Biomass_STD","Unit_Grain_Weight_STD","Grain_DryMatter_STD","Grain_MoisturePct_STD","Grain_C_STD","Grain_N_STD","Harv_Res_DryMatter_STD","HarvRes_MoisturePct_STD","Harv_Res_C_STD","Harv_Res_N_STD","nonHarv_Res_DryMatter_STD","nonHarv_Res_MoisturePct_STD","nonHarv_Res_C_STD","nonHarv_Res_N_STD","Root_DryMatter_STD","Root_MoisturePct_STD","Root_C_STD","Root_N_STD"]

{"sheet":"MeasPlantFraction","index":25,"n_rows":8,"n_cols":16,"rows_kept":8,"cut":false,"hidden":false,"merged":[[4,11,4,14],[1,0,3,5]]}
["Measurements Table: Plant Fraction ",null,null,null,null,null,"This page is to describe the mass of what you sampled."]
["Sub-samples taken from plots to measure dry matter (independent of Harvested_Fraction). These samples may be analyzed further with results reported in MeasBiomassCHO, MeasBiomassEnergy, and/or MeasBiomassMinAn.",null,null,null,null,null,"Please enter methods for all your measurements on the Methods page.",null,null,null,null,"STD","STD","STD","STD","STD"]
[]
[]
["Experimental Unit and Treatment Information",null,null,null,null,null,"These columns refer to data from the plant fraction specified in column F."]
[null,"mm/dd/yyyy",null,{"$f":"HYPERLINK(\"#DropDownLists!O6\",\"Add to this list\")","v":"Add to this list"},{"$f":"HYPERLINK(\"#DropDownLists!K6\",\"Add to this list\")","v":"Add to this list"},{"$f":"HYPERLINK(\"#DropDownLists!T6\",\"Add to this list\")","v":"Add to this list"},"kg biomass/ha","%","kg C/ha","kg N/ha","mg biomass","kg biomass/ha","%","kg C/ha","kg N/ha","mg biomass"]
["These columns must be filled for any entry.",null,null,null,null,null,null,null,null,null,"Grain only",null,null,null,null,"Grain only"]
["Exp_UnitID","Sampling_Date","TreatmentID","Growth_Stage","Crop","Plant_Fraction","Fraction_DryMatter","Fraction_MoisturePct","Fraction_C","Fraction_N","Unit_Grain_Weight","Fraction_DryMatter_STD","Fraction_MoisturePct_STD","Fraction_C_STD","Fraction_N_STD","Unit_Grain_Weight_STD"]

{"sheet":"MeasBiomassCHO","index":26,"n_rows":8,"n_cols":32,"rows_kept":8,"cut":false,"hidden":false,"merged":[[5,6,5,18],[1,0,3,2],[1,13,4,14]]}
["Measurements Table: Biomass Carbohydrate Analysis "]
["This is an analysis of a sample identified in the table MeasPlantFraction.",null,null,null,null,"Please enter methods for all your measurements on the Methods page.",null,null,null,null,null,null,null,"Lignin should equal acid soluble lignin plus acid insoluble lignin. You do not need to enter all 3.",null,null,null,null,null,"STD","STD","STD","STD","STD","STD","STD","STD","STD","STD","STD","STD","STD"]
[]
[]
["Experimental Unit and Treatment Information"]
[null,"mm/dd/yyyy",null,null,null,null,"g/kg harvested material"]
[null,null,null,{"$f":"HYPERLINK(\"#DropDownLists!O6\",\"Add to this list\")","v":"Add to this list"},{"$f":"HYPERLINK(\"#DropDownLists!K6\",\"Add to this list\")","v":"Add to this list"},{"$f":"HYPERLINK(\"#DropDownLists!T6\",\"Add to this list\")","v":"Add to this list"},null,null,null,null,null,null,"NDF","ADF",null,null,null,"NFC"]
["Exp_UnitID","Date","TreatmentID","Growth_Stage","Crop","Plant_Fraction","Glucan","Xylan","Galactan","Arabinan","Mannan","Lignin","Neutral_Detergent_Fiber","Acid_Detergent_Fiber","Acid_Soluble_Lignin","Acid_Insoluble_Lignin ","Crude_Protein","Non-fiber_Carbohydrates","Ash","Glucan_STD","Xylan_STD","Galactan_STD","Arabinan_STD","Mannan_STD","Lignin_STD","Neutral_Detergent_Fiber_STD","Acid_Detergent_Fiber_STD","Acid_Soluble_Lignin_STD","Acid_Insoluble_Lignin _STD","Crude_Protein_STD","Non-fiber_Carbohydrates_STD","Ash_STD"]

{"sheet":"MeasBiomassEnergy","index":27,"n_rows":8,"n_cols":12,"rows_kept":8,"cut":false,"hidden":false,"merged":[[2,9,4,9],[2,10,4,10],[2,11,4,11],[1,0,3,2],[2,6,4,6],[2,7,4,7],[2,8,4,8]]}
["Measurements Table: Plant Biomass Energy "]
["This is an analysis of a sample identified in the table MeasPlantFraction.",null,null,null,null,null,"Please enter calorimeter type, temperature, hold time, and ramp temp on Methods page",null,null,"STD","STD","STD"]
[null,null,null,null,null,null,"Aromatic compounds lost during the heating process","Mineral matter remaining after heating","ASTM D 5865 Standard Test Method for Gross Calorific Value of Coal and Coke","Aromatic compounds lost during the heating process","Mineral matter remaining after heating","ASTM D 5865 Standard Test Method for Gross Calorific Value of Coal and Coke"]
[]
["Experimental Unit and Treatment Information"]
[null,"mm/dd/yyyy",null,null,null,null,"g/kg dry matter","g/kg dry matter","MJ/kg dry matter","g/kg dry matter","g/kg dry matter","MJ/kg dry matter"]
[null,null,null,{"$f":"HYPERLINK(\"#DropDownLists!O6\",\"Add to this list\")","v":"Add to this list"},{"$f":"HYPERLINK(\"#DropDownLists!K6\",\"Add to this list\")","v":"Add to this list"},{"$f":"HYPERLINK(\"#DropDownLists!T6\",\"Add to this list\")","v":"Add to this list"}]
["Exp_UnitID","Date","TreatmentID","Growth_Stage","Crop","Plant_Fraction","Volatile_Matter","Ash","Gross_Calorific_Value","Volatile_Matter_STD","Ash_STD","Gross_Calorific_Value_STD"]

{"sheet":"MeasBiomassMinAn","index":28,"n_rows":8,"n_cols":36,"rows_kept":8,"cut":false,"hidden":false,"merged":[[1,0,3,2]]}
["Measurements Table: Biomass Mineral Analysis "]
["This is an analysis of a sample identified in the table MeasPlantFraction.",null,null,null,null,null,"Please enter methods for all your measurements on the Methods page.",null,null,null,null,null,null,null,null,null,null,null,null,null,null,"STD","STD","STD","STD","STD","STD","STD","STD","STD","STD","STD","STD","STD","STD","STD"]
[]
[]
["Experimental Unit and Treatment Information"]
[null,"mm/dd/yyyy",null,null,null,null,"g/kg","g/kg","g/kg","g/kg","g/kg","g/kg","g/kg","g/kg","g/kg","mg/kg","mg/kg","mg/kg","mg/kg","mg/kg","mg/kg","g/kg","g/kg","g/kg","g/kg","g/kg","g/kg","g/kg","g/kg","g/kg","mg/kg","mg/kg","mg/kg","mg/kg","mg/kg","mg/kg"]
[null,null,null,{"$f":"HYPERLINK(\"#DropDownLists!O6\",\"Add to this list\")","v":"Add to this list"},{"$f":"HYPERLINK(\"#DropDownLists!K6\",\"Add to this list\")","v":"Add to this list"},{"$f":"HYPERLINK(\"#DropDownLists!T6\",\"Add to this list\")","v":"Add to this list"}]
["Exp_UnitID","Date","TreatmentID","Growth_Stage","Crop","Plant_Fraction","C_Concentration","N_Concentration","P_Concentration","K_Concentration","Ca_Concentration","Mg_Concentration","S_Concentration","Na_Concentration","Cl_Concentration","Al_Concentration","B_Concentration","Cu_Concentration","Fe_Concentration","Mn_Concentration","Zn_Concentration","C_Concentration_STD","N_Concentration_STD","P_Concentration_STD","K_Concentration_STD","Ca_Concentration_STD","Mg_Concentration_STD","S_Concentration_STD","Na_Concentration_STD","Cl_Concentration_STD","Al_Concentration_STD","B_Concentration_STD","Cu_Concentration_STD","Fe_Concentration_STD","Mn_Concentration_STD","Zn_Concentration_STD"]

{"sheet":"MeasGrazingPlants","index":29,"n_rows":8,"n_cols":36,"rows_kept":8,"cut":false,"hidden":false,"merged":[[2,21,4,21],[2,22,4,22],[6,17,6,18],[6,19,6,20],[4,0,4,2],[5,6,5,8],[6,13,6,14],[6,15,6,16],[5,10,5,12],[6,28,6,29],[6,30,6,31],[6,32,6,33],[6,34,6,35],[5,25,5,26]]}
["Measurements Table: Grazing Plants"]
[null,null,null,"Please enter methods for all your measurements on the Methods page.",null,null,null,null,null,null,null,null,null,null,null,null,null,null,null,null,null,"STD","STD","STD","STD","STD","STD","STD","STD","STD","STD","STD","STD","STD","STD","STD"]
[null,null,null,null,null,null,null,null,null,null,null,null,null,null,null,null,null,null,null,null,null,"If entry to left is a mean enter the standard deviations, if not, leave blank","* follow same pattern if all values are entered as a mean value"]
[]
["Experimental Unit and Treatment Information",null,null,"Grazed System Time Series Plant Data"]
[null,"mm/dd/yyyy",null,null,null,null,"kg/ha (dry weight)",null,null,"surface area leaves/surface area land","%",null,null,"kg C/ha","kg N/ha","kg C/ha","kg N/ha","kg C/ha/yr","kg N/ha/yr","kg C/ha/yr","kg N/ha/yr"]
[null,null,null,{"$f":"HYPERLINK(\"#DropDownLists!AB6\",\"Add to this list\")","v":"Add to this list"},{"$f":"HYPERLINK(\"#DropDownLists!O6\",\"Add to this list\")","v":"Add to this list"},null,null,null,null,null,null,null,null,"Above Ground Biomass",null,"Below Ground Biomass",null,"Aboveground Net Primary Production",null,"Belowground Net Primary Production",null,null,null,null,null,null,null,null,"Above Ground Biomass",null,"Below Ground Biomass",null,"Aboveground Net Primary Production",null,"Belowground Net Primary Production"]
["Exp_UnitID","Date","TreatmentID","Species_Mix","Growth_Stage","Broadleaf_vs_Grass","Above_Ground_Biomass","Surface_Litter","Standing_Dead","LAI","NPct","LigninPct","GroundCoverPct","AGB_C","AGB_N","BGB_C","BGB_N","ANPP_C","ANPP_N","BNPP_C","BNPP_N","Above_Ground_Biomass_STD","Surface_Litter_STD","Standing_Dead_STD","LAI_STD","NPct_STD","LigninPct_STD","GroundCoverPct_STD","AGB_C_STD","AGB_N_STD","BGB_C_STD","BGB_N_STD","ANPP_C_STD","ANPP_N_STD","BNPP_C_STD","BNPP_N_STD"]

{"sheet":"MeasSuppRes","index":30,"n_rows":8,"n_cols":6,"rows_kept":8,"cut":false,"hidden":false,"merged":[[5,3,5,4],[6,0,6,1],[4,0,4,2]]}
["Measurements Table: Supporting Research "]
["This page is to describe data you collected and want to include in the database, but did not find a place for it."]
[null,null,null,"Please enter methods for all your measurements on the Methods page."]
[]
["Experimental Unit and Treatment Information"]
[null,"mm/dd/yyyy"]
[]
["Exp_UnitID","Date","TreatmentID","What_is_being_measured","Measurement_Value","Measurement_Units"]

{"sheet":"AllCellComments","index":31,"n_rows":8,"n_cols":6,"rows_kept":8,"cut":false,"hidden":false,"merged":[]}
["All Cell Comments"]
[]
[]
[]
["Comments on specific data values"]
[null,"mm/dd/yyyy"]
[]
["SiteID","Date","Sheet_name","Field_name","Reporting_person_Name","Comment"]

{"sheet":"DropDownLists","index":32,"n_rows":80,"n_cols":32,"rows_kept":80,"cut":false,"hidden":false,"merged":[]}
[]
[]
[]
[]
[null,"Drop Down Lists for Different Columns:"]
[]
[null,"Active_Ingredient_Type","Amend_Placement","Amend_Type","Animal_Class","Animal_Species","Broadleaf_vs_Grass","Burn_Intensity","Chamber_Placement","Cover_Crop","Crop","Crop_Rotation_Descriptor","Fertilizer_Amendment_Class","Grazing_Rate","Growth_Stage","Harvested_Fraction","Irrigation_Type","Landscape_Position","Pest_Placement","Plant_Fraction","Planting_Method","Project_Name","Project_Scenario","Reference_Type","Research_Unit","Residue_Removal","Slope","Species_Mix","Tillage_Descriptor","Tillage_Event","Timing_Descriptor","Yes_No"]
[null,"2,4-D; CAS No. 94-75-7","Banded Subsurface","7-21-7","Dam with 1 offspring","Bison","Both","High","2:1 interrow:row","Avena strigosa/Secale cereale (Black Oat/Rye)","Andropogon gerardii (Big Bluestem)","Alfalfa","Integrated (Combination of organic and synthetic)","High","75% silk","All aboveground biomass","Center Pivot","N/A","Air Blast Sprayer","0-5 cm roots","Broadcast","GRACEnet","1=Business as usual","Abstract about data","Akron, CO CPRM","No",0,"Bahia","Conservation Till","Chisel (or Chisel Plow)","Mid winter","No"]
[null,"2,4-DB; CAS No. 94-82-6","Banded Surface","10-10-10","Dam with 2 offspring","Cattle","Broadleaf","Low","Across rows","Brassica rapa/Panicum miliaceum/Glycine max/Pisum sativum/Helianthus annuus/Triticum durum/Brassica napus (Turnip/Millet/Soybean/Pea/Sunflower/Triticale/Canola)","Avena sativa (Oats)","Alfalfa, Corn, Soybean, Wheat/Alfalfa, Alfalfa, Alfalfa","None","Low","Anthesis","50% removal of aboveground biomass","Drip","Sideslope","Airplane","10-20 cm roots","Disk","GRACEnet and REAP","2=Max carbon sequestration","Book chapter about data","Ames, IA AMR","Partial",1,"Bermuda","Conventional Till","Cultimulcher","Post harvest","Yes"]
[null,"Acetochlor; CAS No. 34256-82-1 ","Broadcast Incorporated","3-18-18","Dam with 3 offspring","Donkey","Grass","Medium","Between rows","Graminoid/Leguminosae mixture (Grass/Legume mixture)","Avena sativa (Oats) + [80% Melilotus officinalis and 20% Trifolium pratense(Clover)]","Barley","Organic","Medium","E0","Crop residue","Flood","Summit","Chemigation","20-30 cm roots","Row","Other","3=Min net GHG emissions","Journal article about data","Ames, IA SWAR","Yes",2,"Bermuda-fescue","Direct Seeding","Cultipacker","Post harvest (2-4 weeks after harvest)"]
[null,"Ammonium salt of imazamox; CAS No. 247057-22-3","Broadcast Spray","10-20-20","Intact male","Goat",null,null,"Over clipped grass","Leguminosae (Legume)","Avena strigosa (Black Oat)","Barley, Corn, Soybean","Synthetic","None","E1","Grain","Furrow/Ditch","Toeslope","Tractor mounted spray boom","5-10 cm roots","Twin Row","REAP","4=Max overall environmental benefits","Popular article","Auburn, AL SDR",null,3,"Big bluestem","None","Disk","Post harvest (within 2 weeks of harvest)"]
[null,"Ammonium sulfamidate; CAS No. 7773-06-0","Broadcast Surface","6-24-24","Juvenile female","Horse",null,null,"Over grass","Lolium sp (Ryegrass)","Brassica napus (Canola)","Barley, Fallow",null,null,"E2","Grain, 100% stover","Lateral Move Sprinkler",null,"Under soil with planter","Above earshank","Drill",null,"5=Other","Proceedings about data","Beaver, WV AFSR",null,4,"Blue grama","No Till","Disk Rip","Post planting"]
[null,"Atrazine; CAS No. 1912-24-9","Injected","0-0-60","Lactating female","Llama",null,null,"Rangeland","None","Brassica rapa rapifera (Turnip)","Barley, Pea",null,null,"Emergence","Grain, 50% stover","Linear Move Sprinkler",null,null,"Above earshank leaves",null,null,"A=No removal","Published report about data","Beltsville, MD CSGCL",null,5,"Blue grama (dominant)","Strip Till","Field Cultivator (between row weed control)","Post tillage"]
[null,"Bentazon; CAS No. 25057-89-0","N/A","0-0-61","Mature female","Sheep",null,null,null,"Phleum pratense (Timothy Sod)","Fallow","Barley, Potato",null,null,"En","Grain, Cobs, High Cut","Rotation",null,null,"Above earshank stems",null,null,"B=Corn cob removal","Thesis","Beltsville, MD EQL",null,6,"Crested wheatgrass","Sub Till","Flail","Pre plant"]
[null,"Bromoxynil octanoate; CAS No. 1689-99-2","Seed Coating","0-10-20 (granular)","Neutered male",null,null,null,null,"Pisum sativum (Austrian Winter Pea)","Glycine max (Soybean)","Big Bluestem",null,null,"Feekes 10","Grain, stover in 100% of rows","Seepage",null,null,"Above earshank and cobs",null,null,"C=Around 25% removal",null,"Beltsville, MD SASL",null,7,"Fescue","Sweep Tillage","Harrow (raking event)","Pre tillage"]
[null,"Bromoxynil octanoate; CAS No. 1689-99-2. MPCA; CAS No.29450-45-1","Surface","0-20-20 (granular)",null,null,null,null,null,"Secale cereale (Rye)","Gossypium hirsutum (Cotton)","Corn",null,null,"G0","Grain, stover in 25% of rows","Side Roll",null,null,"Aboveground biomass",null,null,"D=Around 50% removal",null,"Bowling Green, KY FAESR",null,8,"Kentucky bluegrass (dominant)",null,"Moldboard Plow","Winter"]
[null,"Bromoxynil; CAS No. 1689-84-5","Surface-dribble","100-30-30",null,null,null,null,null,"Secale cereale, Vicia sativa (Rye, Vetch)","Graminoid/Leguminosae mixture (Grass/Legume mixture)","Corn, Barley",null,null,"G1","Grain, stover in 50% of rows","Solid Set Sprinklers",null,null,"Below earshank",null,null,"E=Around 75% removal",null,"Brookings, SD ICSR",null,9,"Orchard grass",null,"Ridge Till"]
[null,"Carfentrazone-ethyl. CAS No. 128639-02-1",null,"10-34-0",null,null,null,null,null,"Secale cereale, Vicia villosa (Rye, Hairy Vetch)","Helianthus annuus L. (Sunflower)","Corn, Corn, Corn, Soybean, Alfalfa, Alfalfa, Alfalfa, Alfalfa",null,null,"G2","Grain, stover in 75% of rows","Supplemental",null,null,"Below earshank leaves",null,null,"F=Complete removal",null,"Bushland, TX SWMR",null,10,"Orchard/fescue/clover/alfalfa/chicory",null,"Ripping"]
[null,"Chlorimuron; CAS No. 99283-00-8",null,"10-34-0-1(Zn)",null,null,null,null,null,"Trifolium incarnatum (Crimson Clover)","Hordeum vulgare (Barley)","Corn, Cotton",null,null,"G3","Grain, Cobs","Surface",null,null,"Below earshank stems",null,null,null,null,"Corvallis, OR FSCR",null,null,"Orchardgrass/white clover",null,"Rod-weed"]
[null,"Chlorpyrifos; CAS No. 2921-88-2",null,"11-52-0",null,null,null,null,null,"Trifolium incarnatum Lupinus sp Brassica sp (Crimson clover lupin brassica)","Leguminosae (Legume)","Corn, Dry Bean",null,null,"G4","Lint","Traveling Gun",null,null,"Belowground biomass",null,null,null,null,"Crookston, MN",null,null,"Ryegrass",null,"Rototiller"]
[null,"Choice; CA Reg No 34704-50027",null,"11-52-10",null,null,null,null,null,null,"Lens culinaris (Lentil)","Corn, Forage Soybean, Wheat",null,null,"G5","None","Wheel Line",null,null,"Cobs",null,null,null,null,"Davis, CA CPGR",null,null,"Smooth brome",null,"Strip Till"]
[null,"Clethodim; CAS No. 99129-21-2",null,"11-52-30",null,null,null,null,null,null,"Lolium sp (Ryegrass)","Corn, Oat/Clover, Sorghum, Soybean",null,null,"Harvest",null,null,null,null,"Cobs and grain",null,null,null,null,"Florence, SC CPSWPRC",null,null,"Sorghum sudan",null,"Sweep Till (for weed control prior to planting)"]
[null,"Clopyralid; CAS No. 1702-17-6",null,"16-8-8",null,null,null,null,null,null,"Medicago sativa (Alfalfa)","Corn, Pea, Winter Wheat, Soybean",null,null,"Maturity",null,null,null,null,"Ear Leaf",null,null,null,null,"Fort Collins, CO ASRU",null,null,"Timothy",null,"Subsoil"]
[null,"Clopyralid; CAS No. 57754-85-8",null,"18-9-18 (granular)",null,null,null,null,null,null,"Miscanthus sinensis (Miscanthus)","Corn, Rye",null,null,"Post-graze",null,null,null,null,"Grain",null,null,null,null,"Fort Collins, CO RRRU",null,null,"Western wheatgrass"]
[null,"Cyfluthrin; CAS No. 68359-37-5",null,"2-11-48 (granular)",null,null,null,null,null,null,"None","Corn, Soybean",null,null,"Post-harvest",null,null,null,null,"Husk",null,null,null,null,"Fort Collins, CO SPNR"]
[null,"Dicamba, diglycolamine salt; CAS No. 104040-79-1",null,"22-0-0-5",null,null,null,null,null,null,"Panicum miliaceum (Millet)","Corn, Soybean, Sorghum, Oat/Clover",null,null,"Pre-graze",null,null,null,null,"Leaves",null,null,null,null,"Gainesville, FL CGER"]
[null,"Dicamba; CAS No. 1918-00-9",null,"28-12-12",null,null,null,null,null,null,"Panicum virgatum (Switchgrass)","Corn, Soybean, Wheat",null,null,"R1",null,null,null,null,"Pod",null,null,null,null,"Houma, LA SR"]
[null,"Diflufenzopyr; CAS No. 109293-97-2",null,"70-20-20",null,null,null,null,null,null,"Pasture","Corn, Soybean, Wheat, Soybean",null,null,"R2",null,null,null,null,"Roots",null,null,null,null,"Kearneysville, WV AFRL"]
[null,"Dimethoate; CAS No. 60-51-5",null,"70-30-30",null,null,null,null,null,null,"Pennisetum glaucum (Hay Millet)","Corn, Soybean, Wheat/Alfalfa, Alfalfa",null,null,"R3",null,null,null,null,"Sheath",null,null,null,null,"Kimberly, ID NISR"]
[null,"Fenoxaprop; CAS No. 95617-09-7",null,"7-20-20 (granular)",null,null,null,null,null,null,"Phalaris arundinacea (Reed Canary Grass)","Corn, Soybean, Wheat/Alfalfa, Alfalfa, Alfalfa",null,null,"R4",null,null,null,null,"Shoot",null,null,null,null,"Lincoln, NE AMR"]
[null,"Fenoxaprop-P-ethyl; CAS No. 71283-80-2",null,"8-30-30-20(S)",null,null,null,null,null,null,"Phaseolus vulgaris (Dry Bean)","Corn, Sunflower, Barley",null,null,"R5",null,null,null,null,"Stems and leaves",null,null,null,null,"Lubbock, TX WEWCR"]
[null,"Fluazifop-P-butyl; CAS No. 79241-46-6",null,"Ammonium Nitrate",null,null,null,null,null,null,"Phaseolus vulgaris (Pinto Bean)","Cotton",null,null,"R6",null,null,null,null,"Stems",null,null,null,null,"Madison, WI"]
[null,"Fluroxypyr; CAS No. 69377-81-7",null,"Ammonium Nitrate 34-0-0",null,null,null,null,null,null,"Phleum pratense (Timothy Sod)","Cotton, Sorghum",null,null,"R7",null,null,null,null,"Stover (all non-grain biomass)",null,null,null,null,"Mandan, ND NRMR"]
[null,"Glufosinate; CAS No. 51276-47-2",null,"Ammonium Sulfate",null,null,null,null,null,null,"Pisum sativum (Austrian Winter Pea)","Cotton/Rye, Sorghum/Rye",null,null,"R8",null,null,null,null,"Straw",null,null,null,null,"Maricopa, AZ PPGR"]
[null,"Glufosinate-ammonium; CAS No. 77182-82-2",null,"Anhydrous Ammonia",null,null,null,null,null,null,"Pisum sativum (Dry Pea)","Fallow",null,null,"S0",null,null,null,null,"Tassel",null,null,null,null,"Maricopa, AZ WMCR"]
[null,"Glyphosate; CAS No. 1071-83-6",null,"Anhydrous Ammonia 82-0-0",null,null,null,null,null,null,"Pisum sativum (Pea cover)","Forage Soybean, Wheat, Corn",null,null,"S1",null,null,null,null,"Tubers",null,null,null,null,"Marshfield, WI"]
[null,"Glyphosate-isopropylammonium; CAS No. 38641-94-0",null,"Beef Cattle Manure",null,null,null,null,null,null,"Pisum sativum (Pea)","Grass",null,null,"S2",null,null,null,null,"Whole plant (above and belowground biomass)",null,null,null,null,"Mississippi State, MS"]
[null,"Imazamox; CAS No. 114311-32-9",null,"Biochar",null,null,null,null,null,null,"Rangeland","Haygrazer Rye",null,null,"S3",null,null,null,null,null,null,null,null,null,"Morris, MN SMR"]
[null,"Imazethapyr; CAS No. 81335-77-5",null,"19-9.5-0",null,null,null,null,null,null,"Restored Prairie","Miscanthus",null,null,"S4",null,null,null,null,null,null,null,null,null,"Orono, ME NEPSWRL"]
[null,"Lambda-cyhalothrin; CAS No. 91465-08-6",null,"Chicken Litter",null,null,null,null,null,null,"S. bicolor X Sorghum sudanens (Haygrazer)","Crop Failure",null,null,"S5",null,null,null,null,null,null,null,null,null,"Parlier, CA WMR"]
[null,"MCPA; CAS No. 94-74-6",null,"Chicken Litter AgrotainPlus",null,null,null,null,null,null,"S. bicolor X Sorghum sudanens (Sudex)","Pasture",null,null,"S6",null,null,null,null,null,null,null,null,null,"Pendleton, OR CPCRC"]
[null,"Mesosulfuron; CAS No. 400852-66-6",null,"Dairy Manure (dry)",null,null,null,null,null,null,"Saccarum officinarum (Sugarcane)","Pea, Winter Wheat, Soybean, Corn",null,null,"V1",null,null,null,null,null,null,null,null,null,"Prosser, WA VFCPR"]
[null,"Mesotrione; CAS No. 104206-82-8",null,"Dolomitic Limestone",null,null,null,null,null,null,"Secale cereale (Rye)","Potato",null,null,"V2",null,null,null,null,null,null,null,null,null,"Pullman, WA"]
[null,"Metolachlor; CAS No. 51218-45-2",null,"Duration Type I (ESN) 45-0-0",null,null,null,null,null,null,"Solanum tuberosum (Potato)","Rangeland",null,null,"V3",null,null,null,null,null,null,null,null,null,"Sidney, MT ASRU"]
[null,"Nicosulfuron; CAS No. 111991-09-4",null,"ESN 44-0-0 (polymer coated granules)",null,null,null,null,null,null,"Sorghum bicolor (Forage Sorghum)","Reed Canary Grass",null,null,"V4",null,null,null,null,null,null,null,null,null,"St. Paul, MN SWMR"]
[null,"Paraquat; CAS No. 1910-42-5",null,"Hog Manure",null,null,null,null,null,null,"Sorghum bicolor (Grain Sorghum)","Restored Prairie",null,null,"V5",null,null,null,null,null,null,null,null,null,"St. Paul, MN PSRU"]
[null,"Pendimethalin; CAS No. 40487-42-1",null,"K20",null,null,null,null,null,null,"Sorghum bicolor (Sorghum)","Sorghum",null,null,"V6",null,null,null,null,null,null,null,null,null,"Temple, TX GSWRL"]
[null,"Permethrin; CAS No. 52645-53-1",null,"K2SO4",null,null,null,null,null,null,"Sorghum bicolor (Sweet Sorghum)","Sorghum Sudangrass",null,null,"V7",null,null,null,null,null,null,null,null,null,"Tifton, GA SWR"]
[null,"Potassium salt of glyphosate; CAS No. 70901-12-1",null,"Lime",null,null,null,null,null,null,"Sorghum vulgare sudanense (Sudangrass)","Soybean",null,null,"V8",null,null,null,null,null,null,null,null,null,"Toledo, OH"]
[null,"Propoxycarbazone; CAS No. 145026-81-9",null,"Liquid 3 9 21",null,null,null,null,null,null,"Trifolium sp (Clover)","Soybean, Corn",null,null,"V9",null,null,null,null,null,null,null,null,null,"Tucson, AZ SWR"]
[null,"Pyraclostrobin; CAS No. 175013-18-0",null,"Liquid 9 18 9",null,null,null,null,null,null,"Trifolium incarnatum (Crimson Clover)","Soybean, Corn, Pea, Winter Wheat",null,null,"V10",null,null,null,null,null,null,null,null,null,"University Park, PA PSWMR"]
[null,"Pyrasulfotole; CAS No. 365400-11-9",null,"Liquid Dairy Pit Manure (slurry)",null,null,null,null,null,null,"Trifolium incarnatum Lupinus sp Brassica sp (Crimson clover lupin brassica)","Soybean, Sorghum",null,null,"V11",null,null,null,null,null,null,null,null,null,"Urbana, IL GCPR"]
[null,"Rimsulfuron; CAS No. 122931-48-0",null,"Mono Ammonium Phosphate 11-52-0",null,null,null,null,null,null,"Triticum aestivum (Wheat)","Spring Wheat/Fallow",null,null,"V12",null,null,null,null,null,null,null,null,null,"Watkinsville, GA"]
[null,"S-dimethenamid; CAS No. 163515-14-8",null,"N/A",null,null,null,null,null,null,"Triticum aestivum (Winter Wheat)","Spring Wheat/Safflower/Rye/Fallow",null,null,"V13",null,null,null,null,null,null,null,null,null,"West Lafayette, IN NSER"]
[null,"Sethoxydim; CAS No. 74051-80-2",null,"N-P-K Blend",null,null,null,null,null,null,"Triticum durum (Triticale)","Sudangrass, Winter Wheat, Winter Wheat",null,null,"V14",null,null,null,null,null,null,null,null,null,"Woodward, OK RPR"]
[null,"Simazine; CAS No. 122-34-9",null,"P,K, Lime by soil test",null,null,null,null,null,null,"Vicia sativa (Vetch)","Sugarcane",null,null,"V15",null,null,null,null,null,null,null,null,null,"Wyndmoor, PA MCFPR"]
[null,"S-metolachlor; CAS No. 87392-12-9",null,"P205",null,null,null,null,null,null,"Vicia villosa (Hairy Vetch)","Switchgrass",null,null,"V16"]
[null,"Tebupirimfos; CAS No. 96182-53-5",null,"Polycoated Urea",null,null,null,null,null,null,"Zea mays (Corn)","Wheat",null,null,"V17"]
[null,"Tefluthrine; CSA No. 79538-32-2",null,"Poultry Litter",null,null,null,null,null,null,"Zea mays (Corn) silage","Wheat, Corn, Fallow",null,null,"V18"]
[null,"Terbufos; CAS No. 13071-79-9",null,"Sewage Sludge",null,null,null,null,null,null,null,"Wheat, Corn, Forage Soybean",null,null,"V19"]
[null,"Thifensulfuron; CAS No. 79277-67-1    ",null,"Starter 19-19-19",null,null,null,null,null,null,null,"Wheat, Corn, Millet",null,null,"V20"]
[null,null,null,"Starter Fertilizer",null,null,null,null,null,null,null,"Wheat, Corn, Millet, Fallow",null,null,"V21"]
[null,null,null,"SuperU",null,null,null,null,null,null,null,"Wheat, Corn, Millet, Pea",null,null,"V22"]
[null,null,null,"SuperU 46-0-0 (granular)",null,null,null,null,null,null,null,"Wheat, Fallow"]
[null,null,null,"Triple Super Phosphate 0-46-0",null,null,null,null,null,null,null,"Wheat, Pea"]
[null,null,null,"UAN + N fusion 22-0-0",null,null,null,null,null,null,null,"Wheat, Pea, Corn"]
[null,null,null,"UAN 28-0-0",null,null,null,null,null,null,null,"Wheat, Pea, Cover"]
[null,null,null,"UAN 30-0-0",null,null,null,null,null,null,null,"Wheat, Pea/Turnip/Millet/Soybean/Pea/Sunflower/Triticale/Canola"]
[null,null,null,"UAN 32-0-0",null,null,null,null,null,null,null,"White Clover/Corn, Corn/Rye, Soybean"]
[null,null,null,"UAN 32-0-0 (liquid)",null,null,null,null,null,null,null,"Winter Wheat"]
[null,null,null,"UAN AgrotainPlus 28-0-0",null,null,null,null,null,null,null,"Winter Wheat, Soybean, Corn, Pea"]
[null,null,null,"UAN AgrotainPlus 28-0-1"]
[null,null,null,"Urea"]
[null,null,null,"Urea 46-0-0"]
[null,null,null,"Urea 46-0-0 (granular)"]
[null,null,null,"Urea 46-0-0 (liquid)"]
[null,null,null,"Urea AgrotainPlus"]
[null,null,null,"Urea Ammonium Nitrate"]
[null,null,null,"Urea Nitrification Inhibitor"]
[null,null,null,"Vetch"]

{"sheet":"ValueDomains","index":33,"n_rows":506,"n_cols":12,"rows_kept":506,"cut":false,"hidden":false,"merged":[]}
["TYPE","TABLE","COLUMN","Parameter Description","Low","High","Units","Nullable","ACCESS Field types","Precision","Scale","Maxlength"]
["Background","Locations","SiteID","Site identifier","a","z","none","NO","Memo","---","---",63999]
["Background","Locations","SiteID_descriptor","Site description","a","z","none","YES","Memo","---","---",63999]
["Background","Locations","Research_Unit","Unit location","a","z","none","YES","Memo","---","---",63999]
["Background","Locations","Project_Name","Project Name","a","z","none","YES","Memo","---","---",63999]
["Background","Locations","Date_experiment_began","Start date","1900-01-01",{"$f":"TODAY()","v":"2014-08-13"},"mm/dd/yyyy","YES","Date/Time","---","---","---"]
["Background","Locations","Date_experiment_ended","End date","1900-01-01",{"$f":"TODAY()","v":"2014-08-13"},"mm/dd/yyyy","YES","Date/Time","---","---","---"]
["Background","Locations","MLRA","Major land resource area code","a","z","none","YES","Memo","---","---",63999]
["Background","Locations","Country","ISO country code","a","z","none","YES","Memo","---","---",63999]
["Background","Locations","State/Province","State or Province","a","z","none","YES","Memo","---","---",63999]
["Background","Locations","County","County","a","z","none","YES","Memo","---","---",63999]
["Background","Locations","City","City","a","z","none","YES","Memo","---","---",63999]
["Background","Locations","Latitude","Latitude, decimal degrees",-75,75,"decimal degrees","YES","decimal",9,6,"---"]
["Background","Locations","Longitude","Longitude, decimal degrees",-180,180,"decimal degrees","YES","decimal",9,6,"---"]
["Background","Locations","Elevation","Elevation, meters",-50,5000,"m","YES","Long Integer","---","---","---"]
["Background","Locations","MAP","Precipitation, annual, mean, millimeters",10,5000,"mm","YES","decimal",9,1,"---"]
["Background","Locations","MAT","Temperature, annual, mean, degrees Celsius",-10,30,"degrees Celsius","YES","decimal",9,1,"---"]
["Background","Locations","Native_Vegetation","Native vegetation","a","z","none","YES","Memo","---","---",63999]
["Background","Locations","Site_History","Site history","a","z","none","YES","Memo","---","---",63999]
["---","---","---","---","---","---","---","---","---","---","---","---"]
["Background","Persons","SiteID","Site identifier","a","z","none","NO","Memo","---","---",63999]
["Background","Persons","Last_name","Last name","a","z","none","YES","Memo","---","---",63999]
["Background","Persons","First_name","First name","a","z","none","YES","Memo","---","---",63999]
["Background","Persons","Middle_name","Middle name","a","z","none","YES","Memo","---","---",63999]
["Background","Persons","Suffix","Suffix","a","z","none","YES","Memo","---","---",63999]
["Background","Persons","Role_in_study","Role","a","z","none","YES","Memo","---","---",63999]
["Background","Persons","Primary_contact","Contact","a","z","none","YES","Memo","---","---",63999]
["Background","Persons","Department_institute","Department","a","z","none","YES","Memo","---","---",63999]
["Background","Persons","Organization","Organization","a","z","none","YES","Memo","---","---",63999]
["Background","Persons","Date_created","Creation date","1900-01-01",{"$f":"TODAY()","v":"2014-08-13"},"mm/dd/yyyy","YES","Date/Time","---","---","---"]
["Background","Persons","Profession","Profession","a","z","none","YES","Memo","---","---",63999]
["Background","Persons","Person_e_mail","Email","a","z","none","YES","Memo","---","---",63999]
["Background","Persons","Telephone","Phone","a","z","none","YES","Memo","---","---",63999]
["Background","Persons","Person_web_site","Website","a","z","none","YES","Memo","---","---",63999]
["Background","Persons","Person_note","Notes","a","z","none","YES","Memo","---","---",63999]
["---","---","---","---","---","---","---","---","---","---","---","---"]
["Background","Citations","SiteID","Site identifier","a","z","none","NO","Memo","---","---",63999]
["Background","Citations","Reference_type","Reference type","a","z","none","YES","Memo","---","---",63999]
["Background","Citations","Title","Reference Title","a","z","none","YES","Memo","---","---",63999]
["Background","Citations","Is_Part_Of","Book title if reference is a book chapter","a","z","none","YES","Memo","---","---",63999]
["Background","Citations","Author_Creator","Author","a","z","none","YES","Memo","---","---",63999]
["Background","Citations","Corresponding_Author","Corresponding Author","a","z","none","YES","Memo","---","---",63999]
["Background","Citations","Date_Published","Date Published YEAR",1940,3000,"year","YES","Long Integer","---","---","---"]
["Background","Citations","Identifier","Permanent identifier like DOI, Handle, PURL, etc","a","z","none","YES","Memo","---","---",63999]
["Background","Citations","Description","A description user might find useful","a","z","none","YES","Memo","---","---",63999]
["Background","Citations","Full_citation","Full Citation","a","z","none","YES","Memo","---","---",63999]
["---","---","---","---","---","---","---","---","---","---","---","---"]
["Background","Treatments","TreatmentID","Treatment identifier","a","z","none","NO","Memo","---","---",63999]
["Background","Treatments","Start_Date","Date","1900-01-01",{"$f":"TODAY()","v":"2014-08-13"},"mm/dd/yyyy","NO","Date/Time","---","---","---"]
["Background","Treatments","Detailed_Tx_Descriptor","Treatment descriptor","a","z","none","YES","Memo","---","---",63999]
["Background","Treatments","Crop_Rotation_Descriptor","Crop rotation","a","z","none","NO","Memo","---","---",63999]
["Background","Treatments","Tillage_Descriptor","Tillage","a","z","none","NO","Memo","---","---",63999]
["Background","Treatments","Nitrogen_Treatment_Descriptor","Nitrogen treatment","a","z","none","NO","Memo","---","---",63999]
["Background","Treatments","Project_Scenario","Project scenario","a","z","none","NO","Memo","---","---",63999]
["Background","Treatments","Fertilizer_Amendment_Class","Fertilizer","a","z","none","NO","Memo","---","---",63999]
["Background","Treatments","Cover_Crop","Cover crop","a","z","none","NO","Memo","---","---",63999]
["Background","Treatments","Residue_Removal","Residue Removal","a","z","none","NO","Memo","---","---",63999]
["Background","Treatments","Irrigation","Irrigated","Yes","No","none","NO","Yes/No","---","---",63999]
["Background","Treatments","Organic_Management","Organic Management","a","z","none","NO","Memo","---","---",63999]
["Background","Treatments","Grazing_Rate","Grazing rate","a","z","none","NO","Memo","---","---",63999]
["---","---","---","---","---","---","---","---","---","---","---","---"]
["Background","ExperUnits","Exp_Unit1","Exp Unit 1","a","z","none","NO","Memo","---","---",63999]
["Background","ExperUnits","Exp_Unit1_Descriptor","Unit1 descriptor","a","z","none","YES","Memo","---","---",63999]
["Background","ExperUnits","Exp_Unit2","Exp Unit 2","a","z","none","NO","Memo","---","---",63999]
["Background","ExperUnits","Exp_Unit2_Descriptor","Unit2 descriptor","a","z","none","YES","Memo","---","---",63999]
["Background","ExperUnits","Exp_Unit3","Exp Unit 3","a","z","none","NO","Memo","---","---",63999]
["Background","ExperUnits","Exp_Unit3_Descriptor","Unit3 descriptor","a","z","none","YES","Memo","---","---",63999]
["Background","ExperUnits","Exp_Unit4","Exp Unit 4","a","z","none","NO","Memo","---","---",63999]
["Background","ExperUnits","Exp_Unit4_Descriptor","Unit4 descriptor","a","z","none","YES","Memo","---","---",63999]
["Background","ExperUnits","Exp_Unit5","Exp Unit 5","a","z","none","NO","Memo","---","---",63999]
["Background","ExperUnits","Exp_Unit5_Descriptor","Unit5 descriptor","a","z","none","YES","Memo","---","---",63999]
["Background","ExperUnits","Exp_UnitID","Experimental Unit ID","a","z","none","NO","Memo","---","---",63999]
["Background","ExperUnits","TreatmentID","Treatment identifier","a","z","none","YES","Memo","---","---",63999]
["Background","ExperUnits","Start_Date","Start date","1900-01-01",{"$f":"TODAY()","v":"2014-08-13"},"mm/dd/yyyy","YES","Date/Time","---","---","---"]
["Background","ExperUnits","End_Date","End date","1900-01-01","2014-08-13","mm/dd/yyyy","YES","Date/Time","---","---","---"]
["Background","ExperUnits","Change_in_Management","Management change","a","z","none","YES","Memo","---","---",63999]
["Background","ExperUnits","Soil_Series","Soil series","a","z","none","YES","Memo","---","---",63999]
["Background","ExperUnits","Soil_Classification","Classification","a","z","none","YES","Memo","---","---",63999]
["Background","ExperUnits","Landscape_Position","Landscape position","a","z","none","YES","Memo","---","---",63999]
["Background","ExperUnits","Slope","Slope, percent",0,10,"percent","YES","Long Integer","---","---","---"]
["Background","ExperUnits","Exp_Unit_Size","Plot area, square meters",0,999999,"m2","YES","decimal",9,1,"---"]
["---","---","---","---","---","---","---","---","---","---","---","---"]
["Characterization","WeatherStation","SiteID","Site identifier","a","z","none","NO","Memo","---","---","---"]
["Characterization","WeatherStation","Date","Date","1900-01-01",{"$f":"TODAY()","v":"2014-08-13"},"mm/dd/yyyy","NO","Date/Time","---","---","---"]
["Characterization","WeatherStation","Wth_Station_ID","Station identifier","a","z","none","YES","Memo","---","---","---"]
["Characterization","WeatherStation","Weather_Lat","Latitude of weather station, decimal degrees",-75,75,"decimal degrees","NO","decimal",9,6,"---"]
["Characterization","WeatherStation","Weather_Long","Longitude of weather station, decimal degrees",-180,180,"decimal degrees","NO","decimal",9,6,"---"]
["Characterization","WeatherStation","Weather_Elev","Elevation of weather station, meters",-50,5000,"m","NO","Long Integer","---","---","---"]
["Characterization","WeatherStation","Dist_from_field","Distance from research site, meters",1,10000,"m","NO","decimal",10,0,"---"]
["Characterization","WeatherStation","Direction_from_field","Direction from station to research site","a","z","direction","NO","Memo","---","---",63999]
["Characterization","WeatherStation","Wth_Station_URL","Location of data","a","z","none","YES","Memo","---","---",63999]
["---","---","---","---","---","---","---","---","---","---","---","---"]
["Characterization","WeatherDaily","SiteID","Site identifier","a","z","none","NO","Memo","---","---",63999]
["Characterization","WeatherDaily","Weather_Date","Date","1900-01-01",{"$f":"TODAY()","v":"2014-08-13"},"mm/dd/yyyy","NO","Date/Time","---","---","---"]
["Characterization","WeatherDaily","Wth_StationID","Station identifier","a","z","none","NO","Memo","---","---",63999]
["Characterization","WeatherDaily","TMax","Temperature, air, daily, maximum, degrees Celsius",-20,40,"degrees Celsius","YES","decimal",9,2,"---"]
["Characterization","WeatherDaily","TMin","Temperature, air, daily, minimum, degrees Celsius",-20,40,"degrees Celsius","YES","decimal",9,2,"---"]
["Characterization","WeatherDaily","Precip","Precipitation, total, no media, daily, millimeters",0,250,"mm/d","YES","decimal",9,2,"---"]
["Characterization","WeatherDaily","Bad_Value_Flag","Bad value flag",-999,"xxx","integer","YES","Long Integer","---","---","---"]
["Characterization","WeatherDaily","RH","Relative humidity, air, daily, mean, percent",0,100,"%","YES","Long Integer","---","---","---"]
["Characterization","WeatherDaily","Dew_point","Dew point, air, daily, mean, degrees Celsius",-20,40,"degrees Celsius","YES","decimal",9,2,"---"]
["Characterization","WeatherDaily","Wind_speed","Wind speed, air, daily, mean, meters per second",0,30,"m/s","YES","decimal",9,2,"---"]
["Characterization","WeatherDaily","Solar_Radn_Veg","Solar radiation, vegetated ground, no media, daily, total, megajoules per square meter",0,55,"MJ/m2/d","YES","decimal",9,2,"---"]
["Characterization","WeatherDaily","Solar_Radn_Bare","Solar radiation, bare ground, no media, daily, total, megajoules per square meter",0,55,"MJ/m2/d","YES","decimal",9,2,"---"]
["Characterization","WeatherDaily","SoilTemp_5cm","Temperature, soil, daily, 5cm, mean, degrees Celsius",-20,40,"degrees Celsius","YES","decimal",9,2,"---"]
["Characterization","WeatherDaily","SoilTemp_10cm","Temperature, soil, daily, 10cm, mean, degrees Celsius",-20,40,"degrees Celsius","YES","decimal",9,2,"---"]
["Characterization","WeatherDaily","Wind_Direction","Wind direction air, daily, mean, degrees from north",0,360,"degrees from north","YES","Long Integer","---","---","---"]
["Characterization","WeatherDaily","Open_Pan_Evaporation","Evaporation, open pan, no media, daily, millimeters",0,15,"mm/d","YES","decimal",10,0,"---"]
["Characterization","WeatherDaily","Closed_Pan_Evaporation","Evaporation, closed pan, no media, daily, millimeters",0,15,"mm/d","YES","decimal",10,0,"---"]
["Characterization","WeatherDaily","Wet_Dry_N_Deposition","Atmospheric nitrogen deposition, air, daily, kilograms per hectare",0,0.5,"kg/ha/d","YES","decimal",10,0,"---"]
["Characterization","WeatherDaily","Total_Net_Radn","Solar radiation, total, no media, daily, megajoules per square meter",0,55,"MJ/m2/d","YES","decimal",9,2,"---"]
["Characterization","WeatherDaily","Snow","Precipitation, snow, no media, daily, millimeters",0,1000,"mm/d","YES","decimal",10,0,"---"]
["---","---","---","---","---","---","---","---","---","---","---","---"]
["Management","MgtAmendments","Exp_UnitID","Experimental Unit ID","a","z","none","NO","Memo","---","---",63999]
["Management","MgtAmendments","Date","Date","1900-01-01",{"$f":"TODAY()","v":"2014-08-13"},"mm/dd/yyyy","NO","Date/Time","---","---","---"]
["Management","MgtAmendments","TreatmentID","Treatment identifier","a","z","none","YES","Memo","---","---",63999]
["Management","MgtAmendments","Crop","Crop name","a","z","none","YES","Memo","---","---",63999]
["Management","MgtAmendments","Amend_Placement","Amendment placement","a","z","none","YES","Memo","---","---",63999]
["Management","MgtAmendments","Amend_Depth","Amendment depth, centimeters",0,50,"cm","YES","decimal",9,3,"---"]
["Management","MgtAmendments","Amend_Type","Amendment type","a","z","none","YES","Memo","---","---",63999]
["Management","MgtAmendments","Total_Amend_Amount","Amendment added, kg per hectare",0,500,"kg/ha","YES","decimal",9,3,"---"]
["Management","MgtAmendments","Total_N_Amount","Total amount, amendment, kilograms nitrogen per hectare",0,500,"kg N/ha","YES","decimal",9,3,"---"]
["Management","MgtAmendments","Total_P_Amount","P amount, kilograms phosphorus per hectare",0,500,"kg P/ha","YES","decimal",9,3,"---"]
["Management","MgtAmendments","Total_K_Amount","K amount, kilograms potassium per hectare",0,500,"kg K/ha","YES","decimal",9,3,"---"]
["Management","MgtAmendments","Total_Pest_Amount","Pesticide active ingredient amount, kilograms per hectare",0,null,"kg/ha","YES","decimal",9,3,"---"]
["Management","MgtAmendments","Active_Ingredient_Type","Pesticide type","a","z","none","YES","Memo","---","---",63999]
["Management","MgtAmendments","Pest_Target","Pesticide target","a","z","none","YES","Memo","---","---",63999]
["Management","MgtAmendments","Pest_Placement","Pesticide placement","a","z","none","YES","decimal",9,3,"---"]
["Management","MgtAmendments","Irrigation_Amount","Water, irrigation applied, no media, centimeters",0,10,"cm","YES","decimal",9,3,"---"]
["Management","MgtAmendments","Irrigation_Type","Irrigation type","a","z","none","YES","Memo","---","---",63999]
["Management","MgtAmendments","Irrigation_N","Nitrogen, irrigation additive, no media, milligrams per liter",0,1000,"mg/L","YES","decimal",9,3,"---"]
["---","---","---","---","---","---","---","---","---","---","---","---"]
["Management","MgtPlanting","Exp_UnitID","Experimental Unit ID","a","z","none","NO","Memo","---","---",63999]
["Management","MgtPlanting","Date","Date","1900-01-01",{"$f":"TODAY()","v":"2014-08-13"},"mm/dd/yyyy","NO","Date/Time","---","---","---"]
["Management","MgtPlanting","TreatmentID","Treatment identifier","a","z","none","YES","Memo","---","---",63999]
["Management","MgtPlanting","Crop","Crop name, plant type","a","z","none","YES","Memo","---","---",63999]
["Management","MgtPlanting","Cultivar","Cultivar, plant type","a","z","none","YES","Memo","---","---",63999]
["Management","MgtPlanting","Planting_Rate","Plant rate, operations, number of seeds/seedlings per hectare",0,150000,"# of seeds/ha","YES","Long Integer","---","---","---"]
["Management","MgtPlanting","Planting_Density","Plant density, operations, kilograms per hectare",0,150000,"kg/ha","YES","Long Integer","---","---","---"]
["Management","MgtPlanting","Planting_Method","Plant method, operations","a","z","none","YES","Memo","---","---",63999]
["Management","MgtPlanting","Planting_Depth","Plant depth, operations, soil, centimeters",0,50,"cm","YES","decimal",9,3,"---"]
["Management","MgtPlanting","Row_Width","Row width, soil, operations, centimeters",0,100,"cm","YES","decimal",9,3,"---"]
["---","---","---","---","---","---","---","---","---","---","---","---"]
["Management","MgtTillage","Exp_UnitID","Experimental Unit ID","a","z","none","NO","Memo","---","---",63999]
["Management","MgtTillage","Date","Date","1900-01-01",{"$f":"TODAY()","v":"2014-08-13"},"mm/dd/yyyy","NO","Date/Time","---","---","---"]
["Management","MgtTillage","TreatmentID","Treatment identifier","a","z","none","YES","Memo","---","---",63999]
["Management","MgtTillage","Crop","Crop name","a","z","none","YES","Memo","---","---",63999]
["Management","MgtTillage","Tillage_Event","Tillage Event, operations","a","z","none","YES","Memo","---","---",63999]
["Management","MgtTillage","Tillage_Event_Depth","Event depth, operations, soil, centimeters",0,200,"cm","YES","decimal",9,3,"---"]
["Management","MgtTillage","Tillage_Event_Method","Event method, operations","a","z","none","YES","Memo","---","---",63999]
["---","---","---","---","---","---","---","---","---","---","---","---"]
["Management","MgtGrowthStages","Exp_UnitID","Experimental Unit ID","a","z","none","NO","Memo","---","---",63999]
["Management","MgtGrowthStages","Date","Date","1900-01-01",{"$f":"TODAY()","v":"2014-08-13"},"mm/dd/yyyy","NO","Date/Time","---","---","---"]
["Management","MgtGrowthStages","TreatmentID","Treatment identifier","a","z","none","YES","Memo","---","---",63999]
["Management","MgtGrowthStages","Crop","Crop name","a","z","none","YES","Memo","---","---",63999]
["Management","MgtGrowthStages","Growth_Stage","Growth stage","a","z","none","YES","Memo","---","---",63999]
["---","---","---","---","---","---","---","---","---","---","---","---"]
["Management","MgtResidue","Exp_UnitID","Experimental Unit ID","a","z","none","NO","Memo","---","---",63999]
["Management","MgtResidue","Date","Date","1900-01-01",{"$f":"TODAY()","v":"2014-08-13"},"mm/dd/yyyy","NO","Date/Time","---","---","---"]
["Management","MgtResidue","TreatmentID","Treatment identifier","a","z","none","YES","Memo","---","---",63999]
["Management","MgtResidue","Crop","Crop name","a","z","none","YES","Memo","---","---",63999]
["Management","MgtResidue","Equipment_used_for_non-grain_harvest","Equipment type","a","z","none","YES","Memo","---","---",63999]
["Management","MgtResidue","Cutting_height_or_Material_harvested","Height at cutting","a","z","none","YES","Memo","---","---",63999]
["Management","MgtResidue","Percent_rows_harvested","Rows harvested, percent",0,100,"%","YES","Long Integer","---","---","---"]
["Management","MgtResidue","If_perennial_stand_age_in_years","Age at harvest, plant, year",0,200,"years","YES","decimal",9,3,"---"]
["Management","MgtResidue","If_annual_growth_stage_at_residue_harvest","Stage at harvest","a","z","none","YES","Memo","---","---",63999]
["---","---","---","---","---","---","---","---","---","---","---","---"]
["Management","MgtGrazing","Exp_UnitID","Experimental Unit ID","a","z","none","NO","Memo","---","---",63999]
["Management","MgtGrazing","Start_Date","Start date","1900-01-01",{"$f":"TODAY()","v":"2014-08-13"},"mm/dd/yyyy","NO","Date/Time","---","---","---"]
["Management","MgtGrazing","End_Date","End date","1900-01-01","2014-08-13","mm/dd/yyyy","NO","Date/Time","---","---","---"]
["Management","MgtGrazing","TreatmentID","Treatment identifier","a","z","none","YES","Memo","---","---",63999]
["Management","MgtGrazing","Stocking_Rate","Stocking rate, operations, number of animals per hectare",0,200,"# of animals/ha","YES","decimal",9,3,"---"]
["Management","MgtGrazing","Animal_Species","Species list, animal type","a","z","none","YES","Memo","---","---",63999]
["Management","MgtGrazing","Animal_Class","Class list, animal type","a","z","none","YES","Memo","---","---",63999]
["Management","MgtGrazing","Other_Events","Other grazing events, operations","a","z","none","YES","Memo","---","---",63999]
["Management","MgtGrazing","Burn_Frequency","Burn frequency, operations, number of years between burn events",0,10,"years/burn","YES","decimal",9,3,"---"]
["Management","MgtGrazing","Burn_Intensity","Burn intensity, operations","a","z","none","YES","Memo","---","---",63999]
["---","---","---","---","---","---","---","---","---","---","---","---"]
["Measurement","MeasSoilPhys","Exp_UnitID","Experimental Unit ID","a","z","none","NO","Memo","---","---",63999]
["Measurement","MeasSoilPhys","Date","Date","1900-01-01",{"$f":"TODAY()","v":"2014-08-13"},"mm/dd/yyyy","NO","Date/Time","---","---","---"]
["Measurement","MeasSoilPhys","TreatmentID","Treatment identifier","a","z","none","YES","Memo","---","---",63999]
["Measurement","MeasSoilPhys","Upper","Soil horizon depth, upper, centimeter",0,200,"cm","YES","Long Integer","---","---","---"]
["Measurement","MeasSoilPhys","Lower","Soil horizon depth, lower, centimeter",0,200,"cm","YES","Long Integer","---","---","---"]
["Measurement","MeasSoilPhys","Sand","Sand, soil, percent",0,100,"%","YES","decimal",9,3,"---"]
["Measurement","MeasSoilPhys","Silt","Silt, soil, percent",0,100,"%","YES","decimal",9,3,"---"]
["Measurement","MeasSoilPhys","Clay","Clay, soil, percent",0,100,"%","YES","decimal",9,3,"---"]
["Measurement","MeasSoilPhys","Bulk_Density","Bulk density, soil, grams per centimeter squared",0,3,"g/cm3","YES","decimal",9,3,"---"]
["Measurement","MeasSoilPhys","WP","Wilting point, soil, percent volume",5,50,"% vol (cu cm H2O/cu cm soil*100)","YES","decimal",9,3,"---"]
["Measurement","MeasSoilPhys","FC","Field capacity, soil, percent volume",0,0.01,"% vol (cu cm H2O/cu cm soil*100)","YES","decimal",9,3,"---"]
["Measurement","MeasSoilPhys","Ksat","Saturated hydraulic conductivity, soil, centimeters per second",0,1000,"cm/sec","YES","decimal",9,3,"---"]
["Measurement","MeasSoilPhys","MRC_MPA","Moisture release curve, soil, was it measured","Yes","No","none","YES","Yes/No","---","---","---"]
["Measurement","MeasSoilPhys","Soil_Heat_Flux","Soil heat flux, soil, megajoules per square meter",0,null,"MJ/m2","YES","decimal",9,3,"---"]
["Measurement","MeasSoilPhys","Macro-aggregation","Macroaggregation, percent",0,100,"%","YES","decimal",9,3,"---"]
["Measurement","MeasSoilPhys","Water_Stable_Aggregates","Water Stable Aggregate size, soil, ???units???",0,null,"???","YES","decimal",9,3,"---"]
["Measurement","MeasSoilPhys","Mid_Near_Infrared_Total_C","Near Infrared Total carbon, soil, grams C per kilogram soil",0,1000,"g/kg","YES","decimal",9,3,"---"]
["Measurement","MeasSoilPhys","Bulk_Density_STD","Bulk density, soil, StdDev, grams per centimeter squared",0,3,"g/cm3","YES","decimal",9,3,"---"]
["Measurement","MeasSoilPhys","WP_STD","Wilting point, soil, StdDev, percent volume",0,50,"% vol (cu cm H2O/cu cm soil*100)","YES","decimal",9,3,"---"]
["Measurement","MeasSoilPhys","FC_STD","Field capacity, soil, StdDev, percent volume",0,0.01,"% vol (cu cm H2O/cu cm soil*100)","YES","decimal",9,3,"---"]
["Measurement","MeasSoilPhys","Ksat_STD","Saturated hydraulic conductivity, soil, StdDev, centimeters per second",0,1000,"cm/sec","YES","decimal",9,3,"---"]
["Measurement","MeasSoilPhys","Soil_Heat_Flux_STD","Soil heat flux, soil, StdDev, megajoules per square meter",0,null,"cmol/kg","YES","decimal",9,3,"---"]
["Measurement","MeasSoilPhys","Macro-aggregation_STD","Macroaggregation, percent StdDev",0,100,"%","YES","decimal",9,3,"---"]
["Measurement","MeasSoilPhys","Water_Stable_Aggregates_STD","Water Stable Aggregate size, soil, StdDev, ???units???",0,null,"???","YES","decimal",9,3,"---"]
["Measurement","MeasSoilPhys","Mid_Near_Infrared_Total_C_STD","Near Infrared Total carbon, soil, StdDev, grams C per kilogram soil",0,1000,"g/kg","YES","decimal",9,3,"---"]
["---","---","---","---","---","---","---","---","---","---","---","---"]
["Measurement","MeasSoilChem","Exp_UnitID","Experimental Unit ID","a","z","none","NO","Memo","---","---",63999]
["Measurement","MeasSoilChem","Date","Measurement identifier","1900-01-01",{"$f":"TODAY()","v":"2014-08-13"},"mm/dd/yyyy","NO","Date/Time","---","---","---"]
["Measurement","MeasSoilChem","TreatmentID","Treatment identifier","a","z","none","YES","Memo","---","---",63999]
["Measurement","MeasSoilChem","Upper","Upper soil layer, soil, centimeters",0,200,"cm","YES","Long Integer","---","---","---"]
["Measurement","MeasSoilChem","Lower","Lower soil layer, soil, centimeters",0,200,"cm","YES","Long Integer","---","---","---"]
["Measurement","MeasSoilChem","pH","pH, soil, no units",0,14,"no units","YES","decimal",9,2,"---"]
["Measurement","MeasSoilChem","TSC","Total soil carbon, soil, mean or single measurement, grams C per kilogram soil",0,1000,"g/kg","YES","decimal",9,3,"---"]
["Measurement","MeasSoilChem","TSN","Total soil nitrogen, soil, mean or single measurement, grams N per kilogram soil",0,1000,"g/kg","YES","decimal",9,3,"---"]
["Measurement","MeasSoilChem","Inorganic_C","Inorganic soil carbon, soil, mean or single measurement, grams C per kilogram soil",0,1000,"g/kg","YES","decimal",9,3,"---"]
["Measurement","MeasSoilChem","Organic_C","Soil particulate carbon, soil, mean or single measurement, grams C per kilogram soil",0,1000,"g/kg","YES","decimal",9,3,"---"]
["Measurement","MeasSoilChem","Cmin","Mineral associated carbon, soil, mean or single measurement, grams C per kilogram soil",0,1000,"g/kg","YES","decimal",9,3,"---"]
["Measurement","MeasSoilChem","CEC","Cation exchange capacity, soil, cmol per kilogram soil",0,null,"cmol/kg","YES","decimal",9,3,"---"]
["Measurement","MeasSoilChem","Electrical_Conductivity","Soil electrical conductivity, soil, siemens per meter",0,1,"siemens/m","YES","decimal",9,3,"---"]
["Measurement","MeasSoilChem","Soluble_Organic_C","Soluble organic carbon, soil, milligrams C per kilogram soil",0,1000000,"mg C/kg","YES","decimal",9,3,"---"]
["Measurement","MeasSoilChem","Ammonium_NH4","Ammonium, soil, milligrams of N per kilogram soil",0,1000000,"mg N/kg","YES","decimal",9,3,"---"]
["Measurement","MeasSoilChem","Nitrate_NO3","Nitrate, soil, milligrams of N per kilogram soil",0,1000000,"mg N/kg","YES","decimal",9,3,"---"]
["Measurement","MeasSoilChem","Phosphorous_P","Phosphorus, soil, milligrams P per kilogram soil",0,1000000,"mg P/kg","YES","decimal",9,3,"---"]
["Measurement","MeasSoilChem","Potassium_K","Potassium, soil, milligrams K per kilogram soil",0,1000000,"mg K/kg","YES","decimal",9,3,"---"]
["Measurement","MeasSoilChem","Ca","Calcium, soil, milligrams Ca per kilogram soil",0,1000000,"mg Ca/kg","YES","decimal",9,3,"---"]
["Measurement","MeasSoilChem","Mg","Magnesium, soil, milligrams Mg per kilogram soil",0,1000000,"mg Mg/kg","YES","decimal",9,3,"---"]
["Measurement","MeasSoilChem","Cu","Copper, soil, milligrams Cu per kilogram soil",0,1000000,"mg Cu/kg","YES","decimal",9,3,"---"]
["Measurement","MeasSoilChem","Fe","Iron, soil, milligrams Fe per kilogram soil",0,1000000,"mg Fe/kg","YES","decimal",9,3,"---"]
["Measurement","MeasSoilChem","Mn","Manganese, soil, milligrams Mn per kilogram soil",0,1000000,"mg Mn/kg","YES","decimal",9,3,"---"]
["Measurement","MeasSoilChem","Zn","Zinc, soil, milligrams Zn per kilogram soil",0,1000000,"mg Zn/kg","YES","decimal",9,3,"---"]
["Measurement","MeasSoilChem","Potentially_Mineralizable_N","Potentially Mineralizable N, soil, grams N per kilogram soil",0,1000,"g/kg","YES","decimal",9,3,"---"]
["Measurement","MeasSoilChem","Nitrite","Nitrite, soil, milligrams per kilogram soil",0,1000000,"mg/kg","YES","decimal",9,3,"---"]
["Measurement","MeasSoilChem","pH_STD","pH, soil, StdDev, no units",0,14,"no units","YES","decimal",9,3,"---"]
["Measurement","MeasSoilChem","TSC_STD","Total soil carbon, soil, StdDev, grams C per kilogram soil",0,1000,"g/kg","YES","decimal",9,3,"---"]
["Measurement","MeasSoilChem","TSN_STD","Total soil nitrogen, soil, StdDev, grams N per kilogram soil",0,1000,"g/kg","YES","decimal",9,3,"---"]
["Measurement","MeasSoilChem","Inorganic_C_STD","Inorganic soil carbon, soil, StdDev, grams C per kilogram soil",0,1000,"g/kg","YES","decimal",9,3,"---"]
["Measurement","MeasSoilChem","Organic_C_STD","Soil particulate carbon, soil, StdDev, grams C per kilogram soil",0,1000,"g/kg","YES","decimal",9,3,"---"]
["Measurement","MeasSoilChem","Cmin_STD","Mineral associated carbon, soil, StdDev, grams C per kilogram soil",0,1000,"g/kg","YES","decimal",9,3,"---"]
["Measurement","MeasSoilChem","CEC_STD","Cation exchange capacity, soil, StdDev, cmol per kilogram soil",0,null,"cmol/kg","YES","decimal",9,3,"---"]
["Measurement","MeasSoilChem","Electrical_Conductivity_STD","Soil electrical conductivity, soil, StdDev, siemens per meter",0,1,"siemens/m","YES","decimal",9,3,"---"]
["Measurement","MeasSoilChem","Soluble_Organic_C_STD","Soluble organic carbon, soil, StdDev, milligrams C per kilogram soil",0,1000000,"mg C/kg","YES","decimal",9,3,"---"]
["Measurement","MeasSoilChem","Ammonium_NH4_STD","Ammonium, soil, StdDev, milligrams of N per kilogram soil",0,1000000,"mg N/kg","YES","decimal",9,3,"---"]
["Measurement","MeasSoilChem","Nitrate_NO3_STD","Nitrate, soil, StdDev, milligrams of N per kilogram soil",0,1000000,"mg N/kg","YES","decimal",9,3,"---"]
["Measurement","MeasSoilChem","Phosphorous_P_STD","Phosphorus, soil, StdDev, milligrams P per kilogram soil",0,1000000,"mg P/kg","YES","decimal",9,3,"---"]
["Measurement","MeasSoilChem","Potassium_K_STD","Potassium, soil, StdDev, milligrams K per kilogram soil",0,1000000,"mg K/kg","YES","decimal",9,3,"---"]
["Measurement","MeasSoilChem","Ca_STD","Calcium, soil, StdDev, milligrams Ca per kilogram soil",0,1000000,"mg Ca/kg","YES","decimal",9,3,"---"]
["Measurement","MeasSoilChem","Mg_STD","Magnesium, soil, StdDev, milligrams Mg per kilogram soil",0,1000000,"mg Mg/kg","YES","decimal",9,3,"---"]
["Measurement","MeasSoilChem","Cu_STD","Copper, soil, StdDev, milligrams Cu per kilogram soil",0,1000000,"mg Cu/kg","YES","decimal",9,3,"---"]
["Measurement","MeasSoilChem","Fe_STD","Iron, soil, StdDev, milligrams Fe per kilogram soil",0,1000000,"mg Fe/kg","YES","decimal",9,3,"---"]
["Measurement","MeasSoilChem","Mn_STD","Manganese, soil, StdDev, milligrams Mn per kilogram soil",0,1000000,"mg Mn/kg","YES","decimal",9,3,"---"]
["Measurement","MeasSoilChem","Zn_STD","Zinc, soil, StdDev, milligrams Zn per kilogram soil",0,1000000,"mg Zn/kg","YES","decimal",9,3,"---"]
["Measurement","MeasSoilChem","Potentially_Mineralizable_N_STD","Potentially Mineralizable N, soil, StdDev, grams N per kilogram soil",0,1000,"g/kg","YES","decimal",9,3,"---"]
["Measurement","MeasSoilChem","Nitrite_STD","Nitrite, soil, StdDev, milligrams per kilogram soil",0,1000000,"mg/kg","YES","decimal",9,3,"---"]
["---","---","---","---","---","---","---","---","---","---","---","---"]
["Measurement","MeasSoilBiol","Exp_UnitID","Experimental Unit ID","a","z","none","NO","Memo","---","---",63999]
["Measurement","MeasSoilBiol","Date","Measurement identifier","1900-01-01",{"$f":"TODAY()","v":"2014-08-13"},"mm/dd/yyyy","NO","Date/Time","---","---","---"]
["Measurement","MeasSoilBiol","TreatmentID","Treatment identifier","a","z","none","YES","Memo","---","---",63999]
["Measurement","MeasSoilBiol","Upper","Upper soil layer, soil, centimeters",0,200,"cm","YES","Long Integer","---","---","---"]
["Measurement","MeasSoilBiol","Lower","Lower soil layer, soil, centimeters",0,200,"cm","YES","Long Integer","---","---","---"]
["Measurement","MeasSoilBiol","Beta_Glucosidase","Beta_Glucosidase, soil, milligram ρ-nitrophenol released per kilogram soil per hour",0,null,"mg ρ-nitrophenol released kg-1 soil  h-1","YES","decimal",9,3,"---"]
["Measurement","MeasSoilBiol","Beta_Glucosaminidase_NAG","Beta_Glucosaminidase_NAG, soil, milligram ρ-nitrophenol released per kilogram soil per hour",0,null,"mg ρ-nitrophenol released kg-1 soil  h-1","YES","decimal",9,3,"---"]
["Measurement","MeasSoilBiol","Acid_Phosphatase","Acid_Phosphatase, soil, milligram ρ-nitrophenol per kilogram soil per hour",0,null,"mg ρ-n per kg-1 soil  h-0","YES","decimal",9,3,"---"]
["Measurement","MeasSoilBiol","Alkaline_Phosphatase","Alkaline_Phosphatase, soil, milligram ρ-nitrophenol per kilogram soil per hour",0,null,"mg ρ-n per kg-1 soil  h-1","YES","decimal",9,3,"---"]
["Measurement","MeasSoilBiol","Fluorescein_Diacetate_Hydrolysis","Fluorescein_Diacetate_Hydrolysis, soil, milligram fluorescein per kilogram soil per hour",0,null,"mg kg-1 h-1","YES","decimal",9,3,"---"]
["Measurement","MeasSoilBiol","Glomalin","Glomalin, soil, gram per kilogram",0,null,"g/kg","YES","decimal",9,3,"---"]
["Measurement","MeasSoilBiol","FAME","Fatty Acid Methyl Esters, soil, were they measured","Yes","No","none","YES","Yes/No","---","---","---"]
["Measurement","MeasSoilBiol","PLFA","Phospholipid Fatty Acids, soil, were they measured","Yes","No","none","YES","Yes/No","---","---","---"]
["Measurement","MeasSoilBiol","DNA","DNA, soil, was it measured","Yes","No","none","YES","Yes/No","---","---","---"]
["Measurement","MeasSoilBiol","Identifiable_Plant_Material","Identifiable Plant Material, soil, grams carbon per kilogram soil",0,1000,"g C/kg","YES","decimal",9,3,"---"]
["Measurement","MeasSoilBiol","POM","Particulate organic matter, soil, mean or single measurement, grams C per kilogram soil",0,1000,"g C/kg","YES","decimal",9,3,"---"]
["Measurement","MeasSoilBiol","MoBio_Carbon","Microbial biomass carbon, soil, milligrams C per kilogram soil",0,1000000,"mg C/kg","YES","decimal",9,3,"---"]
["Measurement","MeasSoilBiol","MoBio_Nitrogen","Microbial biomass nitrogen, soil, milligrams N per kilogram soil",0,1000000,"mg N/kg","YES","decimal",9,3,"---"]
["Measurement","MeasSoilBiol","Beta_Glucosidase_STD","Beta_Glucosidase, soil, StdDev, milligram ρ-nitrophenol released per kilogram soil per hour",0,null,"mg ρ-nitrophenol released kg-1 soil  h-1","YES","decimal",9,3,"---"]
["Measurement","MeasSoilBiol","Beta_Glucosaminidase_NAG_STD","Beta_Glucosaminidase_NAG, soil, StdDev, milligram ρ-nitrophenol released per kilogram soil per hour",0,null,"mg ρ-nitrophenol released kg-1 soil  h-1","YES","decimal",9,3,"---"]
["Measurement","MeasSoilBiol","Acid_Phosphatase_STD","Acid_Phosphatase, soil, StdDev, milligram ρ-nitrophenol per kilogram soil per hour",0,null,"mg ρ-n per kg-1 soil  h-0","YES","decimal",9,3,"---"]
["Measurement","MeasSoilBiol","Alkaline_Phosphatase_STD","Alkaline_Phosphatase, soil, StdDev, milligram ρ-nitrophenol per kilogram soil per hour",0,null,"mg ρ-n per kg-1 soil  h-1","YES","decimal",9,3,"---"]
["Measurement","MeasSoilBiol","Fluorescein_Diacetate_Hydrolysis_STD","Fluorescein_Diacetate_Hydrolysis, soil, StdDev, milligram fluorescein per kilogram soil per hour",0,null,"mg kg-1 h-1","YES","decimal",9,3,"---"]
["Measurement","MeasSoilBiol","Glomalin_STD","Glomalin, soil, StdDev, gram per kilogram",0,1000,"g/kg","YES","decimal",9,3,"---"]
["Measurement","MeasSoilBiol","Identifiable_Plant_Material_STD","Identifiable Plant Material, soil, StdDev, grams carbon per kilogram soil",0,1000,"g C/kg","YES","decimal",9,3,"---"]
["Measurement","MeasSoilBiol","POM_STD","Particulate organic matter, soil, StdDev, grams C per kilogram soil",0,1000,"g C/kg","YES","decimal",9,3,"---"]
["Measurement","MeasSoilBiol","MoBio_Carbon_STD","Microbial biomass carbon, soil, StdDev, milligrams C per kilogram soil",0,1000000,"mg C/kg","YES","decimal",9,3,"---"]
["Measurement","MeasSoilBiol","MoBio_Nitrogen_STD","Microbial biomass nitrogen, soil, StdDev, milligrams N per kilogram soil",0,1000000,"mg N/kg","YES","decimal",9,3,"---"]
["---","---","---","---","---","---","---","---","---","---","---","---"]
["Measurement","MeasSoilCover","Exp_UnitID","Experimental Unit ID","a","z","none","NO","Memo","---","---",63999]
["Measurement","MeasSoilCover","Date","Date","1900-01-01",{"$f":"TODAY()","v":"2014-08-13"},"mm/dd/yyyy","NO","Date/Time","---","---","---"]
["Measurement","MeasSoilCover","TreatmentID","Treatment identifier","a","z","none","YES","Memo","---","---",63999]
["Measurement","MeasSoilCover","Timing_Descriptor","When this was measured","a","z","none","YES","Memo","---","---",63999]
["Measurement","MeasSoilCover","Crop","Crop name","a","z","none","YES","Memo","---","---",63999]
["Measurement","MeasSoilCover","Soil_Covered_with_Residue","Residue cover, soil, percent",0,100,"percent","YES","Long Integer","---","---","---"]
["---","---","---","---","---","---","---","---","---","---","---","---"]
["Measurement","MeasGHGFlux","Exp_UnitID","Experimental Unit ID","a","z","none","NO","Memo","---","---",63999]
["Measurement","MeasGHGFlux","Date","Date","1900-01-01",{"$f":"TODAY()","v":"2014-08-13"},"mm/dd/yyyy","NO","Date/Time","---","---","---"]
["Measurement","MeasGHGFlux","Time","Sampling time, hours and minutes","00:01:00","23:59:59","Hours:minutes","YES","Date/Time","---","---",63999]
["Measurement","MeasGHGFlux","TreatmentID","Treatment identifier","a","z","none","YES","Memo","---","---",63999]
["Measurement","MeasGHGFlux","Crop","Crop name","a","z","none","YES","Memo","---","---",63999]
["Measurement","MeasGHGFlux","Chamber_Placement","Chamber placement","a","z","none","YES","Memo","---","---",63999]
["Measurement","MeasGHGFlux","N2O","Nitrous oxide, air, daily, mean or single measurement, grams N per hectare",-100,10000,"g N/ha/d","YES","decimal",9,3,"---"]
["Measurement","MeasGHGFlux","N2O_Interp_Obs","N2O Measurement value type",0,1,"g N/ha/d","YES","Long Integer","---","---","---"]
["Measurement","MeasGHGFlux","CO2","Carbon dioxide, air, daily, mean or single measurement, grams C per hectare",-100,10000,"g C/ha/d","YES","decimal",9,3,"---"]
["Measurement","MeasGHGFlux","CO2_Interp_Obs","CO2 Measurement value type",0,1,"g C/ha/d","YES","Long Integer","---","---","---"]
["Measurement","MeasGHGFlux","CH4","Methane, air, daily, mean or single measurement, grams C per hectare",-10000,10000,"g C/ha/d","YES","decimal",9,3,"---"]
["Measurement","MeasGHGFlux","CH4_Interp_Obs","CH4 Measurement value type",0,1,"g C/ha/d","YES","Long Integer","---","---","---"]
["Measurement","MeasGHGFlux","Air_Temp","Temperature, air, sample period, mean or single measurement, degrees Celsius",-20,40,"degrees Celsius","YES","decimal",9,3,"---"]
["Measurement","MeasGHGFlux","Soil_Temp","Temperature, soil, sample period, mean or single measurement, degrees Celsius",-20,40,"degrees Celsius","YES","decimal",9,3,"---"]
["Measurement","MeasGHGFlux","Soil_Moisture","Soil moisture, soil, mean or single measurement, percent volume",1,100,"% vol (cu cm H2O/cu cm soil*100)","YES","decimal",9,3,"---"]
["Measurement","MeasGHGFlux","Soil_Moisture_Depth","Depth of soil moisture sample, soil, centimeters",0,100,"cm","YES","decimal",9,3,"---"]
["Measurement","MeasGHGFlux","N2O_STD","Nitrous oxide, air, daily, StdDev, grams N per hectare",-100,10000,"g N/ha/d","YES","decimal","---","---","---"]
["Measurement","MeasGHGFlux","CO2_STD","Carbon dioxide, air, daily, StdDev, grams C per hectare",-100,10000,"g C/ha/d","YES","decimal","---","---","---"]
["Measurement","MeasGHGFlux","CH4_STD","Methane, air, daily, StdDev, grams C per hectare",-10000,10000,"g C/ha/d","YES","decimal","---","---","---"]
["Measurement","MeasGHGFlux","Air_Temp_STD","Temperature, air, StdDev, degrees Celsius",-20,40,"degrees Celsius","YES","decimal",9,3,"---"]
["Measurement","MeasGHGFlux","Soil_Temp_STD","Temperature, soil, StdDev, degrees Celsius",-20,40,"degrees Celsius","YES","decimal",9,3,"---"]
["Measurement","MeasGHGFlux","Soil_Moisture_STD","Soil moisture, soil, StdDev, percent volume",1,100,"% vol (cu cm H2O/cu cm soil*100)","YES","decimal",9,3,"---"]
["---","---","---","---","---","---","---","---","---","---","---","---"]
["Measurement","MeasHarvestRemoval","Exp_UnitID","Experimental Unit ID","a","z","none","NO","Memo","---","---",63999]
["Measurement","MeasHarvestRemoval","Date","Date","1900-01-01",{"$f":"TODAY()","v":"2014-08-13"},"mm/dd/yyyy","NO","Date/Time","---","---","---"]
["Measurement","MeasHarvestRemoval","TreatmentID","Treatment identifier","a","z","none","YES","Memo","---","---",63999]
["Measurement","MeasHarvestRemoval","Growth_Stage","Growth stage","a","z","none","YES","Memo","---","---",63999]
["Measurement","MeasHarvestRemoval","Crop","Crop name","a","z","none","YES","Memo","---","---",63999]
["Measurement","MeasHarvestRemoval","Harvested_Fraction","Harvest Fraction","a","z","none","YES","Memo","---","---",63999]
["Measurement","MeasHarvestRemoval","Corn_Ear_Height","Corn height, plant tissue, centimeters",0,50000,"cm","YES","decimal",9,3,"---"]
["Measurement","MeasHarvestRemoval","Above_Ground_Biomass","Biomass, aboveground, plant tissue, mean or single measurement, kilograms per hectare",0,50000,"kg biomass/ha","YES","decimal",9,3,"---"]
["Measurement","MeasHarvestRemoval","Unit_Grain_Weight","Individual kernel weight, plant tissue, mean or single measurement, megagrams",0,1000,"mg biomass","YES","decimal",9,3,"---"]
["Measurement","MeasHarvestRemoval","Grain_DryMatter","Grain harvest, plant tissue, mean or single measurement, kilograms per hectare",0,50000,"kg biomass/ha","YES","decimal",9,3,"---"]
["Measurement","MeasHarvestRemoval","Grain_MoisturePct","Grain moisture content, plant tissue, mean or single measurement, percent",0,100,"%","YES","decimal",9,3,"---"]
["Measurement","MeasHarvestRemoval","Grain_C","Carbon, grain, plant tissue, mean or single measurement, kilograms of carbon per hectare",0,25000,"kg C/ha","YES","decimal",9,3,"---"]
["Measurement","MeasHarvestRemoval","Grain_N","Nitrogen, grain, plant tissue, mean or single measurement, kilograms of nitrogen per hectare",0,10000,"kg N/ha","YES","decimal",9,3,"---"]
["Measurement","MeasHarvestRemoval","Harv_Res_DryMatter","Crop residue, harvested aboveground, plant tissue, mean or single measurement, kilograms per hectare",0,50000,"kg biomass/ha","YES","decimal",9,3,"---"]
["Measurement","MeasHarvestRemoval","HarvRes_MoisturePct","Crop residue moisture content, plant tissue, mean or single measurement, percent",0,100,"%","YES","decimal",9,3,"---"]
["Measurement","MeasHarvestRemoval","Harv_Res_C","Carbon, harvested crop residue, plant tissue, mean or single measurement, kilograms of carbon per hectare",0,25000,"kg C/ha","YES","decimal",9,3,"---"]
["Measurement","MeasHarvestRemoval","Harv_Res_N","Nitrogen, harvested crop residue, plant tissue, mean or single measurement, kilograms of carbon per hectare",0,25000,"kg N/ha","YES","decimal",9,3,"---"]
["Measurement","MeasHarvestRemoval","nonHarv_Res_DryMatter","Crop residue, non harvested aboveground, plant tissue, mean or single measurement, kilograms per hectare",0,5000,"kg biomass/ha","YES","decimal",9,3,"---"]
["Measurement","MeasHarvestRemoval","nonHarvRes_MoisturePct","Crop residue moisture content, plant tissue, mean or single measurement, percent",0,100,"%","YES","decimal",9,3,"---"]
["Measurement","MeasHarvestRemoval","nonHarv_Res_C","Carbon, non harvested crop residue, plant tissue, mean or single measurement, kilograms of carbon per hectare",0,25000,"kg C/ha","YES","decimal",9,3,"---"]
["Measurement","MeasHarvestRemoval","nonHarv_Res_N","Nitrogen, non harvested crop residue, plant tissue, mean or single measurement, kilograms of nitrogen per hectare",0,10000,"kg N/ha","YES","decimal",9,3,"---"]
["Measurement","MeasHarvestRemoval","Root_DryMatter","Crop root, biomass, plant tissue, mean or single measurement, kilograms per hectare",0,50000,"kg biomass/ha","YES","decimal",9,3,"---"]
["Measurement","MeasHarvestRemoval","Root_MoisturePct","Crop root, moisture content, mean or single measurement, plant tissue, percent",0,100,"%","YES","decimal",9,3,"---"]
["Measurement","MeasHarvestRemoval","Root_C","Carbon, crop root, plant tissue, mean or single measurement, kilograms of carbon per hectare",0,25000,"kg C/ha","YES","decimal",9,3,"---"]
["Measurement","MeasHarvestRemoval","Root_N","Nitrogen, crop root, plant tissue, mean or single measurement, kilograms of nitrogen per hectare",0,10000,"kg N/ha","YES","decimal",9,3,"---"]
["Measurement","MeasHarvestRemoval","Corn_Ear_Height_STD","Corn height, plant tissue, StdDev. centimeters",0,50000,"cm","YES","decimal",9,3,"---"]
["Measurement","MeasHarvestRemoval","Above_Ground_Biomass_STD","Biomass aboveground, plant tissue, StdDev, kilograms per hectare",0,50000,"kg biomass/ha","YES","decimal",9,3,"---"]
["Measurement","MeasHarvestRemoval","Unit_Grain_Weight_STD","Grain weight, plant tissue, StdDev, megagrams",0,1000,"mg biomass","YES","decimal",9,3,"---"]
["Measurement","MeasHarvestRemoval","Grain_DryMatter_STD","Grain harvest, plant tissue, StdDev, kilograms per hectare",0,50000,"kg biomass/ha","YES","decimal",9,3,"---"]
["Measurement","MeasHarvestRemoval","Grain_MoisturePct_STD","Grain moisture content, plant tissue, StdDev, percent",0,100,"%","YES","decimal",9,3,"---"]
["Measurement","MeasHarvestRemoval","Grain_C_STD","Carbon, grain, plant tissue, StdDev, kilograms of carbon per hectare",0,25000,"kg C/ha","YES","decimal",9,3,"---"]
["Measurement","MeasHarvestRemoval","Grain_N_STD","Nitrogen, grain, plant tissue, StdDev, kilograms of nitrogen per hectare",0,10000,"kg N/ha","YES","decimal",9,3,"---"]
["Measurement","MeasHarvestRemoval","Harv_Res_DryMatter_STD","Crop residue, harvested aboveground, plant tissue, StdDev, kilograms per hectare",0,50000,"kg biomass/ha","YES","decimal",9,3,"---"]
["Measurement","MeasHarvestRemoval","HarvRes_MoisturePct_STD","Crop residue moisture content, plant tissue, StdDev, percent",0,100,"%","YES","decimal",9,3,"---"]
["Measurement","MeasHarvestRemoval","Harv_Res_C_STD","Carbon, harvested crop residue, plant tissue, StdDev, kilograms of carbon per hectare",0,25000,"kg C/ha","YES","decimal",9,3,"---"]
["Measurement","MeasHarvestRemoval","Harv_Res_N_STD","Nitrogen, harvested crop residue, plant tissue, StdDev, kilograms of nitrogen per hectare",0,25000,"kg N/ha","YES","decimal",9,3,"---"]
["Measurement","MeasHarvestRemoval","nonHarv_Res_DryMatter_STD","Crop residue, aboveground, plant tissue, StdDev, kilograms per hectare",0,5000,"kg biomass/ha","YES","decimal",9,3,"---"]
["Measurement","MeasHarvestRemoval","nonHarv_Res_MoisturePct_STD","Crop residue moisture content, plant tissue, StdDev, percent",0,100,"%","YES","decimal",9,3,"---"]
["Measurement","MeasHarvestRemoval","nonHarv_Res_C_STD","Carbon, crop residue, plant tissue, StdDev, kilograms of carbon per hectare",0,25000,"kg C/ha","YES","decimal",9,3,"---"]
["Measurement","MeasHarvestRemoval","nonHarv_Res_N_STD","Nitrogen, crop residue, plant tissue, StdDev, kilograms of nitrogen per hectare",0,10000,"kg N/ha","YES","decimal",9,3,"---"]
["Measurement","MeasHarvestRemoval","Root_DryMatter_STD","Crop root, biomass, plant tissue, StdDev, kilograms per hectare",0,50000,"kg biomass/ha","YES","decimal",9,3,"---"]
["Measurement","MeasHarvestRemoval","Root_MoisturePct_STD","Crop root, moisture content, StdDev, plant tissue, percent",0,100,"%","YES","decimal",9,3,"---"]
["Measurement","MeasHarvestRemoval","Root_C_STD","Carbon, crop root, plant tissue, StdDev, kilograms of carbon per hectare",0,25000,"kg C/ha","YES","decimal",9,3,"---"]
["Measurement","MeasHarvestRemoval","Root_N_STD","Nitrogen, crop root, plant tissue, StdDev, kilograms of nitrogen per hectare",0,10000,"kg N/ha","YES","decimal",9,3,"---"]
["---","---","---","---","---","---","---","---","---","---","---","---"]
["Measurement","MeasPlantFraction","Exp_UnitID","Experimental Unit ID","a","z","none","NO","Memo","---","---",63999]
["Measurement","MeasPlantFraction","Sampling_Date","Date","1900-01-01",{"$f":"TODAY()","v":"2014-08-13"},"mm/dd/yyyy","NO","Date/Time","---","---","---"]
["Measurement","MeasPlantFraction","TreatmentID","Treatment identifier","a","z","none","YES","Memo","---","---",63999]
["Measurement","MeasPlantFraction","Growth_Stage","Growth stage","a","z","none","YES","Memo","---","---",63999]
["Measurement","MeasPlantFraction","Crop","Crop name","a","z","none","YES","Memo","---","---",63999]
["Measurement","MeasPlantFraction","Plant_Fraction","Plant fraction","a","z","none","YES","Memo","---","---",63999]
["Measurement","MeasPlantFraction","Fraction_DryMatter","Dry Matter of plant fraction, plant tissue, kilograms per hectare",0,50000,"kg/ha","YES","decimal",9,3,"---"]
["Measurement","MeasPlantFraction","Fraction_MoisturePct","Moisture in plant fraction, plant tissue, percent",0,100,"%","YES","decimal",9,3,"---"]
["Measurement","MeasPlantFraction","Fraction_C","Carbon in plant fraction, plant tissue, kilograms carbon per hectare",0,25000,"kg C/ha","YES","decimal",9,3,"---"]
["Measurement","MeasPlantFraction","Fraction_N","Nitrogen in plant fraction, plant tissue, kilograms nitrogen per hectare",0,10000,"kg N/ha","YES","decimal",9,3,"---"]
["Measurement","MeasPlantFraction","Unit_Grain_Weight","Kernel weight, plant tissue, milligrams",0,1000,"mg","YES","decimal",9,3,"---"]
["Measurement","MeasPlantFraction","Fraction_DryMatter_STD","Dry Matter of plant fraction, plant tissue, StdDev, kilograms per hectare",0,50000,"kg/ha","YES","decimal",9,3,"---"]
["Measurement","MeasPlantFraction","Fraction_MoisturePct_STD","Moisture in plant fraction, plant tissue, StdDev, percent",0,100,"%","YES","decimal",9,3,"---"]
["Measurement","MeasPlantFraction","Fraction_C_STD","Carbon in plant fraction, plant tissue, StdDev, kilograms carbon per hectare",0,25000,"kg C/ha","YES","decimal",9,3,"---"]
["Measurement","MeasPlantFraction","Fraction_N_STD","Nitrogen in plant fraction, plant tissue, StdDev, kilograms nitrogen per hectare",0,10000,"kg N/ha","YES","decimal",9,3,"---"]
["Measurement","MeasPlantFraction","Unit_Grain_Weight_STD","Kernel weight, plant tissue, StdDev, milligrams",0,1000,"mg","YES","decimal",9,3,"---"]
["---","---","---","---","---","---","---","---","---","---","---","---"]
["Measurement","MeasBiomassCHO","Exp_UnitID","Experimental Unit ID","a","z","none","NO","Memo","---","---",63999]
["Measurement","MeasBiomassCHO","Date","Date","1900-01-01",{"$f":"TODAY()","v":"2014-08-13"},"mm/dd/yyyy","NO","Date/Time","---","---","---"]
["Measurement","MeasBiomassCHO","TreatmentID","Treatment identifier","a","z","none","YES","Memo","---","---",63999]
["Measurement","MeasBiomassCHO","Growth_Stage","Growth stage","a","z","none","YES","Memo","---","---",63999]
["Measurement","MeasBiomassCHO","Crop","Crop name","a","z","none","YES","Memo","---","---",63999]
["Measurement","MeasBiomassCHO","Plant_Fraction","Plant fraction","a","z","none","YES","Memo","---","---",63999]
["Measurement","MeasBiomassCHO","Glucan","Glucan, plant tissue, grams per kilogram",0,1000,"g/kg","YES","decimal",9,3,"---"]
["Measurement","MeasBiomassCHO","Xylan","Xylan, plant tissue, grams per kilogram",0,1000,"g/kg","YES","decimal",9,3,"---"]
["Measurement","MeasBiomassCHO","Galactan","Galactan, plant tissue, grams per kilogram",0,1000,"g/kg","YES","decimal",9,3,"---"]
["Measurement","MeasBiomassCHO","Arabinan","Arabinan, plant tissue, grams per kilogram",0,1000,"g/kg","YES","decimal",9,3,"---"]
["Measurement","MeasBiomassCHO","Mannan","Mannan, plant tissue, grams per kilogram",0,1000,"g/kg","YES","decimal",9,3,"---"]
["Measurement","MeasBiomassCHO","Lignin","Lignin, plant tissue, grams per kilogram",0,1000,"g/kg","YES","decimal",9,3,"---"]
["Measurement","MeasBiomassCHO","Neutral_Detergent_Fiber","Neutral Detergent Fiber, plant tissue, grams per kilogram",0,1000,"g/kg","YES","decimal",9,3,"---"]
["Measurement","MeasBiomassCHO","Acid_Detergent_Fiber","Acid Detergent Fiber, plant tissue, grams per kilogram",0,1000,"g/kg","YES","decimal",9,3,"---"]
["Measurement","MeasBiomassCHO","Acid_Soluble_Lignin","Acid Soluble Lignin, plant tissue, grams per kilogram",0,1000,"g/kg","YES","decimal",9,3,"---"]
["Measurement","MeasBiomassCHO","Acid_Insoluble_Lignin","Acid Insoluble Lignin, plant tissue, grams per kilogram",0,1000,"g/kg","YES","decimal",9,3,"---"]
["Measurement","MeasBiomassCHO","Crude_Protein","Crude Protein, plant tissue, grams per kilogram",0,1000,"g/kg","YES","decimal",9,3,"---"]
["Measurement","MeasBiomassCHO","Non-fiber_Carbohydrates","Non-fiber Carbohydrates, plant tissue, grams per kilogram",0,1000,"g/kg","YES","decimal",9,3,"---"]
["Measurement","MeasBiomassCHO","Ash","Ash, plant tissue, grams per kilogram",0,1000,"g/kg","YES","decimal",9,3,"---"]
["Measurement","MeasBiomassCHO","Glucan_STD","Glucan, plant tissue, StdDev, grams per kilogram",0,1000,"g/kg","YES","decimal",9,3,"---"]
["Measurement","MeasBiomassCHO","Xylan_STD","Xylan, plant tissue, StdDev, grams per kilogram",0,1000,"g/kg","YES","decimal",9,3,"---"]
["Measurement","MeasBiomassCHO","Galactan_STD","Galactan, plant tissue, StdDev, grams per kilogram",0,1000,"g/kg","YES","decimal",9,3,"---"]
["Measurement","MeasBiomassCHO","Arabinan_STD","Arabinan, plant tissue, StdDev, grams per kilogram",0,1000,"g/kg","YES","decimal",9,3,"---"]
["Measurement","MeasBiomassCHO","Mannan_STD","Mannan, plant tissue, StdDev, grams per kilogram",0,1000,"g/kg","YES","decimal",9,3,"---"]
["Measurement","MeasBiomassCHO","Lignin_STD","Lignin, plant tissue, StdDev, grams per kilogram",0,1000,"g/kg","YES","decimal",9,3,"---"]
["Measurement","MeasBiomassCHO","Neutral_Detergent_Fiber_STD","Neutral Detergent Fiber, plant tissue, StdDev, grams per kilogram",0,1000,"g/kg","YES","decimal",9,3,"---"]
["Measurement","MeasBiomassCHO","Acid_Detergent_Fiber_STD","Acid Detergent Fiber, plant tissue, StdDev, grams per kilogram",0,1000,"g/kg","YES","decimal",9,3,"---"]
["Measurement","MeasBiomassCHO","Acid_Soluble_Lignin_STD","Acid Soluble Lignin, plant tissue, StdDev, grams per kilogram",0,1000,"g/kg","YES","decimal",9,3,"---"]
["Measurement","MeasBiomassCHO","Acid_Insoluble_Lignin_STD","Acid Insoluble Lignin, plant tissue, StdDev, grams per kilogram",0,1000,"g/kg","YES","decimal",9,3,"---"]
["Measurement","MeasBiomassCHO","Crude_Protein_STD","Crude Protein, plant tissue, StdDev, grams per kilogram",0,1000,"g/kg","YES","decimal",9,3,"---"]
["Measurement","MeasBiomassCHO","Non-fiber_Carbohydrates_STD","Non-fiber Carbohydrates, plant tissue, StdDev, grams per kilogram",0,1000,"g/kg","YES","decimal",9,3,"---"]
["Measurement","MeasBiomassCHO","Ash_STD","Ash, plant tissue, StdDev, grams per kilogram",0,1000,"g/kg","YES","decimal",9,3,"---"]
["---","---","---","---","---","---","---","---","---","---","---","---"]
["Measurement","MeasBiomassEnergy","Exp_UnitID","Experimental Unit ID","a","z","none","NO","Memo","---","---",63999]
["Measurement","MeasBiomassEnergy","Date","Date","1900-01-01",{"$f":"TODAY()","v":"2014-08-13"},"mm/dd/yyyy","NO","Date/Time","---","---","---"]
["Measurement","MeasBiomassEnergy","TreatmentID","Treatment identifier","a","z","none","YES","Memo","---","---",63999]
["Measurement","MeasBiomassEnergy","Growth_Stage","Growth stage","a","z","none","YES","Memo","---","---",63999]
["Measurement","MeasBiomassEnergy","Crop","Crop name","a","z","none","YES","Memo","---","---",63999]
["Measurement","MeasBiomassEnergy","Plant_Fraction","Plant fraction","a","z","none","YES","Memo","---","---",63999]
["Measurement","MeasBiomassEnergy","Volatile_Matter","Volatile Matter, plant tissue, grams per kilogram dry matter",0,1000,"g/kg","YES","decimal",9,3,"---"]
["Measurement","MeasBiomassEnergy","Ash","Ash, plant tissue, StdDev, grams per kilogram dry matter",0,1000,"g/kg","YES","decimal",9,3,"---"]
["Measurement","MeasBiomassEnergy","Gross_Calorific_Value","Gross Calorific Value, plant tissue, megajoules per kilogram dry matter",0,null,"MJ/kg","YES","decimal",9,3,"---"]
["Measurement","MeasBiomassEnergy","Volatile_Matter_STD","Volatile Matter, plant tissue, StdDev, grams per kilogram dry matter",0,1000,"g/kg","YES","decimal",9,3,"---"]
["Measurement","MeasBiomassEnergy","Ash_STD","Ash, plant tissue, StdDev, StdDev, grams per kilogram dry matter",0,1000,"g/kg","YES","decimal",9,3,"---"]
["Measurement","MeasBiomassEnergy","Gross_Calorific_Value_STD","Gross Calorific Value, plant tissue, StdDev, megajoules per kilogram dry matter",0,null,"MJ/kg","YES","decimal",9,3,"---"]
["---","---","---","---","---","---","---","---","---","---","---","---"]
["Measurement","MeasBiomassMinAn","Exp_UnitID","Experimental Unit ID","a","z","none","NO","Memo","---","---",63999]
["Measurement","MeasBiomassMinAn","Date","Date","1900-01-01",{"$f":"TODAY()","v":"2014-08-13"},"mm/dd/yyyy","NO","Date/Time","---","---","---"]
["Measurement","MeasBiomassMinAn","TreatmentID","Treatment identifier","a","z","none","YES","Memo","---","---",63999]
["Measurement","MeasBiomassMinAn","Growth_Stage","Growth stage","a","z","none","YES","Memo","---","---",63999]
["Measurement","MeasBiomassMinAn","Crop","Crop name","a","z","none","YES","Memo","---","---",63999]
["Measurement","MeasBiomassMinAn","Plant_Fraction","Plant fraction","a","z","none","YES","Memo","---","---",63999]
["Measurement","MeasBiomassMinAn","C_Concentration","C Concentration, plant tissue, grams per kilogram",0,1000,"g/kg","YES","decimal",9,3,"---"]
["Measurement","MeasBiomassMinAn","N_Concentration","N Concentration, plant tissue, grams per kilogram",0,1000,"g/kg","YES","decimal",9,3,"---"]
["Measurement","MeasBiomassMinAn","P_Concentration","P Concentration, plant tissue, grams per kilogram",0,1000,"g/kg","YES","decimal",9,3,"---"]
["Measurement","MeasBiomassMinAn","K_Concentration","K Concentration, plant tissue, grams per kilogram",0,1000,"g/kg","YES","decimal",9,3,"---"]
["Measurement","MeasBiomassMinAn","Ca_Concentration","Ca Concentration, plant tissue, grams per kilogram",0,1000,"g/kg","YES","decimal",9,3,"---"]
["Measurement","MeasBiomassMinAn","Mg_Concentration","Mg Concentration, plant tissue, grams per kilogram",0,1000,"g/kg","YES","decimal",9,3,"---"]
["Measurement","MeasBiomassMinAn","S_Concentration","S Concentration, plant tissue, grams per kilogram",0,1000,"g/kg","YES","decimal",9,3,"---"]
["Measurement","MeasBiomassMinAn","Na_Concentration","Na Concentration, plant tissue, grams per kilogram",0,1000,"g/kg","YES","decimal",9,3,"---"]
["Measurement","MeasBiomassMinAn","Cl_Concentration","Cl Concentration, plant tissue, grams per kilogram",0,1000,"g/kg","YES","decimal",9,3,"---"]
["Measurement","MeasBiomassMinAn","Al_Concentration","Al Concentration, plant tissue, milligrams per kilogram",0,1000,"mg/kg","YES","decimal",9,3,"---"]
["Measurement","MeasBiomassMinAn","B_Concentration","B Concentration, plant tissue, milligrams per kilogram",0,1000,"mg/kg","YES","decimal",9,3,"---"]
["Measurement","MeasBiomassMinAn","Cu_Concentration","Cu Concentration, plant tissue, milligrams per kilogram",0,1000,"mg/kg","YES","decimal",9,3,"---"]
["Measurement","MeasBiomassMinAn","Fe_Concentration","Fe Concentration, plant tissue, milligrams per kilogram",0,1000,"mg/kg","YES","decimal",9,3,"---"]
["Measurement","MeasBiomassMinAn","Mn_Concentration","Mn Concentration, plant tissue, milligrams per kilogram",0,1000,"mg/kg","YES","decimal",9,3,"---"]
["Measurement","MeasBiomassMinAn","Zn_Concentration","Zn Concentration, plant tissue, milligrams per kilogram",0,1000,"mg/kg","YES","decimal",9,3,"---"]
["Measurement","MeasBiomassMinAn","C_Concentration_STD","C Concentration, plant tissue, StdDev, grams per kilogram",0,1000,"g/kg","YES","decimal",9,3,"---"]
["Measurement","MeasBiomassMinAn","N_Concentration_STD","N Concentration, plant tissue, StdDev, grams per kilogram",0,1000,"g/kg","YES","decimal",9,3,"---"]
["Measurement","MeasBiomassMinAn","P_Concentration_STD","P Concentration, plant tissue, StdDev, grams per kilogram",0,1000,"g/kg","YES","decimal",9,3,"---"]
["Measurement","MeasBiomassMinAn","K_Concentration_STD","K Concentration, plant tissue, StdDev, grams per kilogram",0,1000,"g/kg","YES","decimal",9,3,"---"]
["Measurement","MeasBiomassMinAn","Ca_Concentration_STD","Ca Concentration, plant tissue, StdDev, grams per kilogram",0,1000,"g/kg","YES","decimal",9,3,"---"]
["Measurement","MeasBiomassMinAn","Mg_Concentration_STD","Mg Concentration, plant tissue, StdDev, grams per kilogram",0,1000,"g/kg","YES","decimal",9,3,"---"]
["Measurement","MeasBiomassMinAn","S_Concentration_STD","S Concentration, plant tissue, StdDev, grams per kilogram",0,1000,"g/kg","YES","decimal",9,3,"---"]
["Measurement","MeasBiomassMinAn","Na_Concentration_STD","Na Concentration, plant tissue, StdDev, grams per kilogram",0,1000,"g/kg","YES","decimal",9,3,"---"]
["Measurement","MeasBiomassMinAn","Cl_Concentration_STD","Cl Concentration, plant tissue, StdDev, grams per kilogram",0,1000,"g/kg","YES","decimal",9,3,"---"]
["Measurement","MeasBiomassMinAn","Al_Concentration_STD","Al Concentration, plant tissue, StdDev, milligrams per kilogram",0,1000,"mg/kg","YES","decimal",9,3,"---"]
["Measurement","MeasBiomassMinAn","B_Concentration_STD","B Concentration, plant tissue, StdDev, milligrams per kilogram",0,1000,"mg/kg","YES","decimal",9,3,"---"]
["Measurement","MeasBiomassMinAn","Cu_Concentration_STD","Cu Concentration, plant tissue, StdDev, milligrams per kilogram",0,1000,"mg/kg","YES","decimal",9,3,"---"]
["Measurement","MeasBiomassMinAn","Fe_Concentration_STD","Fe Concentration, plant tissue, StdDev, milligrams per kilogram",0,1000,"mg/kg","YES","decimal",9,3,"---"]
["Measurement","MeasBiomassMinAn","Mn_Concentration_STD","Mn Concentration, plant tissue, StdDev, milligrams per kilogram",0,1000,"mg/kg","YES","decimal",9,3,"---"]
["Measurement","MeasBiomassMinAn","Zn_Concentration_STD","Zn Concentration, plant tissue, StdDev, milligrams per kilogram",0,1000,"mg/kg","YES","decimal",9,3,"---"]
["---","---","---","---","---","---","---","---","---","---","---","---"]
["Measurement","MeasGrazingPlants","Exp_UnitID","Experimental Unit ID","a","z","none","NO","Memo","---","---",63999]
["Measurement","MeasGrazingPlants","Date","Date","1900-01-01",{"$f":"TODAY()","v":"2014-08-13"},"mm/dd/yyyy","NO","Date/Time","---","---","---"]
["Measurement","MeasGrazingPlants","TreatmentID","Treatment identifier","a","z","none","YES","Memo","---","---",63999]
["Measurement","MeasGrazingPlants","Species_Mix","Species composition","a","z","none","YES","Memo","---","---",63999]
["Measurement","MeasGrazingPlants","Growth_Stage","Growth stage, harvest","a","z","none","YES","Memo","---","---",63999]
["Measurement","MeasGrazingPlants","Broadleaf_vs_Grass","Leaf type","a","z","none","YES","Memo","---","---",63999]
["Measurement","MeasGrazingPlants","Above_Ground_Biomass","Biomass, aboveground live, plant tissue, mean or single measurement, kilograms per hectare",0,50000,"kg/ha (dryweight)","YES","decimal",9,3,"---"]
["Measurement","MeasGrazingPlants","Surface_Litter","Biomass, surface litter, plant tissue, mean or single measurement, kilograms per hectare",0,50000,"kg/ha (dryweight)","YES","decimal",9,3,"---"]
["Measurement","MeasGrazingPlants","Standing_Dead","Biomass, aboveground dead, plant tissue, mean or single measurement, kilograms per hectare",0,50000,"kg/ha (dryweight)","YES","decimal",9,3,"---"]
["Measurement","MeasGrazingPlants","LAI","Leaf area index, live, none, mean or single measurement, fraction of land area",0,50000,"kg/ha (dryweight)","YES","decimal",9,3,"---"]
["Measurement","MeasGrazingPlants","NPct","Nitrogen, biomass, plant tissue, mean or single measurement, percent",0,10,"surface area of leaves/surface area of land","YES","decimal",9,3,"---"]
["Measurement","MeasGrazingPlants","LigninPct","Lignin, biomass, plant tissue, mean or single measurement, percent",0,100,"% (N mass/biomass mass*100)","YES","decimal",9,3,"---"]
["Measurement","MeasGrazingPlants","GroundCoverPct","Ground cover, vegetated, none, mean or single measurement, fraction of land area",0,100,"% (lignin mass/biomass mass*100)","YES","decimal",9,3,"---"]
["Measurement","MeasGrazingPlants","AGB_C","Carbon, aboveground live, plant tissue, mean or single measurement, kilograms of carbon per hectare",0,100,"% (surface area of vegetation/surface area of land)","YES","decimal",9,3,"---"]
["Measurement","MeasGrazingPlants","AGB_N","Nitrogen, aboveground live, plant tissue, mean or single measurement, kilograms of nitrogen per hectare",0,25000,"kg C/ha","YES","decimal",9,3,"---"]
["Measurement","MeasGrazingPlants","BGB_C","Carbon, belowground live, plant tissue, mean or single measurement, kilograms of carbon per hectare",0,2500,"kg N/ha","YES","decimal",9,3,"---"]
["Measurement","MeasGrazingPlants","BGB_N","Nitrogen, belowground live, plant tissue, mean or single measurement, kilograms of nitrogen per hectare",0,25000,"kg C/ha","YES","decimal",9,3,"---"]
["Measurement","MeasGrazingPlants","ANPP_C","Carbon, aboveground NPP, plant tissue, yearly, mean or single measurement, kilograms of carbon per hectare",0,2500,"kg N/ha","YES","decimal",9,3,"---"]
["Measurement","MeasGrazingPlants","ANPP_N","Nitrogen, aboveground NPP, plant tissue, yearly, mean or single measurement, kilograms of nitrogen per hectare",0,25000,"kg C/ha/yr","YES","decimal",9,3,"---"]
["Measurement","MeasGrazingPlants","BNPP_C","Carbon, belowground NPP, plant tissue, yearly, mean or single measurement, kilograms of carbon per hectare",0,2500,"kg N/ha/yr","YES","decimal",9,3,"---"]
["Measurement","MeasGrazingPlants","BNPP_N","Nitrogen, belowground NPP, plant tissue, yearly, mean or single measurement, kilograms of nitrogen per hectare",0,25000,"kg C/ha/yr","YES","decimal",9,3,"---"]
["Measurement","MeasGrazingPlants","Above_Ground_Biomass_STD","Biomass, aboveground live, plant tissue, StdDev, kilograms per hectare",0,2500,"kg N/ha/yr","YES","decimal",9,3,"---"]
["Measurement","MeasGrazingPlants","Surface_Litter_STD","Biomass, surface litter, plant tissue, StdDev, kilograms per hectare",0,50000,"kg/ha (dryweight)","YES","decimal",9,3,"---"]
["Measurement","MeasGrazingPlants","Standing_Dead_STD","Biomass, aboveground dead, plant tissue, StdDev, kilograms per hectare",0,50000,"kg/ha (dryweight)","YES","decimal",9,3,"---"]
["Measurement","MeasGrazingPlants","LAI_STD","Leaf area index, live, none, StdDev, fraction of land area",0,10,"surface area of leaves/surface area of land","YES","decimal",9,3,"---"]
["Measurement","MeasGrazingPlants","NPct_STD","Nitrogen, biomass, plant tissue, StdDev, percent",0,100,"% (N mass/biomass mass*100)","YES","decimal",9,3,"---"]
["Measurement","MeasGrazingPlants","LigninPct_STD","Lignin, biomass, plant tissue, StdDev, percent",0,100,"% (lignin mass/biomass mass*100)","YES","decimal",9,3,"---"]
["Measurement","MeasGrazingPlants","GroundCoverPct_STD","Ground cover, vegetated, none, StdDev, fraction of land area",0,100,"% (surface area of vegetation/surface area of land)","YES","decimal",9,3,"---"]
["Measurement","MeasGrazingPlants","AGB_C_STD","Carbon, aboveground live, plant tissue, StdDev, kilograms of carbon per hectare",0,25000,"kg C/ha","YES","decimal",9,3,"---"]
["Measurement","MeasGrazingPlants","AGB_N_STD","Nitrogen, aboveground live, plant tissue, StdDev, kilograms of nitrogen per hectare",0,2500,"kg N/ha","YES","decimal",9,3,"---"]
["Measurement","MeasGrazingPlants","BGB_C_STD","Carbon, belowground live, plant tissue, StdDev, kilograms of carbon per hectare",0,25000,"kg C/ha","YES","decimal",9,3,"---"]
["Measurement","MeasGrazingPlants","BGB_N_STD","Nitrogen, belowground live, plant tissue, StdDev, kilograms of nitrogen per hectare",0,2500,"kg N/ha","YES","decimal",9,3,"---"]
["Measurement","MeasGrazingPlants","ANPP_C_STD","Carbon, aboveground NPP, plant tissue, yearly, StdDev, kilograms of carbon per hectare",0,25000,"kg C/ha/yr","YES","decimal",9,3,"---"]
["Measurement","MeasGrazingPlants","ANPP_N_STD","Nitrogen, aboveground NPP, plant tissue, yearly, StdDev, kilograms of nitrogen per hectare",0,2500,"kg N/ha/yr","YES","decimal",9,3,"---"]
["Measurement","MeasGrazingPlants","BNPP_C_STD","Carbon, belowground NPP, plant tissue, yearly, StdDev, kilograms of carbon per hectare",0,25000,"kg C/ha/yr","YES","decimal",9,3,"---"]
["Measurement","MeasGrazingPlants","BNPP_N_STD","Nitrogen, belowground NPP, plant tissue, yearly, StdDev, kilograms of nitrogen per hectare",0,2500,"kg N/ha/yr","YES","decimal",9,3,"---"]
["---","---","---","---","---","---","---","---","---","---","---","---"]
["Measurement","MeasSuppRes","Exp_UnitID","Experimental Unit ID","a","z","none","NO","Memo","---","---",63999]
["Measurement","MeasSuppRes","Sampling_Date","Date","1900-01-01",{"$f":"TODAY()","v":"2014-08-13"},"mm/dd/yyyy","NO","Date/Time","---","---","---"]
["Measurement","MeasSuppRes","TreatmentID","Treatment identifier","a","z","none","YES","Memo","---","---",63999]
["Measurement","MeasSuppRes","What_is_being_measured","What is being measured?","a","z","none","YES","Memo","---","---",63999]
["Measurement","MeasSuppRes","Measurement_Value","Measured value",0,10000000,"none","YES","decimal",9,3,"---"]
["Measurement","MeasSuppRes","Measurement_Units","Measured units","a","z","none","YES","Memo","---","---",63999]
["---","---","---","---","---","---","---","---","---","---","---","---"]
["Comments","AllCellComments","SiteID","Site identifier","a","z","none","YES","Memo","---","---",63999]
["Comments","AllCellComments","Date_entered","Date","1900-01-01",{"$f":"TODAY()","v":"2014-08-13"},"mm/dd/yyyy","YES","Date/Time","---","---","---"]
["Comments","AllCellComments","Sheet_name","Sheet name","a","z","none","YES","Memo","---","---",63999]
["Comments","AllCellComments","Field_name","Field name","a","z","none","YES","Memo","---","---",63999]
["Comments","AllCellComments","Reporting_person_Name","Person reporting","a","z","none","YES","Memo","---","---",63999]
["Comments","AllCellComments","Comment","Comment","a","z","none","YES","Memo","---","---",63999]

{"sheet":"ValidationData","index":34,"n_rows":49,"n_cols":208,"rows_kept":49,"cut":false,"hidden":false,"merged":[]}
[null,"Overview",null,null,null,null,{"$f":"IF(HasRun,MAX(1,COUNTA(Overview!$A:$A)-COUNTA(Overview!$A$1:$A$8)),COUNTA(Overview!$A:$A)-COUNTA(Overview!$A$1:$A$8))","v":0},{"$f":"IF(G1=1,\"Row\",\"Rows\")","v":"Rows"},null,"FieldSites",null,null,null,null,{"$f":"IF(HasRun,MAX(1,COUNTA(FieldSites!$A:$A)-COUNTA(FieldSites!$A$1:$A$8)),COUNTA(FieldSites!$A:$A)-COUNTA(FieldSites!$A$1:$A$8))","v":0},{"$f":"IF(O1=1,\"Row\",\"Rows\")","v":"Rows"},null,"Persons",null,null,null,null,{"$f":"COUNTA(Persons!$A:$A)-COUNTA(Persons!$A$1:$A$8)","v":0},{"$f":"IF(W1=1,\"Row\",\"Rows\")","v":"Rows"},null,"Citations",null,null,null,null,{"$f":"COUNTA(Citations!$A:$A)-COUNTA(Citations!$A$1:$A$8)","v":0},{"$f":"IF(AE1=1,\"Row\",\"Rows\")","v":"Rows"},null,"Treatments",null,null,null,null,{"$f":"IF(HasRun,MAX(1,COUNTA(Treatments!$A:$A)-COUNTA(Treatments!$A$1:$A$8)),COUNTA(Treatments!$A:$A)-COUNTA(Treatments!$A$1:$A$8))","v":0},{"$f":"IF(AM1=1,\"Row\",\"Rows\")","v":"Rows"},null,"ExperUnits",null,null,null,null,{"$f":"IF(HasRun,MAX(1,COUNTA(ExperUnits!$A:$A)-COUNTA(ExperUnits!$A$1:$A$8)),COUNTA(ExperUnits!$A:$A)-COUNTA(ExperUnits!$A$1:$A$8))","v":0},{"$f":"IF(AU1=1,\"Row\",\"Rows\")","v":"Rows"},null,"WeatherStation",null,null,null,null,{"$f":"COUNTA(WeatherStation!$A:$A)-COUNTA(WeatherStation!$A$1:$A$8)","v":0},{"$f":"IF(BC1=1,\"Row\",\"Rows\")","v":"Rows"},null,"WeatherDaily",null,null,null,null,{"$f":"COUNTA(WeatherDaily!$A:$A)-COUNTA(WeatherDaily!$A$1:$A$8)","v":0},{"$f":"IF(BK1=1,\"Row\",\"Rows\")","v":"Rows"},null,"MgtAmendments",null,null,null,null,{"$f":"COUNTA(MgtAmendments!$B:$B)-COUNTA(MgtAmendments!$B$1:$B$8)","v":0},{"$f":"IF(BS1=1,\"Row\",\"Rows\")","v":"Rows"},null,"MgtPlanting",null,null,null,null,{"$f":"COUNTA(MgtPlanting!$B:$B)-COUNTA(MgtPlanting!$B$1:$B$8)","v":0},{"$f":"IF(CA1=1,\"Row\",\"Rows\")","v":"Rows"},null,"MgtTillage",null,null,null,null,{"$f":"COUNTA(MgtTillage!$B:$B)-COUNTA(MgtTillage!$B$1:$B$8)","v":0},{"$f":"IF(CI1=1,\"Row\",\"Rows\")","v":"Rows"},null,"MgtGrowthStages",null,null,null,null,{"$f":"COUNTA(MgtGrowthStages!$B:$B)-COUNTA(MgtGrowthStages!$B$1:$B$8)","v":0},{"$f":"IF(CQ1=1,\"Row\",\"Rows\")","v":"Rows"},null,"MgtResidue",null,null,null,null,{"$f":"COUNTA(MgtResidue!$B:$B)-COUNTA(MgtResidue!$B$1:$B$8)","v":0},{"$f":"IF(CY1=1,\"Row\",\"Rows\")","v":"Rows"},null,"MgtGrazing",null,null,null,null,{"$f":"COUNTA(MgtGrazing!$B:$B)-COUNTA(MgtGrazing!$B$1:$B$8)","v":0},{"$f":"IF(DG1=1,\"Row\",\"Rows\")","v":"Rows"},null,"MeasSoilPhys",null,null,null,null,{"$f":"COUNTA(MeasSoilPhys!$A:$A)-COUNTA(MeasSoilPhys!$A$1:$A$8)","v":0},{"$f":"IF(DO1=1,\"Row\",\"Rows\")","v":"Rows"},null,"MeasSoilChem",null,null,null,null,{"$f":"COUNTA(MeasSoilChem!$A:$A)-COUNTA(MeasSoilChem!$A$1:$A$8)","v":0},{"$f":"IF(DW1=1,\"Row\",\"Rows\")","v":"Rows"},null,"MeasSoilBiol",null,null,null,null,{"$f":"COUNTA(MeasSoilBiol!$A:$A)-COUNTA(MeasSoilBiol!$A$1:$A$8)","v":0},{"$f":"IF(EE1=1,\"Row\",\"Rows\")","v":"Rows"},null,"MeasSoilCover",null,null,null,null,{"$f":"COUNTA(MeasSoilCover!$A:$A)-COUNTA(MeasSoilCover!$A$1:$A$8)","v":0},{"$f":"IF(EM1=1,\"Row\",\"Rows\")","v":"Rows"},null,"MeasGHGFlux",null,null,null,null,{"$f":"COUNTA(MeasGHGFlux!$A:$A)-COUNTA(MeasGHGFlux!$A$1:$A$8)","v":0},{"$f":"IF(EU1=1,\"Row\",\"Rows\")","v":"Rows"},null,"MeasHarvestRemoval",null,null,null,null,{"$f":"COUNTA(MeasHarvestRemoval!$A:$A)-COUNTA(MeasHarvestRemoval!$A$1:$A$8)","v":0},{"$f":"IF(FC1=1,\"Row\",\"Rows\")","v":"Rows"},null,"MeasPlantFraction",null,null,null,null,{"$f":"COUNTA(MeasPlantFraction!$A:$A)-COUNTA(MeasPlantFraction!$A$1:$A$8)","v":0},{"$f":"IF(FK1=1,\"Row\",\"Rows\")","v":"Rows"},null,"MeasBiomassCHO",null,null,null,null,{"$f":"COUNTA(MeasBiomassCHO!$A:$A)-COUNTA(MeasBiomassCHO!$A$1:$A$8)","v":0},{"$f":"IF(FS1=1,\"Row\",\"Rows\")","v":"Rows"},null,"MeasBiomassEnergy",null,null,null,null,{"$f":"COUNTA(MeasBiomassEnergy!$A:$A)-COUNTA(MeasBiomassEnergy!$A$1:$A$8)","v":0},{"$f":"IF(GA1=1,\"Row\",\"Rows\")","v":"Rows"},null,"MeasBiomassMinAn",null,null,null,null,{"$f":"COUNTA(MeasBiomassMinAn!$A:$A)-COUNTA(MeasBiomassMinAn!$A$1:$A$8)","v":0},{"$f":"IF(GI1=1,\"Row\",\"Rows\")","v":"Rows"},null,"MeasGrazingPlants",null,null,null,null,{"$f":"COUNTA(MeasGrazingPlants!$A:$A)-COUNTA(MeasGrazingPlants!$A$1:$A$8)","v":0},{"$f":"IF(GQ1=1,\"Row\",\"Rows\")","v":"Rows"},null,"MeasSuppRes",null,null,null,null,{"$f":"COUNTA(MeasSuppRes!$A:$A)-COUNTA(MeasSuppRes!$A$1:$A$8)","v":0},{"$f":"IF(GY1=1,\"Row\",\"Rows\")","v":"Rows"}]
[{"$f":"INT(SUM(1:1)/(COUNTIF(3:100,\"=TRUE\")+1)*10000)","v":0},"Column","Units","Min","Max","Required","DropDown","Errors",null,"Column","Units","Min","Max","Required","DropDown","Errors",null,"Column","Units","Min","Max","Required","DropDown","Errors",null,"Column","Units","Min","Max","Required","DropDown","Errors",null,"Column","Units","Min","Max","Required","DropDown","Errors",null,"Column","Units","Min","Max","Required","DropDown","Errors",null,"Column","Units","Min","Max","Required","DropDown","Errors",null,"Column","Units","Min","Max","Required","DropDown","Errors",null,"Column","Units","Min","Max","Required","DropDown","Errors",null,"Column","Units","Min","Max","Required","DropDown","Errors",null,"Column","Units","Min","Max","Required","DropDown","Errors",null,"Column","Units","Min","Max","Required","DropDown","Errors",null,"Column","Units","Min","Max","Required","DropDown","Errors",null,"Column","Units","Min","Max","Required","DropDown","Errors",null,"Column","Units","Min","Max","Required","DropDown","Errors",null,"Column","Units","Min","Max","Required","DropDown","Errors",null,"Column","Units","Min","Max","Required","DropDown","Errors",null,"Column","Units","Min","Max","Required","DropDown","Errors",null,"Column","Units","Min","Max","Required","DropDown","Errors",null,"Column","Units","Min","Max","Required","DropDown","Errors",null,"Column","Units","Min","Max","Required","DropDown","Errors",null,"Column","Units","Min","Max","Required","DropDown","Errors",null,"Column","Units","Min","Max","Required","DropDown","Errors",null,"Column","Units","Min","Max","Required","DropDown","Errors",null,"Column","Units","Min","Max","Required","DropDown","Errors",null,"Column","Units","Min","Max","Required","DropDown","Errors"]
[null,"SiteID",null,null,null,true,null,null,null,"FieldID",null,null,null,true,null,null,null,"SiteID",null,null,null,true,"SiteID",null,null,"SiteID",null,null,null,true,"SiteID",null,null,"TreatmentID",null,null,null,true,null,null,null,"Exp_Unit1",null,null,null,null,null,null,null,"SiteID",null,null,null,true,"SiteID",null,null,"SiteID",null,null,null,true,"SiteID",null,null,"Buttons",null,null,null,null,null,null,null,"Buttons",null,null,null,null,null,null,null,"Buttons",null,null,null,null,null,null,null,"Buttons",null,null,null,null,null,null,null,"Buttons",null,null,null,null,null,null,null,"Buttons",null,null,null,null,null,null,null,"Exp_UnitID",null,null,null,true,"Exp_UnitID",null,null,"Exp_UnitID",null,null,null,true,"Exp_UnitID",null,null,"Exp_UnitID",null,null,null,true,"Exp_UnitID",null,null,"Exp_UnitID",null,null,null,true,"Exp_UnitID",null,null,"Exp_UnitID",null,null,null,true,"Exp_UnitID",null,null,"Exp_UnitID",null,null,null,true,"Exp_UnitID",null,null,"Exp_UnitID",null,null,null,true,"Exp_UnitID",null,null,"Exp_UnitID",null,null,null,true,"Exp_UnitID",null,null,"Exp_UnitID",null,null,null,true,"Exp_UnitID",null,null,"Exp_UnitID",null,null,null,true,"Exp_UnitID",null,null,"Exp_UnitID",null,null,null,true,"Exp_UnitID",null,null,"Exp_UnitID",null,null,null,true,"Exp_UnitID"]
[null,"SiteID_descriptor",null,null,null,null,null,null,null,"MLRA",null,null,null,null,null,null,null,"Last_name",null,null,null,"",null,null,null,"Date_Published","mm/dd/yyyy","1980-01-01",{"$f":"TODAY()","v":"2014-08-13"},null,null,null,null,"Start_Date","mm/dd/yyyy","1980-01-01",{"$f":"TODAY()","v":"2014-08-13"},{"$f":"FALSE()","v":false},null,null,null,"Exp_Unit1_Descriptor",null,null,null,"",null,null,null,"FieldID",null,null,null,null,"FieldID",null,null,"FieldID",null,null,null,null,"FieldID",null,null,"Exp_UnitID",null,null,null,true,"Exp_UnitID",null,null,"Exp_UnitID",null,null,null,true,"Exp_UnitID",null,null,"Exp_UnitID",null,null,null,true,"Exp_UnitID",null,null,"Exp_UnitID",null,null,null,true,"Exp_UnitID",null,null,"Exp_UnitID",null,null,null,true,"Exp_UnitID",null,null,"Exp_UnitID",null,null,null,true,"Exp_UnitID",null,null,"Date","mm/dd/yyyy","1980-01-01",{"$f":"TODAY()","v":"2014-08-13"},{"$f":"FALSE()","v":false},null,null,null,"Date","mm/dd/yyyy","1980-01-01",{"$f":"TODAY()","v":"2014-08-13"},{"$f":"FALSE()","v":false},null,null,null,"Date","mm/dd/yyyy","1980-01-01",{"$f":"TODAY()","v":"2014-08-13"},{"$f":"FALSE()","v":false},null,null,null,"Date","mm/dd/yyyy","1980-01-01",{"$f":"TODAY()","v":"2014-08-13"},{"$f":"FALSE()","v":false},null,null,null,"Date","mm/dd/yyyy","1980-01-01",{"$f":"TODAY()","v":"2014-08-13"},{"$f":"FALSE()","v":false},null,null,null,"Date","mm/dd/yyyy","1980-01-01",{"$f":"TODAY()","v":"2014-08-13"},{"$f":"FALSE()","v":false},null,null,null,"Sampling_Date","mm/dd/yyyy","1980-01-01",{"$f":"TODAY()","v":"2014-08-13"},{"$f":"FALSE()","v":false},null,null,null,"Date","mm/dd/yyyy","1980-01-01",{"$f":"TODAY()","v":"2014-08-13"},{"$f":"FALSE()","v":false},null,null,null,"Date","mm/dd/yyyy","1980-01-01",{"$f":"TODAY()","v":"2014-08-13"},{"$f":"FALSE()","v":false},null,null,null,"Date","mm/dd/yyyy","1980-01-01",{"$f":"TODAY()","v":"2014-08-13"},{"$f":"FALSE()","v":false},null,null,null,"Date","mm/dd/yyyy","1980-01-01",{"$f":"TODAY()","v":"2014-08-13"},{"$f":"FALSE()","v":false},null,null,null,"Date","mm/dd/yyyy","1980-01-01",{"$f":"TODAY()","v":"2014-08-13"},{"$f":"FALSE()","v":false}]
[null,"Research_Unit",null,null,null,null,"Research_Unit",null,null,"Country",null,null,null,null,null,null,null,"First_name",null,null,null,"",null,null,null,"Reference_type",null,null,null,null,"Reference_Type",null,null,"Detailed_Tx_Descriptor",null,null,null,"",null,null,null,"Exp_Unit2",null,null,null,"",null,null,null,"Date","mm/dd/yyyy","1980-01-01",{"$f":"TODAY()","v":"2014-08-13"},{"$f":"FALSE()","v":false},null,null,null,"Weather_Date","mm/dd/yyyy","1980-01-01",{"$f":"TODAY()","v":"2014-08-13"},{"$f":"FALSE()","v":false},null,null,null,"Date","mm/dd/yyyy","1980-01-01",{"$f":"TODAY()","v":"2014-08-13"},{"$f":"FALSE()","v":false},null,null,null,"Date","mm/dd/yyyy","1980-01-01",{"$f":"TODAY()","v":"2014-08-13"},{"$f":"FALSE()","v":false},null,null,null,"Date","mm/dd/yyyy","1980-01-01",{"$f":"TODAY()","v":"2014-08-13"},{"$f":"FALSE()","v":false},null,null,null,"Date","mm/dd/yyyy","1980-01-01",{"$f":"TODAY()","v":"2014-08-13"},{"$f":"FALSE()","v":false},null,null,null,"Date","mm/dd/yyyy","1980-01-01",{"$f":"TODAY()","v":"2014-08-13"},{"$f":"FALSE()","v":false},null,null,null,"Start_Date","mm/dd/yyyy","1980-01-01",{"$f":"TODAY()","v":"2014-08-13"},{"$f":"FALSE()","v":false},null,null,null,"TreatmentID",null,null,null,"","TreatmentID",null,null,"TreatmentID",null,null,null,"","TreatmentID",null,null,"TreatmentID",null,null,null,"","TreatmentID",null,null,"TreatmentID",null,null,null,"","TreatmentID",null,null,"Time",null,"00:00:00","23:59:59",{"$f":"FALSE()","v":false},null,null,null,"TreatmentID",null,null,null,"","TreatmentID",null,null,"TreatmentID",null,null,null,"","TreatmentID",null,null,"TreatmentID",null,null,null,"","TreatmentID",null,null,"TreatmentID",null,null,null,"","TreatmentID",null,null,"TreatmentID",null,null,null,"","TreatmentID",null,null,"TreatmentID",null,null,null,"","TreatmentID",null,null,"TreatmentID",null,null,null,"","TreatmentID"]
[null,"Project_Name",null,null,null,null,"Project_Name",null,null,"State/Province",null,null,null,null,null,null,null,"Middle_name",null,null,null,"",null,null,null,"Title",null,null,null,null,null,null,null,"Crop_Rotation_Descriptor",null,null,null,"","Crop_Rotation_Descriptor",null,null,"Exp_Unit2_Descriptor",null,null,null,"",null,null,null,"Wth_Station_ID",null,null,null,"",null,null,null,"Wth_StationID",null,null,null,"",null,null,null,"TreatmentID",null,null,null,"","TreatmentID",null,null,"TreatmentID",null,null,null,"","TreatmentID",null,null,"TreatmentID",null,null,null,"","TreatmentID",null,null,"TreatmentID",null,null,null,"","TreatmentID",null,null,"TreatmentID",null,null,null,"","TreatmentID",null,null,"End_Date","mm/dd/yyyy","1980-01-01",{"$f":"TODAY()","v":"2014-08-13"},{"$f":"FALSE()","v":false},null,null,null,"Upper","cm",0,200,{"$f":"FALSE()","v":false},null,null,null,"Upper","cm",0,200,{"$f":"FALSE()","v":false},null,null,null,"Upper","cm",0,200,{"$f":"FALSE()","v":false},null,null,null,"Timing_Descriptor",null,null,null,"","Timing_Descriptor",null,null,"TreatmentID",null,null,null,"","TreatmentID",null,null,"Growth_Stage",null,null,null,"","Growth_Stage",null,null,"Growth_Stage",null,null,null,"","Growth_Stage",null,null,"Growth_Stage",null,null,null,"","Growth_Stage",null,null,"Growth_Stage",null,null,null,"","Growth_Stage",null,null,"Growth_Stage",null,null,null,"","Growth_Stage",null,null,"Species_Mix",null,null,null,"","Species_Mix",null,null,"What_is_being_measured",null,null,null,""]
[null,"Experiment_Display_Name",null,null,null,null,null,null,null,"County",null,null,null,null,null,null,null,"Suffix",null,null,null,"",null,null,null,"Is_Part_Of",null,null,null,null,null,null,null,"Tillage_Descriptor",null,null,null,"","Tillage_Descriptor",null,null,"Exp_Unit3",null,null,null,"",null,null,null,"Weather_Lat","decimal degrees",-75,75,{"$f":"FALSE()","v":false},null,null,null,"TMax","degrees Celsius",-40,40,{"$f":"FALSE()","v":false},null,null,null,"Crop",null,null,null,false,"Crop",null,null,"Crop",null,null,null,"","Crop",null,null,"Crop",null,null,null,"","Crop",null,null,"Crop",null,null,null,"","Crop",null,null,"Crop",null,null,null,"","Crop",null,null,"TreatmentID",null,null,null,"","TreatmentID",null,null,"Lower","cm",0,200,{"$f":"FALSE()","v":false},null,null,null,"Lower","cm",0,200,{"$f":"FALSE()","v":false},null,null,null,"Lower","cm",0,200,{"$f":"FALSE()","v":false},null,null,null,"Crop",null,null,null,"","Crop",null,null,"Crop",null,null,null,"","Crop",null,null,"Crop",null,null,null,"","Crop",null,null,"Crop",null,null,null,"","Crop",null,null,"Crop",null,null,null,"","Crop",null,null,"Crop",null,null,null,"","Crop",null,null,"Crop",null,null,null,"","Crop",null,null,"Growth_Stage",null,null,null,"","Growth_Stage",null,null,"Measurement_Value",null,0,10000000,{"$f":"FALSE()","v":false}]
[null,"Date_experiment_began","mm/dd/yyyy","1980-01-01",{"$f":"TODAY()","v":"2014-08-13"},{"$f":"FALSE()","v":false},null,null,null,"City",null,null,null,null,null,null,null,"Role_in_study",null,null,null,"",null,null,null,"Author_Creator",null,null,null,null,null,null,null,"Nitrogen_Treatment_Descriptor",null,null,null,"",null,null,null,"Exp_Unit3_Descriptor",null,null,null,"",null,null,null,"Weather_Long","decimal degrees",-180,180,{"$f":"FALSE()","v":false},null,null,null,"TMin","degrees Celsius",-40,40,{"$f":"FALSE()","v":false},null,null,null,"Amend_Placement",null,null,null,null,"Amend_Placement",null,null,"Cultivar",null,null,null,"",null,null,null,"Tillage_Event",null,null,null,"","Tillage_Event",null,null,"Growth_Stage",null,null,null,"","Growth_Stage",null,null,"Equipment_used_for_non-grain_harvest",null,null,null,"",null,null,null,"Stocking_Rate","# of animals/ha",0,200,{"$f":"FALSE()","v":false},null,null,null,"Sand","%",0,100,{"$f":"FALSE()","v":false},null,null,null,"pH","no units",0,14,{"$f":"FALSE()","v":false},null,null,null,"Beta_Glucosidase","mg ρ-nitrophenol released kg-1 soil  h-1",0,null,{"$f":"FALSE()","v":false},null,null,null,"Soil_Covered_with_Residue","%",0,100,{"$f":"FALSE()","v":false},null,null,null,"Chamber_Placement",null,null,null,null,"Chamber_Placement",null,null,"Harvested_Fraction",null,null,null,"","Harvested_Fraction",null,null,"Plant_Fraction",null,null,null,"","Plant_Fraction",null,null,"Plant_Fraction",null,null,null,"","Plant_Fraction",null,null,"Plant_Fraction",null,null,null,"","Plant_Fraction",null,null,"Plant_Fraction",null,null,null,"","Plant_Fraction",null,null,"Broadleaf_vs_Grass",null,null,null,"","Broadleaf_vs_Grass",null,null,"Measurement_Units",null,null,null,""]
[null,"Date_experiment_ended","mm/dd/yyyy","1980-01-01",null,{"$f":"FALSE()","v":false},null,null,null,"Latitude",null,null,null,null,null,null,null,"Primary_contact",null,null,null,"",null,null,null,"Corresponding_Author",null,null,null,null,null,null,null,"Project_Scenario",null,null,null,"","Project_Scenario",null,null,"Exp_Unit4",null,null,null,"",null,null,null,"Weather_Elev","m",-50,5000,{"$f":"FALSE()","v":false},null,null,null,"Precip","mm/d",0,250,{"$f":"FALSE()","v":false},null,null,null,"Amend_Depth","cm",0,500,{"$f":"FALSE()","v":false},null,null,null,"Planting_Rate","# of seeds/ha",0,3200000,{"$f":"FALSE()","v":false},null,null,null,"Tillage_Event_Depth","cm",0,200,{"$f":"FALSE()","v":false},null,null,null,null,null,null,null,null,null,null,null,"Cutting_height_or_Material_harvested",null,null,null,"",null,null,null,"Animal_Species",null,null,null,"","Animal_Species",null,null,"Silt","%",0,100,{"$f":"FALSE()","v":false},null,null,null,"TSC","g/kg",0,1000,{"$f":"FALSE()","v":false},null,null,null,"Beta_Glucosaminidase_NAG","mg ρ-nitrophenol released kg-1 soil  h-1",0,null,{"$f":"FALSE()","v":false},null,null,null,null,null,null,null,null,null,null,null,"N2O","g N/ha/d",-100,10000,{"$f":"FALSE()","v":false},null,null,null,"Corn_Ear_Height","cm",0,50000,{"$f":"FALSE()","v":false},null,null,null,"Fraction_DryMatter","kg/ha",0,50000,{"$f":"FALSE()","v":false},null,null,null,"Glucan","g/kg",0,1000,{"$f":"FALSE()","v":false},null,null,null,"Volatile_Matter","g/kg",0,1000,{"$f":"FALSE()","v":false},null,null,null,"C_concentration","g/kg",0,1000,{"$f":"FALSE()","v":false},null,null,null,"Above_Ground_Biomass","kg/ha (dryweight)",0,50000,{"$f":"FALSE()","v":false}]
[null,null,null,null,null,null,null,null,null,"Longitude",null,null,null,null,null,null,null,"Department_institute",null,null,null,"",null,null,null,"Identifier",null,null,null,null,null,null,null,"Fertilizer_Amendment_Class",null,null,null,"","Fertilizer_Amendment_Class",null,null,"Exp_Unit4_Descriptor",null,null,null,"",null,null,null,"Dist_from_field","m",0,10000,{"$f":"FALSE()","v":false},null,null,null,"Bad_Value_Flag","integer",-999,null,{"$f":"FALSE()","v":false},null,null,null,"Amend_Type",null,null,null,"","Amend_Type",null,null,"Planting_Density","kg/ha",0,150000,{"$f":"FALSE()","v":false},null,null,null,"Tillage_Event_Method",null,null,null,"",null,null,null,null,null,null,null,null,null,null,null,"Percent_rows_harvested","%",0,100,{"$f":"FALSE()","v":false},null,null,null,"Animal_Class",null,null,null,"","Animal_Class",null,null,"Clay","%",0,100,{"$f":"FALSE()","v":false},null,null,null,"TSN","g/kg",0,1000,{"$f":"FALSE()","v":false},null,null,null,"Acid_Phosphatase","mg ρ-n per kg-1 soil  h-0",0,null,{"$f":"FALSE()","v":false},null,null,null,null,null,null,null,null,null,null,null,"N2O_Interp_Obs","g N/ha/d",0,1,{"$f":"FALSE()","v":false},null,null,null,"Above_Ground_Biomass","kg biomass/ha",0,50000,{"$f":"FALSE()","v":false},null,null,null,"Fraction_MoisturePct","%",0,100,{"$f":"FALSE()","v":false},null,null,null,"Xylan","g/kg",0,1000,{"$f":"FALSE()","v":false},null,null,null,"Ash","g/kg",0,1000,{"$f":"FALSE()","v":false},null,null,null,"N_concentration","g/kg",0,1000,{"$f":"FALSE()","v":false},null,null,null,"Surface_Litter","kg/ha (dryweight)",0,50000,{"$f":"FALSE()","v":false}]
[null,null,null,null,null,null,null,null,null,"Elevation",null,null,null,null,null,null,null,"Organization",null,null,null,"",null,null,null,"Description",null,null,null,null,null,null,null,"Cover_Crop",null,null,null,"","Cover_Crop",null,null,"Exp_Unit5",null,null,null,"",null,null,null,"Direction_from_field","direction",null,null,"",null,null,null,"RH","%",0,100,{"$f":"FALSE()","v":false},null,null,null,"Total_Amend_Amount","kg/ha",null,null,null,null,null,null,"Planting_Method",null,null,null,"","Planting_Method",null,null,null,null,null,null,"",null,null,null,null,null,null,null,null,null,null,null,"If_perennial_stand_age_in_years","years",0,200,{"$f":"FALSE()","v":false},null,null,null,"Other_Events",null,null,null,"",null,null,null,"Bulk_Density","g/cm3",0,3,false,null,null,null,"Inorganic_C","g/kg",0,1000,{"$f":"FALSE()","v":false},null,null,null,"Alkaline_Phosphatase","mg ρ-n per kg-1 soil  h-1",0,null,{"$f":"FALSE()","v":false},null,null,null,null,null,null,null,null,null,null,null,"CO2","g C/ha/d",-500,105000,{"$f":"FALSE()","v":false},null,null,null,"Unit_Grain_Weight","mg biomass",0,5650,{"$f":"FALSE()","v":false},null,null,null,"Fraction_C","kg C/ha",0,25000,{"$f":"FALSE()","v":false},null,null,null,"Galactan","g/kg",0,1000,{"$f":"FALSE()","v":false},null,null,null,"Gross_Calorific_Value","MJ/kg",0,null,{"$f":"FALSE()","v":false},null,null,null,"P_concentration","g/kg",0,1000,{"$f":"FALSE()","v":false},null,null,null,"Standing_Dead","kg/ha (dryweight)",0,50000,{"$f":"FALSE()","v":false}]
[null,null,null,null,null,null,null,null,null,"MAP",null,null,null,null,null,null,null,"Date_created",null,null,null,{"$f":"FALSE()","v":false},null,null,null,"Full_citation",null,null,null,null,null,null,null,"Residue_Removal",null,null,null,"","Residue_Removal",null,null,"Exp_Unit5_Descriptor",null,null,null,"",null,null,null,"Wth_Station_URL",null,null,null,"",null,null,null,"Dew_point","degrees Celsius",-20,40,{"$f":"FALSE()","v":false},null,null,null,"Total_N_Amount","kg N/ha",0,500,{"$f":"FALSE()","v":false},null,null,null,"Planting_Depth","cm",0,50,{"$f":"FALSE()","v":false},null,null,null,null,null,null,null,null,null,null,null,null,null,null,null,null,null,null,null,"If_annual_growth_stage_at_residue_harvest",null,null,null,"","Growth_Stage",null,null,"Burn_Frequency","years/burn",0,10,{"$f":"FALSE()","v":false},null,null,null,"WP","% vol (cu cm H2O/cu cm soil*100)",2,20,{"$f":"FALSE()","v":false},null,null,null,"Organic_C","g/kg",0,1000,{"$f":"FALSE()","v":false},null,null,null,"Fluorescein_Diacetate_Hydrolysis","mg kg-1 h-1",0,null,{"$f":"FALSE()","v":false},null,null,null,null,null,null,null,null,null,null,null,"CO2_Interp_Obs","g C/ha/d",0,1,{"$f":"FALSE()","v":false},null,null,null,"Grain_DryMatter","kg biomass/ha",0,50000,{"$f":"FALSE()","v":false},null,null,null,"Fraction_N","kg N/ha",0,10000,{"$f":"FALSE()","v":false},null,null,null,"Arabinan","g/kg",0,1000,{"$f":"FALSE()","v":false},null,null,null,"Volatile_Matter_STD","g/kg",0,1000,{"$f":"FALSE()","v":false},null,null,null,"K_concentration","g/kg",0,1000,{"$f":"FALSE()","v":false},null,null,null,"LAI","surface area of leaves/surface area of land",0,10,{"$f":"FALSE()","v":false}]
[null,null,null,null,null,null,null,null,null,"MAT",null,null,null,null,null,null,null,"Profession",null,null,null,"",null,null,null,null,null,null,null,null,null,null,null,"Irrigation",null,null,null,"","Yes_No",null,null,"Exp_UnitID",null,null,null,true,null,null,null,null,null,null,null,null,null,null,null,"Wind_speed","m/s",0,30,{"$f":"FALSE()","v":false},null,null,null,"Total_P_Amount","kg P/ha",0,500,{"$f":"FALSE()","v":false},null,null,null,"Row_Width","cm",0,100,{"$f":"FALSE()","v":false},null,null,null,null,null,null,null,null,null,null,null,null,null,null,null,null,null,null,null,null,null,null,null,null,null,null,null,"Burn_Intensity",null,null,null,"","Burn_Intensity",null,null,"FC","% vol (cu cm H2O/cu cm soil*100)",5,50,{"$f":"FALSE()","v":false},null,null,null,"Cmin","g/kg",0,1000,{"$f":"FALSE()","v":false},null,null,null,"Glomalin",null,null,null,null,null,null,null,null,null,null,null,null,null,null,null,"CH4","g C/ha/d",-10000,10000,{"$f":"FALSE()","v":false},null,null,null,"Grain_MoisturePct","%",0,100,{"$f":"FALSE()","v":false},null,null,null,"Unit_Grain_Weight","mg",0,1000,{"$f":"FALSE()","v":false},null,null,null,"Mannan","g/kg",0,1000,{"$f":"FALSE()","v":false},null,null,null,"Ash_STD","g/kg",0,1000,{"$f":"FALSE()","v":false},null,null,null,"Ca_concentration","g/kg",0,1000,{"$f":"FALSE()","v":false},null,null,null,"NPct","% (N mass/biomass mass*100)",0,100,{"$f":"FALSE()","v":false}]
[null,null,null,null,null,null,null,null,null,"Native_Vegetation",null,null,null,null,null,null,null,"Person_e_mail",null,null,null,"",null,null,null,null,null,null,null,null,null,null,null,"Organic_Management",null,null,null,"",null,null,null,"TreatmentID",null,null,null,true,"TreatmentID",null,null,null,null,null,null,null,null,null,null,"Solar_Radn_Veg","MJ/m2/d",0,55,{"$f":"FALSE()","v":false},null,null,null,"Total_K_Amount","kg K/ha",0,500,{"$f":"FALSE()","v":false},null,null,null,null,null,null,null,null,null,null,null,null,null,null,null,null,null,null,null,null,null,null,null,null,null,null,null,null,null,null,null,null,null,null,null,null,null,null,null,null,null,null,null,"Ksat","cm/sec",0,1000,{"$f":"FALSE()","v":false},null,null,null,"CEC","cmol/kg",0,null,{"$f":"FALSE()","v":false},null,null,null,"FAME",null,null,null,"","Yes_No",null,null,null,null,null,null,null,null,null,null,"CH4_Interp_Obs","g C/ha/d",0,1,{"$f":"FALSE()","v":false},null,null,null,"Grain_C","kg C/ha",0,25000,{"$f":"FALSE()","v":false},null,null,null,"Fraction_DryMatter_STD","kg/ha",0,50000,{"$f":"FALSE()","v":false},null,null,null,"Lignin","g/kg",0,1000,{"$f":"FALSE()","v":false},null,null,null,"Gross_Calorific_Value_STD","MJ/kg",0,null,{"$f":"FALSE()","v":false},null,null,null,"Mg_concentration","g/kg",0,1000,{"$f":"FALSE()","v":false},null,null,null,"LigninPct","% (lignin mass/biomass mass*100)",0,100,{"$f":"FALSE()","v":false}]
[null,null,null,null,null,null,null,null,null,"Site_History",null,null,null,null,null,null,null,"Telephone",null,null,null,"",null,null,null,null,null,null,null,null,null,null,null,"Grazing_Rate",null,null,null,"","Grazing_Rate",null,null,"FieldID",null,null,null,null,"FieldID",null,null,null,null,null,null,null,null,null,null,"Solar_Radn_Bare","MJ/m2/d",0,55,{"$f":"FALSE()","v":false},null,null,null,"Total_Pest_Amount","m L/ha",0,null,false,null,null,null,null,null,null,null,null,null,null,null,null,null,null,null,null,null,null,null,null,null,null,null,null,null,null,null,null,null,null,null,null,null,null,null,null,null,null,null,null,null,null,null,"MRC_MPA","MPA",null,null,{"$f":"FALSE()","v":false},"Yes_No",null,null,"Electrical_Conductivity","d siemens/m",0,1,{"$f":"FALSE()","v":false},null,null,null,"PLFA",null,null,null,"","Yes_No",null,null,null,null,null,null,null,null,null,null,"Air_Temp","degrees Celsius",-20,40,{"$f":"FALSE()","v":false},null,null,null,"Grain_N","kg N/ha",0,10000,{"$f":"FALSE()","v":false},null,null,null,"Fraction_MoisturePct_STD","%",0,100,{"$f":"FALSE()","v":false},null,null,null,"Neutral_Detergent_Fiber","g/kg",0,1000,{"$f":"FALSE()","v":false},null,null,null,null,null,null,null,null,null,null,null,"S_concentration","g/kg",0,1000,{"$f":"FALSE()","v":false},null,null,null,"GroundCoverPct","% (surface area of vegetation/surface area of land)",0,100,{"$f":"FALSE()","v":false}]
[null,null,null,null,null,null,null,null,null,null,null,null,null,null,null,null,null,"Person_web_site",null,null,null,"",null,null,null,null,null,null,null,null,null,null,null,null,null,null,null,null,null,null,null,"Start_Date","mm/dd/yyyy","1980-01-01",{"$f":"TODAY()","v":"2014-08-13"},{"$f":"FALSE()","v":false},null,null,null,null,null,null,null,null,null,null,null,"SoilTemp_5cm","degrees Celsius",-20,40,{"$f":"FALSE()","v":false},null,null,null,"Active_Ingredient_Type",null,null,null,"","Active_Ingredient_Type",null,null,null,null,null,null,null,null,null,null,null,null,null,null,null,null,null,null,null,null,null,null,null,null,null,null,null,null,null,null,null,null,null,null,null,null,null,null,null,null,null,null,"Soil_Heat_Flux","cmol/kg",0,null,{"$f":"FALSE()","v":false},null,null,null,"Soluble_Organic_C","mg C/kg",0,1000000,{"$f":"FALSE()","v":false},null,null,null,"DNA",null,null,null,"","Yes_No",null,null,null,null,null,null,null,null,null,null,"Soil_Temp","degrees Celsius",-20,40,{"$f":"FALSE()","v":false},null,null,null,"Harv_Res_DryMatter","kg biomass/ha",0,50000,{"$f":"FALSE()","v":false},null,null,null,"Fraction_C_STD","kg C/ha",0,25000,{"$f":"FALSE()","v":false},null,null,null,"Acid_Detergent_Fiber","g/kg",0,1000,{"$f":"FALSE()","v":false},null,null,null,null,null,null,null,null,null,null,null,"Na_concentration","g/kg",0,1000,{"$f":"FALSE()","v":false},null,null,null,"AGB_C","kg C/ha",0,25000,{"$f":"FALSE()","v":false}]
[null,null,null,null,null,null,null,null,null,null,null,null,null,null,null,null,null,"Person_note",null,null,null,"",null,null,null,null,null,null,null,null,null,null,null,null,null,null,null,null,null,null,null,"End_Date","mm/dd/yyyy","1980-01-01",{"$f":"TODAY()","v":"2014-08-13"},{"$f":"FALSE()","v":false},null,null,null,null,null,null,null,null,null,null,null,"SoilTemp_10cm","degrees Celsius",-20,40,{"$f":"FALSE()","v":false},null,null,null,"Pest_Target",null,null,null,null,null,null,null,null,null,null,null,null,null,null,null,null,null,null,null,null,null,null,null,null,null,null,null,null,null,null,null,null,null,null,null,null,null,null,null,null,null,null,null,null,null,null,null,"Macro-aggregation","%",0,100,false,null,null,null,"Ammonium_NH4","mg N/kg",0,1000000,{"$f":"FALSE()","v":false},null,null,null,"Identifiable_Plant_Material","g C/kg",0,1000,{"$f":"FALSE()","v":false},null,null,null,null,null,null,null,null,null,null,null,"Soil_Moisture","% vol (cu cm H2O/cu cm soil*100)",1,100,{"$f":"FALSE()","v":false},null,null,null,"HarvRes_MoisturePct","%",0,100,{"$f":"FALSE()","v":false},null,null,null,"Fraction_N_STD","kg N/ha",0,10000,{"$f":"FALSE()","v":false},null,null,null,"Acid_Soluble_Lignin","g/kg",0,1000,{"$f":"FALSE()","v":false},null,null,null,null,null,null,null,null,null,null,null,"Cl_concentration","g/kg",0,3500,{"$f":"FALSE()","v":false},null,null,null,"AGB_N","kg N/ha",0,2500,{"$f":"FALSE()","v":false}]
[null,null,null,null,null,null,null,null,null,null,null,null,null,null,null,null,null,null,null,null,null,null,null,null,null,null,null,null,null,null,null,null,null,null,null,null,null,null,null,null,null,"Change_in_Management",null,null,null,"",null,null,null,null,null,null,null,null,null,null,null,"Wind_Direction","degrees from north",0,360,{"$f":"FALSE()","v":false},null,null,null,"Pest_Placement",null,null,null,null,"Pest_Placement",null,null,null,null,null,null,null,null,null,null,null,null,null,null,null,null,null,null,null,null,null,null,null,null,null,null,null,null,null,null,null,null,null,null,null,null,null,null,null,null,null,null,"Water_Stable_Aggregates","g C/kg",0,null,{"$f":"FALSE()","v":false},null,null,null,"Nitrate_NO3","mg N/kg",0,1000000,{"$f":"FALSE()","v":false},null,null,null,"POM","g C/kg",0,1000,{"$f":"FALSE()","v":false},null,null,null,null,null,null,null,null,null,null,null,"Soil_Moisture_Depth","cm",0,100,{"$f":"FALSE()","v":false},null,null,null,"Harv_Res_C","kg C/ha",0,25000,{"$f":"FALSE()","v":false},null,null,null,"Unit_Grain_Weight_STD","mg",0,1000,{"$f":"FALSE()","v":false},null,null,null,"Acid_Insoluble_Lignin ","g/kg",0,1000,{"$f":"FALSE()","v":false},null,null,null,null,null,null,null,null,null,null,null,"Al_concentration","mg/kg",0,1500,{"$f":"FALSE()","v":false},null,null,null,"BGB_C","kg C/ha",0,25000,{"$f":"FALSE()","v":false}]
[null,null,null,null,null,null,null,null,null,null,null,null,null,null,null,null,null,null,null,null,null,null,null,null,null,null,null,null,null,null,null,null,null,null,null,null,null,null,null,null,null,"Soil_Series",null,null,null,"",null,null,null,null,null,null,null,null,null,null,null,"Open_Pan_Evaporation","mm/d",0,15,{"$f":"FALSE()","v":false},null,null,null,"Irrigation_Amount","cm",0,10,{"$f":"FALSE()","v":false},null,null,null,null,null,null,null,null,null,null,null,null,null,null,null,null,null,null,null,null,null,null,null,null,null,null,null,null,null,null,null,null,null,null,null,null,null,null,null,null,null,null,null,"Mid_Near_Infrared_Total_C","g/kg",0,null,{"$f":"FALSE()","v":false},null,null,null,"Phosphorous_P","mg P/kg",0,1000000,{"$f":"FALSE()","v":false},null,null,null,"MoBio_Carbon","mg C/kg",0,1000000,{"$f":"FALSE()","v":false},null,null,null,null,null,null,null,null,null,null,null,"N2O_STD","g N/ha/d",-100,10000,{"$f":"FALSE()","v":false},null,null,null,"Harv_Res_N","kg N/ha",0,25000,{"$f":"FALSE()","v":false},null,null,null,null,null,null,null,null,null,null,null,"Crude_Protein","g/kg",0,1000,{"$f":"FALSE()","v":false},null,null,null,null,null,null,null,null,null,null,null,"B_concentration","mg/kg",0,1000,{"$f":"FALSE()","v":false},null,null,null,"BGB_N","kg N/ha",0,2500,{"$f":"FALSE()","v":false}]
[null,null,null,null,null,null,null,null,null,null,null,null,null,null,null,null,null,null,null,null,null,null,null,null,null,null,null,null,null,null,null,null,null,null,null,null,null,null,null,null,null,"Soil_Classification",null,null,null,null,null,null,null,null,null,null,null,null,null,null,null,"Closed_Pan_Evaporation","mm/d",0,15,{"$f":"FALSE()","v":false},null,null,null,"Irrigation_Type",null,null,null,null,"Irrigation_Type",null,null,null,null,null,null,null,null,null,null,null,null,null,null,null,null,null,null,null,null,null,null,null,null,null,null,null,null,null,null,null,null,null,null,null,null,null,null,null,null,null,null,"Bulk_Density_STD",null,null,null,null,null,null,null,"Potassium_K","mg K/kg",0,1000000,{"$f":"FALSE()","v":false},null,null,null,"MoBio_Nitrogen","mg N/kg",0,1000000,{"$f":"FALSE()","v":false},null,null,null,null,null,null,null,null,null,null,null,"CO2_STD","g C/ha/d",-100,10000,{"$f":"FALSE()","v":false},null,null,null,"nonHarv_Res_DryMatter","kg/ha",0,10500,{"$f":"FALSE()","v":false},null,null,null,null,null,null,null,null,null,null,null,"Non-fiber_Carbohydrates","g/kg",0,1000,{"$f":"FALSE()","v":false},null,null,null,null,null,null,null,null,null,null,null,"Cu_concentration","mg/kg",0,1000,{"$f":"FALSE()","v":false},null,null,null,"ANPP_C","kg C/ha/yr",0,25000,{"$f":"FALSE()","v":false}]
[null,null,null,null,null,null,null,null,null,null,null,null,null,null,null,null,null,null,null,null,null,null,null,null,null,null,null,null,null,null,null,null,null,null,null,null,null,null,null,null,null,"Landscape_Position",null,null,null,"","Landscape_Position",null,null,null,null,null,null,null,null,null,null,"Wet_Dry_N_Deposition","kg/ha/d",0,0.5,{"$f":"FALSE()","v":false},null,null,null,"Irrigation_N","mg/L",0,1000,{"$f":"FALSE()","v":false},null,null,null,null,null,null,null,null,null,null,null,null,null,null,null,null,null,null,null,null,null,null,null,null,null,null,null,null,null,null,null,null,null,null,null,null,null,null,null,null,null,null,null,"WP_STD","% vol (cu cm H2O/cu cm soil*100)",0,null,{"$f":"FALSE()","v":false},null,null,null,"Ca","mg Ca/kg",0,1000000,{"$f":"FALSE()","v":false},null,null,null,"Beta_Glucosidase_STD","mg ρ-nitrophenol released kg-1 soil  h-1",0,null,{"$f":"FALSE()","v":false},null,null,null,null,null,null,null,null,null,null,null,"CH4_STD","g C/ha/d",-10000,10000,{"$f":"FALSE()","v":false},null,null,null,"nonHarvRes_MoisturePct","%",0,100,{"$f":"FALSE()","v":false},null,null,null,null,null,null,null,null,null,null,null,"Ash","g/kg",0,1000,{"$f":"FALSE()","v":false},null,null,null,null,null,null,null,null,null,null,null,"Fe_concentration","mg/kg",0,2000,{"$f":"FALSE()","v":false},null,null,null,"ANPP_N","kg N/ha/yr",0,2500,{"$f":"FALSE()","v":false}]
[null,null,null,null,null,null,null,null,null,null,null,null,null,null,null,null,null,null,null,null,null,null,null,null,null,null,null,null,null,null,null,null,null,null,null,null,null,null,null,null,null,"Latitude",null,null,null,null,null,null,null,null,null,null,null,null,null,null,null,"Total_Net_Radn","MJ/m2/d",0,55,{"$f":"FALSE()","v":false},null,null,null,null,null,null,null,"",null,null,null,null,null,null,null,null,null,null,null,null,null,null,null,null,null,null,null,null,null,null,null,null,null,null,null,null,null,null,null,null,null,null,null,null,null,null,null,null,null,null,null,"FC_STD","% vol (cu cm H2O/cu cm soil*100)",0,null,{"$f":"FALSE()","v":false},null,null,null,"Mg","mg Mg/kg",0,1000000,{"$f":"FALSE()","v":false},null,null,null,"Beta_Glucosaminidase_NAG_STD","mg ρ-nitrophenol released kg-1 soil  h-1",0,null,{"$f":"FALSE()","v":false},null,null,null,null,null,null,null,null,null,null,null,"Air_Temp_STD","degrees Celsius",-20,40,{"$f":"FALSE()","v":false},null,null,null,"nonHarv_Res_C","kg C/ha",0,25000,{"$f":"FALSE()","v":false},null,null,null,null,null,null,null,null,null,null,null,"Glucan_STD","g/kg",0,1000,{"$f":"FALSE()","v":false},null,null,null,null,null,null,null,null,null,null,null,"Mn_concentration","mg/kg",0,1000,{"$f":"FALSE()","v":false},null,null,null,"BNPP_C","kg C/ha/yr",0,25000,{"$f":"FALSE()","v":false}]
[null,null,null,null,null,null,null,null,null,null,null,null,null,null,null,null,null,null,null,null,null,null,null,null,null,null,null,null,null,null,null,null,null,null,null,null,null,null,null,null,null,"Longitude",null,null,null,null,null,null,null,null,null,null,null,null,null,null,null,"Snow","mm/d",0,1000,{"$f":"FALSE()","v":false},null,null,null,null,null,null,null,"",null,null,null,null,null,null,null,null,null,null,null,null,null,null,null,null,null,null,null,null,null,null,null,null,null,null,null,null,null,null,null,null,null,null,null,null,null,null,null,null,null,null,null,"Ksat_STD","cm/sec",0,null,{"$f":"FALSE()","v":false},null,null,null,"Cu","mg Cu/kg",0,1000000,{"$f":"FALSE()","v":false},null,null,null,"Acid_Phosphatase_STD","mg ρ-n per kg-1 soil  h-0",0,null,{"$f":"FALSE()","v":false},null,null,null,null,null,null,null,null,null,null,null,"Soil_Temp_STD","degrees Celsius",-20,40,{"$f":"FALSE()","v":false},null,null,null,"nonHarv_Res_N","kg N/ha",0,10000,{"$f":"FALSE()","v":false},null,null,null,null,null,null,null,null,null,null,null,"Xylan_STD","g/kg",0,1000,{"$f":"FALSE()","v":false},null,null,null,null,null,null,null,null,null,null,null,"Zn_concentration","mg/kg",0,1000,{"$f":"FALSE()","v":false},null,null,null,"BNPP_N","kg N/ha/yr",0,2500,{"$f":"FALSE()","v":false}]
[null,null,null,null,null,null,null,null,null,null,null,null,null,null,null,null,null,null,null,null,null,null,null,null,null,null,null,null,null,null,null,null,null,null,null,null,null,null,null,null,null,"Slope","percent",0,10,null,null,null,null,null,null,null,null,null,null,null,null,null,null,null,null,null,null,null,null,null,null,null,null,null,null,null,null,null,null,null,null,null,null,null,null,null,null,null,null,null,null,null,null,null,null,null,null,null,null,null,null,null,null,null,null,null,null,null,null,null,null,null,null,null,null,null,null,"Soil_Heat_Flux_STD","cmol/kg",0,null,{"$f":"FALSE()","v":false},null,null,null,"Fe","mg Fe/kg",0,1000000,{"$f":"FALSE()","v":false},null,null,null,"Alkaline_Phosphatase_STD","mg ρ-n per kg-1 soil  h-1",0,null,{"$f":"FALSE()","v":false},null,null,null,null,null,null,null,null,null,null,null,"Soil_Moisture_STD","% vol (cu cm H2O/cu cm soil*100)",0,100,{"$f":"FALSE()","v":false},null,null,null,"Root_DryMatter","kg biomass/ha",0,50000,{"$f":"FALSE()","v":false},null,null,null,null,null,null,null,"",null,null,null,"Galactan_STD","g/kg",0,1000,{"$f":"FALSE()","v":false},null,null,null,null,null,null,null,null,null,null,null,"C_Concentration_STD","g/kg",0,1000,{"$f":"FALSE()","v":false},null,null,null,"Above_Ground_Biomass_STD","kg/ha (dryweight)",0,50000,{"$f":"FALSE()","v":false}]
[null,null,null,null,null,null,null,null,null,null,null,null,null,null,null,null,null,null,null,null,null,null,null,null,null,null,null,null,null,null,null,null,null,null,null,null,null,null,null,null,null,"Exp_Unit_Size","m2",0,999999,{"$f":"FALSE()","v":false},null,null,null,null,null,null,null,null,null,null,null,null,null,null,null,null,null,null,null,null,null,null,null,"",null,null,null,null,null,null,null,null,null,null,null,null,null,null,null,null,null,null,null,null,null,null,null,null,null,null,null,null,null,null,null,null,null,null,null,null,null,null,null,null,null,null,null,"Macro-aggregation_STD",null,0,100,false,null,null,null,"Mn","mg Mn/kg",0,1000000,{"$f":"FALSE()","v":false},null,null,null,"Fluorescein_Diacetate_Hydrolysis_STD","mg kg-1 h-1",0,null,{"$f":"FALSE()","v":false},null,null,null,null,null,null,null,null,null,null,null,null,null,null,null,null,null,null,null,"Root_MoisturePct","%",0,100,{"$f":"FALSE()","v":false},null,null,null,null,null,null,null,"",null,null,null,"Arabinan_STD","g/kg",0,1000,{"$f":"FALSE()","v":false},null,null,null,null,null,null,null,null,null,null,null,"N_Concentration_STD","g/kg",0,1000,{"$f":"FALSE()","v":false},null,null,null,"Surface_Litter_STD","kg/ha (dryweight)",0,50000,{"$f":"FALSE()","v":false}]
[null,null,null,null,null,null,null,null,null,null,null,null,null,null,null,null,null,null,null,null,null,null,null,null,null,null,null,null,null,null,null,null,null,null,null,null,null,null,null,null,null,null,null,null,null,null,null,null,null,null,null,null,null,null,null,null,null,null,null,null,null,null,null,null,null,null,null,null,null,null,null,null,null,null,null,null,null,null,null,null,null,null,null,null,null,null,null,null,null,null,null,null,null,null,null,null,null,null,null,null,null,null,null,null,null,null,null,null,null,null,null,null,null,"Water_Stable_Aggregates_STD","g C/kg",0,null,{"$f":"FALSE()","v":false},null,null,null,"Zn","mg Zn/kg",0,1000000,{"$f":"FALSE()","v":false},null,null,null,"Glomalin_STD","g/kg",0,1000,null,null,null,null,null,null,null,null,null,null,null,null,null,null,null,null,null,null,null,null,"Root_C","kg C/ha",0,25000,{"$f":"FALSE()","v":false},null,null,null,null,null,null,null,"",null,null,null,"Mannan_STD","g/kg",0,1000,{"$f":"FALSE()","v":false},null,null,null,null,null,null,null,null,null,null,null,"P_Concentration_STD","g/kg",0,1000,{"$f":"FALSE()","v":false},null,null,null,"Standing_Dead_STD","kg/ha (dryweight)",0,50000,{"$f":"FALSE()","v":false}]
[null,null,null,null,null,null,null,null,null,null,null,null,null,null,null,null,null,null,null,null,null,null,null,null,null,null,null,null,null,null,null,null,null,null,null,null,null,null,null,null,null,null,null,null,null,null,null,null,null,null,null,null,null,null,null,null,null,null,null,null,null,null,null,null,null,null,null,null,null,null,null,null,null,null,null,null,null,null,null,null,null,null,null,null,null,null,null,null,null,null,null,null,null,null,null,null,null,null,null,null,null,null,null,null,null,null,null,null,null,null,null,null,null,"Mid_Near_Infrared_Total_C_STD","g/kg",0,null,{"$f":"FALSE()","v":false},null,null,null,"Potentially_Mineralizable_N","g/kg",0,1000,{"$f":"FALSE()","v":false},null,null,null,"Identifiable_Plant_Material_STD","g C/kg",0,1000,{"$f":"FALSE()","v":false},null,null,null,null,null,null,null,null,null,null,null,null,null,null,null,null,null,null,null,"Root_N","kg N/ha",0,10000,{"$f":"FALSE()","v":false},null,null,null,null,null,null,null,null,null,null,null,"Lignin_STD","g/kg",0,1000,{"$f":"FALSE()","v":false},null,null,null,null,null,null,null,null,null,null,null,"K_Concentration_STD","g/kg",0,1000,{"$f":"FALSE()","v":false},null,null,null,"LAI_STD","surface area of leaves/surface area of land",0,10,{"$f":"FALSE()","v":false}]
[null,null,null,null,null,null,null,null,null,null,null,null,null,null,null,null,null,null,null,null,null,null,null,null,null,null,null,null,null,null,null,null,null,null,null,null,null,null,null,null,null,null,null,null,null,null,null,null,null,null,null,null,null,null,null,null,null,null,null,null,null,null,null,null,null,null,null,null,null,null,null,null,null,null,null,null,null,null,null,null,null,null,null,null,null,null,null,null,null,null,null,null,null,null,null,null,null,null,null,null,null,null,null,null,null,null,null,null,null,null,null,null,null,null,null,null,null,null,null,null,null,"Nitrite","mg/kg",0,1000000,{"$f":"FALSE()","v":false},null,null,null,"POM_STD","g C/kg",0,1000,{"$f":"FALSE()","v":false},null,null,null,null,null,null,null,null,null,null,null,null,null,null,null,null,null,null,null,"Corn_Ear_Height_STD","cm",0,50000,{"$f":"FALSE()","v":false},null,null,null,null,null,null,null,null,null,null,null,"Neutral_Detergent_Fiber_STD","g/kg",0,1000,{"$f":"FALSE()","v":false},null,null,null,null,null,null,null,null,null,null,null,"Ca_Concentration_STD","g/kg",0,1000,{"$f":"FALSE()","v":false},null,null,null,"NPct_STD","% (N mass/biomass mass*100)",0,100,{"$f":"FALSE()","v":false}]
[null,null,null,null,null,null,null,null,null,null,null,null,null,null,null,null,null,null,null,null,null,null,null,null,null,null,null,null,null,null,null,null,null,null,null,null,null,null,null,null,null,null,null,null,null,null,null,null,null,null,null,null,null,null,null,null,null,null,null,null,null,null,null,null,null,null,null,null,null,null,null,null,null,null,null,null,null,null,null,null,null,null,null,null,null,null,null,null,null,null,null,null,null,null,null,null,null,null,null,null,null,null,null,null,null,null,null,null,null,null,null,null,null,null,null,null,null,null,null,null,null,"pH_STD","no units",0,14,"",null,null,null,"MoBio_Carbon_STD","mg C/kg",0,1000000,{"$f":"FALSE()","v":false},null,null,null,null,null,null,null,null,null,null,null,null,null,null,null,null,null,null,null,"Above_Ground_Biomass_STD","kg biomass/ha",0,50000,{"$f":"FALSE()","v":false},null,null,null,null,null,null,null,null,null,null,null,"Acid_Detergent_Fiber_STD","g/kg",0,1000,{"$f":"FALSE()","v":false},null,null,null,null,null,null,null,null,null,null,null,"Mg_Concentration_STD","g/kg",0,1000,{"$f":"FALSE()","v":false},null,null,null,"LigninPct_STD","% (lignin mass/biomass mass*100)",0,100,{"$f":"FALSE()","v":false}]
[null,null,null,null,null,null,null,null,null,null,null,null,null,null,null,null,null,null,null,null,null,null,null,null,null,null,null,null,null,null,null,null,null,null,null,null,null,null,null,null,null,null,null,null,null,null,null,null,null,null,null,null,null,null,null,null,null,null,null,null,null,null,null,null,null,null,null,null,null,null,null,null,null,null,null,null,null,null,null,null,null,null,null,null,null,null,null,null,null,null,null,null,null,null,null,null,null,null,null,null,null,null,null,null,null,null,null,null,null,null,null,null,null,null,null,null,null,null,null,null,null,"TSC_STD","g/kg",0,1000,{"$f":"FALSE()","v":false},null,null,null,"MoBio_Nitrogen_STD","mg N/kg",0,1000000,{"$f":"FALSE()","v":false},null,null,null,null,null,null,null,null,null,null,null,null,null,null,null,null,null,null,null,"Unit_Grain_Weight_STD","mg biomass",0,1000,{"$f":"FALSE()","v":false},null,null,null,null,null,null,null,null,null,null,null,"Acid_Soluble_Lignin_STD","g/kg",0,1000,{"$f":"FALSE()","v":false},null,null,null,null,null,null,null,null,null,null,null,"S_Concentration_STD","g/kg",0,1000,{"$f":"FALSE()","v":false},null,null,null,"GroundCoverPct_STD","% (surface area of vegetation/surface area of land)",0,100,{"$f":"FALSE()","v":false}]
[null,null,null,null,null,null,null,null,null,null,null,null,null,null,null,null,null,null,null,null,null,null,null,null,null,null,null,null,null,null,null,null,null,null,null,null,null,null,null,null,null,null,null,null,null,null,null,null,null,null,null,null,null,null,null,null,null,null,null,null,null,null,null,null,null,null,null,null,null,null,null,null,null,null,null,null,null,null,null,null,null,null,null,null,null,null,null,null,null,null,null,null,null,null,null,null,null,null,null,null,null,null,null,null,null,null,null,null,null,null,null,null,null,null,null,null,null,null,null,null,null,"TSN_STD","g/kg",0,1000,{"$f":"FALSE()","v":false},null,null,null,null,null,null,null,null,null,null,null,null,null,null,null,null,null,null,null,null,null,null,null,null,null,null,null,"Grain_DryMatter_STD","kg biomass/ha",0,50000,{"$f":"FALSE()","v":false},null,null,null,null,null,null,null,null,null,null,null,"Acid_Insoluble_Lignin _STD","g/kg",0,1000,{"$f":"FALSE()","v":false},null,null,null,null,null,null,null,null,null,null,null,"Na_Concentration_STD","g/kg",0,1000,{"$f":"FALSE()","v":false},null,null,null,"AGB_C_STD","kg C/ha",0,25000,{"$f":"FALSE()","v":false}]
[null,null,null,null,null,null,null,null,null,null,null,null,null,null,null,null,null,null,null,null,null,null,null,null,null,null,null,null,null,null,null,null,null,null,null,null,null,null,null,null,null,null,null,null,null,null,null,null,null,null,null,null,null,null,null,null,null,null,null,null,null,null,null,null,null,null,null,null,null,null,null,null,null,null,null,null,null,null,null,null,null,null,null,null,null,null,null,null,null,null,null,null,null,null,null,null,null,null,null,null,null,null,null,null,null,null,null,null,null,null,null,null,null,null,null,null,null,null,null,null,null,"Inorganic_C_STD","g/kg",0,1000,{"$f":"FALSE()","v":false},null,null,null,null,null,null,null,null,null,null,null,null,null,null,null,null,null,null,null,null,null,null,null,null,null,null,null,"Grain_MoisturePct_STD","%",0,100,{"$f":"FALSE()","v":false},null,null,null,null,null,null,null,null,null,null,null,"Crude_Protein_STD","g/kg",0,1000,{"$f":"FALSE()","v":false},null,null,null,null,null,null,null,null,null,null,null,"Cl_Concentration_STD","g/kg",0,1000,{"$f":"FALSE()","v":false},null,null,null,"AGB_N_STD","kg N/ha",0,2500,{"$f":"FALSE()","v":false}]
[null,null,null,null,null,null,null,null,null,null,null,null,null,null,null,null,null,null,null,null,null,null,null,null,null,null,null,null,null,null,null,null,null,null,null,null,null,null,null,null,null,null,null,null,null,null,null,null,null,null,null,null,null,null,null,null,null,null,null,null,null,null,null,null,null,null,null,null,null,null,null,null,null,null,null,null,null,null,null,null,null,null,null,null,null,null,null,null,null,null,null,null,null,null,null,null,null,null,null,null,null,null,null,null,null,null,null,null,null,null,null,null,null,null,null,null,null,null,null,null,null,"Organic_C_STD","g/kg",0,1000,{"$f":"FALSE()","v":false},null,null,null,null,null,null,null,null,null,null,null,null,null,null,null,null,null,null,null,null,null,null,null,null,null,null,null,"Grain_C_STD","kg C/ha",0,25000,{"$f":"FALSE()","v":false},null,null,null,null,null,null,null,null,null,null,null,"Non-fiber_Carbohydrates_STD","g/kg",0,1000,{"$f":"FALSE()","v":false},null,null,null,null,null,null,null,null,null,null,null,"Al_Concentration_STD","mg/kg",0,1000,{"$f":"FALSE()","v":false},null,null,null,"BGB_C_STD","kg C/ha",0,25000,{"$f":"FALSE()","v":false}]
[null,null,null,null,null,null,null,null,null,null,null,null,null,null,null,null,null,null,null,null,null,null,null,null,null,null,null,null,null,null,null,null,null,null,null,null,null,null,null,null,null,null,null,null,null,null,null,null,null,null,null,null,null,null,null,null,null,null,null,null,null,null,null,null,null,null,null,null,null,null,null,null,null,null,null,null,null,null,null,null,null,null,null,null,null,null,null,null,null,null,null,null,null,null,null,null,null,null,null,null,null,null,null,null,null,null,null,null,null,null,null,null,null,null,null,null,null,null,null,null,null,"Cmin_STD","g/kg",0,1000,{"$f":"FALSE()","v":false},null,null,null,null,null,null,null,null,null,null,null,null,null,null,null,null,null,null,null,null,null,null,null,null,null,null,null,"Grain_N_STD","kg N/ha",0,10000,{"$f":"FALSE()","v":false},null,null,null,null,null,null,null,null,null,null,null,"Ash_STD","g/kg",0,1000,{"$f":"FALSE()","v":false},null,null,null,null,null,null,null,null,null,null,null,"B_Concentration_STD","mg/kg",0,1000,{"$f":"FALSE()","v":false},null,null,null,"BGB_N_STD","kg N/ha",0,2500,{"$f":"FALSE()","v":false}]
[null,null,null,null,null,"",null,null,null,null,null,null,null,null,null,null,null,null,null,null,null,null,null,null,null,null,null,null,null,null,null,null,null,null,null,null,null,null,null,null,null,null,null,null,null,null,null,null,null,null,null,null,null,null,null,null,null,null,null,null,null,null,null,null,null,null,null,null,null,null,null,null,null,null,null,null,null,null,null,null,null,null,null,null,null,null,null,null,null,null,null,null,null,null,null,null,null,null,null,null,null,null,null,null,null,null,null,null,null,null,null,null,null,null,null,null,null,null,null,null,null,"CEC_STD","cmol/kg",0,null,{"$f":"FALSE()","v":false},null,null,null,null,null,null,null,null,null,null,null,null,null,null,null,null,null,null,null,null,null,null,null,null,null,null,null,"Harv_Res_DryMatter_STD","kg biomass/ha",0,5000,{"$f":"FALSE()","v":false},null,null,null,null,null,null,null,null,null,null,null,null,null,null,null,null,null,null,null,null,null,null,null,null,null,null,null,"Cu_Concentration_STD","mg/kg",0,1000,{"$f":"FALSE()","v":false},null,null,null,"ANPP_C_STD","kg C/ha/yr",0,25000,{"$f":"FALSE()","v":false}]
[null,null,null,null,null,"",null,null,null,null,null,null,null,null,null,null,null,null,null,null,null,null,null,null,null,null,null,null,null,null,null,null,null,null,null,null,null,null,null,null,null,null,null,null,null,null,null,null,null,null,null,null,null,null,null,null,null,null,null,null,null,null,null,null,null,null,null,null,null,null,null,null,null,null,null,null,null,null,null,null,null,null,null,null,null,null,null,null,null,null,null,null,null,null,null,null,null,null,null,null,null,null,null,null,null,null,null,null,null,null,null,null,null,null,null,null,null,null,null,null,null,"Electrical_Conductivity_STD","siemens/m",0,1,{"$f":"FALSE()","v":false},null,null,null,null,null,null,null,null,null,null,null,null,null,null,null,null,null,null,null,null,null,null,null,null,null,null,null,"HarvRes_MoisturePct_STD","%",0,100,{"$f":"FALSE()","v":false},null,null,null,null,null,null,null,null,null,null,null,null,null,null,null,null,null,null,null,null,null,null,null,null,null,null,null,"Fe_Concentration_STD","mg/kg",0,1000,{"$f":"FALSE()","v":false},null,null,null,"ANPP_N_STD","kg N/ha/yr",0,2500,{"$f":"FALSE()","v":false}]
[null,null,null,null,null,"",null,null,null,null,null,null,null,null,null,null,null,null,null,null,null,null,null,null,null,null,null,null,null,null,null,null,null,null,null,null,null,null,null,null,null,null,null,null,null,null,null,null,null,null,null,null,null,null,null,null,null,null,null,null,null,null,null,null,null,null,null,null,null,null,null,null,null,null,null,null,null,null,null,null,null,null,null,null,null,null,null,null,null,null,null,null,null,null,null,null,null,null,null,null,null,null,null,null,null,null,null,null,null,null,null,null,null,null,null,null,null,null,null,null,null,"Soluble_Organic_C_STD","mg C/kg",0,1000000,{"$f":"FALSE()","v":false},null,null,null,null,null,null,null,null,null,null,null,null,null,null,null,null,null,null,null,null,null,null,null,null,null,null,null,"Harv_Res_C_STD","kg C/ha",0,25000,{"$f":"FALSE()","v":false},null,null,null,null,null,null,null,null,null,null,null,null,null,null,null,null,null,null,null,null,null,null,null,null,null,null,null,"Mn_Concentration_STD","mg/kg",0,1000,{"$f":"FALSE()","v":false},null,null,null,"BNPP_C_STD","kg C/ha/yr",0,25000,{"$f":"FALSE()","v":false}]
[null,null,null,null,null,"",null,null,null,null,null,null,null,null,null,null,null,null,null,null,null,null,null,null,null,null,null,null,null,null,null,null,null,null,null,null,null,null,null,null,null,null,null,null,null,null,null,null,null,null,null,null,null,null,null,null,null,null,null,null,null,null,null,null,null,null,null,null,null,null,null,null,null,null,null,null,null,null,null,null,null,null,null,null,null,null,null,null,null,null,null,null,null,null,null,null,null,null,null,null,null,null,null,null,null,null,null,null,null,null,null,null,null,null,null,null,null,null,null,null,null,"Ammonium_NH4_STD","mg N/kg",0,1000000,{"$f":"FALSE()","v":false},null,null,null,null,null,null,null,null,null,null,null,null,null,null,null,null,null,null,null,null,null,null,null,null,null,null,null,"Harv_Res_N_STD","kg N/ha",0,25000,{"$f":"FALSE()","v":false},null,null,null,null,null,null,null,null,null,null,null,null,null,null,null,null,null,null,null,null,null,null,null,null,null,null,null,"Zn_Concentration_STD","mg/kg",0,1000,{"$f":"FALSE()","v":false},null,null,null,"BNPP_N_STD","kg N/ha/yr",0,2500,{"$f":"FALSE()","v":false}]
[null,null,null,null,null,"",null,null,null,null,null,null,null,null,null,null,null,null,null,null,null,null,null,null,null,null,null,null,null,null,null,null,null,null,null,null,null,null,null,null,null,null,null,null,null,null,null,null,null,null,null,null,null,null,null,null,null,null,null,null,null,null,null,null,null,null,null,null,null,null,null,null,null,null,null,null,null,null,null,null,null,null,null,null,null,null,null,null,null,null,null,null,null,null,null,null,null,null,null,null,null,null,null,null,null,null,null,null,null,null,null,null,null,null,null,null,null,null,null,null,null,"Nitrate_NO3_STD","mg N/kg",0,1000000,{"$f":"FALSE()","v":false},null,null,null,null,null,null,null,null,null,null,null,null,null,null,null,null,null,null,null,null,null,null,null,null,null,null,null,"nonHarv_Res_DryMatter_STD","kg N/ha",0,5000,{"$f":"FALSE()","v":false}]
[null,null,null,null,null,"",null,null,null,null,null,null,null,null,null,null,null,null,null,null,null,null,null,null,null,null,null,null,null,null,null,null,null,null,null,null,null,null,null,null,null,null,null,null,null,null,null,null,null,null,null,null,null,null,null,null,null,null,null,null,null,null,null,null,null,null,null,null,null,null,null,null,null,null,null,null,null,null,null,null,null,null,null,null,null,null,null,null,null,null,null,null,null,null,null,null,null,null,null,null,null,null,null,null,null,null,null,null,null,null,null,null,null,null,null,null,null,null,null,null,null,"Phosphorous_P_STD","mg P/kg",0,1000000,{"$f":"FALSE()","v":false},null,null,null,null,null,null,null,null,null,null,null,null,null,null,null,null,null,null,null,null,null,null,null,null,null,null,null,"nonHarv_Res_MoisturePct_STD","%",0,100,{"$f":"FALSE()","v":false}]
[null,null,null,null,null,"",null,null,null,null,null,null,null,null,null,null,null,null,null,null,null,null,null,null,null,null,null,null,null,null,null,null,null,null,null,null,null,null,null,null,null,null,null,null,null,null,null,null,null,null,null,null,null,null,null,null,null,null,null,null,null,null,null,null,null,null,null,null,null,null,null,null,null,null,null,null,null,null,null,null,null,null,null,null,null,null,null,null,null,null,null,null,null,null,null,null,null,null,null,null,null,null,null,null,null,null,null,null,null,null,null,null,null,null,null,null,null,null,null,null,null,"Potassium_K_STD","mg K/kg",0,1000000,{"$f":"FALSE()","v":false},null,null,null,null,null,null,null,null,null,null,null,null,null,null,null,null,null,null,null,null,null,null,null,null,null,null,null,"nonHarv_Res_C_STD","kg C/ha",0,25000,{"$f":"FALSE()","v":false}]
[null,null,null,null,null,"",null,null,null,null,null,null,null,null,null,null,null,null,null,null,null,null,null,null,null,null,null,null,null,null,null,null,null,null,null,null,null,null,null,null,null,null,null,null,null,null,null,null,null,null,null,null,null,null,null,null,null,null,null,null,null,null,null,null,null,null,null,null,null,null,null,null,null,null,null,null,null,null,null,null,null,null,null,null,null,null,null,null,null,null,null,null,null,null,null,null,null,null,null,null,null,null,null,null,null,null,null,null,null,null,null,null,null,null,null,null,null,null,null,null,null,"Ca_STD","mg Ca/kg",0,1000000,{"$f":"FALSE()","v":false},null,null,null,null,null,null,null,null,null,null,null,null,null,null,null,null,null,null,null,null,null,null,null,null,null,null,null,"nonHarv_Res_N_STD","kg N/ha",0,10000,{"$f":"FALSE()","v":false}]
[null,null,null,null,null,"",null,null,null,null,null,null,null,null,null,null,null,null,null,null,null,null,null,null,null,null,null,null,null,null,null,null,null,null,null,null,null,null,null,null,null,null,null,null,null,null,null,null,null,null,null,null,null,null,null,null,null,null,null,null,null,null,null,null,null,null,null,null,null,null,null,null,null,null,null,null,null,null,null,null,null,null,null,null,null,null,null,null,null,null,null,null,null,null,null,null,null,null,null,null,null,null,null,null,null,null,null,null,null,null,null,null,null,null,null,null,null,null,null,null,null,"Mg_STD","mg Mg/kg",0,1000000,{"$f":"FALSE()","v":false},null,null,null,null,null,null,null,null,null,null,null,null,null,null,null,null,null,null,null,null,null,null,null,null,null,null,null,"Root_DryMatter_STD","kg biomass/ha",0,50000,{"$f":"FALSE()","v":false}]
[null,null,null,null,null,"",null,null,null,null,null,null,null,null,null,null,null,null,null,null,null,null,null,null,null,null,null,null,null,null,null,null,null,null,null,null,null,null,null,null,null,null,null,null,null,null,null,null,null,null,null,null,null,null,null,null,null,null,null,null,null,null,null,null,null,null,null,null,null,null,null,null,null,null,null,null,null,null,null,null,null,null,null,null,null,null,null,null,null,null,null,null,null,null,null,null,null,null,null,null,null,null,null,null,null,null,null,null,null,null,null,null,null,null,null,null,null,null,null,null,null,"Cu_STD","mg Cu/kg",0,1000000,{"$f":"FALSE()","v":false},null,null,null,null,null,null,null,null,null,null,null,null,null,null,null,null,null,null,null,null,null,null,null,null,null,null,null,"Root_MoisturePct_STD","%",0,100,{"$f":"FALSE()","v":false}]
[null,null,null,null,null,"",null,null,null,null,null,null,null,null,null,null,null,null,null,null,null,null,null,null,null,null,null,null,null,null,null,null,null,null,null,null,null,null,null,null,null,null,null,null,null,null,null,null,null,null,null,null,null,null,null,null,null,null,null,null,null,null,null,null,null,null,null,null,null,null,null,null,null,null,null,null,null,null,null,null,null,null,null,null,null,null,null,null,null,null,null,null,null,null,null,null,null,null,null,null,null,null,null,null,null,null,null,null,null,null,null,null,null,null,null,null,null,null,null,null,null,"Fe_STD","mg Fe/kg",0,1000000,{"$f":"FALSE()","v":false},null,null,null,null,null,null,null,null,null,null,null,null,null,null,null,null,null,null,null,null,null,null,null,null,null,null,null,"Root_C_STD","kg C/ha",0,25000,{"$f":"FALSE()","v":false}]
[null,null,null,null,null,null,null,null,null,null,null,null,null,null,null,null,null,null,null,null,null,null,null,null,null,null,null,null,null,null,null,null,null,null,null,null,null,null,null,null,null,null,null,null,null,null,null,null,null,null,null,null,null,null,null,null,null,null,null,null,null,null,null,null,null,null,null,null,null,null,null,null,null,null,null,null,null,null,null,null,null,null,null,null,null,null,null,null,null,null,null,null,null,null,null,null,null,null,null,null,null,null,null,null,null,null,null,null,null,null,null,null,null,null,null,null,null,null,null,null,null,"Mn_STD","mg Mn/kg",0,1000000,{"$f":"FALSE()","v":false},null,null,null,null,null,null,null,null,null,null,null,null,null,null,null,null,null,null,null,null,null,null,null,null,null,null,null,"Root_N_STD","kg N/ha",0,10000,{"$f":"FALSE()","v":false}]
[null,null,null,null,null,null,null,null,null,null,null,null,null,null,null,null,null,null,null,null,null,null,null,null,null,null,null,null,null,null,null,null,null,null,null,null,null,null,null,null,null,null,null,null,null,null,null,null,null,null,null,null,null,null,null,null,null,null,null,null,null,null,null,null,null,null,null,null,null,null,null,null,null,null,null,null,null,null,null,null,null,null,null,null,null,null,null,null,null,null,null,null,null,null,null,null,null,null,null,null,null,null,null,null,null,null,null,null,null,null,null,null,null,null,null,null,null,null,null,null,null,"Zn_STD","mg Zn/kg",0,1000000,{"$f":"FALSE()","v":false}]
[null,null,null,null,null,null,null,null,null,null,null,null,null,null,null,null,null,null,null,null,null,null,null,null,null,null,null,null,null,null,null,null,null,null,null,null,null,null,null,null,null,null,null,null,null,null,null,null,null,null,null,null,null,null,null,null,null,null,null,null,null,null,null,null,null,null,null,null,null,null,null,null,null,null,null,null,null,null,null,null,null,null,null,null,null,null,null,null,null,null,null,null,null,null,null,null,null,null,null,null,null,null,null,null,null,null,null,null,null,null,null,null,null,null,null,null,null,null,null,null,null,"Potentially_Mineralizable_N_STD","g/kg",0,1000,{"$f":"FALSE()","v":false}]
[null,null,null,null,null,null,null,null,null,null,null,null,null,null,null,null,null,null,null,null,null,null,null,null,null,null,null,null,null,null,null,null,null,null,null,null,null,null,null,null,null,null,null,null,null,null,null,null,null,null,null,null,null,null,null,null,null,null,null,null,null,null,null,null,null,null,null,null,null,null,null,null,null,null,null,null,null,null,null,null,null,null,null,null,null,null,null,null,null,null,null,null,null,null,null,null,null,null,null,null,null,null,null,null,null,null,null,null,null,null,null,null,null,null,null,null,null,null,null,null,null,"Nitrite_STD","mg/kg",0,1000000,{"$f":"FALSE()","v":false}]

{"sheet":"DET_Import","index":35,"n_rows":10,"n_cols":3,"rows_kept":10,"cut":false,"hidden":false,"merged":[]}
[]
[null,null,"DET Import Wizard"]
[null,null,"Imports an older version (>=2.9) of the DET Template into the current version."]
[null,null,"To Use: Choose the file you wish to import from, click import and wait for process to complete (<10 minutes) "]
[null,null,"Please check pages where images have been pasted in, these sometimes do not copy over."]
[]
[]
[]
[]
[null,null,"Import Issues"]

{"sheet":"AutoCorrect","index":36,"n_rows":181,"n_cols":10,"rows_kept":181,"cut":false,"hidden":true,"merged":[]}
[]
["Active_Ingredient_Type",null,null,null,null,null,null,null,null,"Active_Ingredient_Type"]
[null,"Carfentrazone-ethyl; CAS No. 28639-02-1","Carfentrazone-ethyl. CAS No. 128639-02-1",null,null,null,null,null,null,"Amend_Placement"]
[null,"Atrazine; CAS No. 1912-24-9; CAS No. 1912-24-9","Atrazine; CAS No. 1912-24-9",null,null,null,null,null,null,"Amend_Type"]
[null,"Glyphosate; CAS No. 1071-83-6; CAS No. 1071-83-6","Glyphosate; CAS No. 1071-83-6",null,null,null,null,null,null,"Chamber_Placement"]
[null,"lambda-Cyhalothrin CAS No. 91465-08-6","Lambda-cyhalothrin; CAS No. 91465-08-6",null,null,null,null,null,null,"Cover_Crop"]
[null,"Lambda-Cyhalothrin;  CAS No. 91465-08-6","Lambda-cyhalothrin; CAS No. 91465-08-6",null,null,null,null,null,null,"Crop"]
[null,"Potasium salt of glyphosate; CAS No. 70901-12-1","Potassium salt of glyphosate; CAS No. 70901-12-1",null,null,null,null,null,null,"Crop_Rotation_Descriptor"]
[null,"S-Metachlor; CAS No. 87392-12-9","S-metolachlor; CAS No. 87392-12-9",null,null,null,null,null,null,"DNA"]
[null,"Glyphosate","Glyphosate; CAS No. 1071-83-6",null,null,null,null,null,null,"FAME"]
[]
["Amend_Placement",null,null,null,null,null,null,null,null,"Fertilizer_Amendment_Class"]
[null,"Broadcast Spray Applied","Broadcast Spray",null,null,null,null,null,null,"Growth_Stage"]
[null,"N A","N/A",null,null,null,null,null,null,"Harvested_Fraction"]
[null,null,null,null,null,null,null,null,null,"Irrigation"]
["Amend_Type",null,null,null,null,null,null,null,null,"Irrigation_Type"]
[null,"Cattle Manure","Beef Cattle Manure",null,null,null,null,null,null,"Landscape_Position"]
[null,"11-52-0 Mono Ammonium Phosphate","Mono Ammonium Phosphate 11-52-0",null,null,null,null,null,null,"Organic_Management"]
[null,"30-0-0 UAN","UAN 30-0-0",null,null,null,null,null,null,"Plant_Fraction"]
[null," 0-46-0 Triple Super Phosphate","Triple Super Phosphate 0-46-0",null,null,null,null,null,null,"PLFA"]
[null,"34-0-0-Ammonium Nitrate","Ammonium Nitrate 34-0-0",null,null,null,null,null,null,"Reference_type"]
[null,"34-0-0 Ammonium Nitrate","Ammonium Nitrate 34-0-0",null,null,null,null,null,null,"Research_Unit"]
[null,"46-0-0 Urea","Urea 46-0-0",null,null,null,null,null,null,"Residue_Removal"]
[null,"28-0-0 UAN","UAN 28-0-0",null,null,null,null,null,null,"Tillage_Descriptor"]
[null," 32-0-0 UAN","UAN 32-0-0",null,null,null,null,null,null,"Tillage_Event"]
[null,"N A","N/A",null,null,null,null,null,null,"Timing_Descriptor"]
[null,"Ammonium Sulphate","Ammonium Sulfate"]
[null,"28%UAN","UAN 28-0-0"]
[null,"0-10-20 Granular","0-10-20 (granular)"]
[null,"0-20-20 Granular","0-20-20 (granular)"]
[null,"10/34/0 +1 Zn","10-34-0-1(Zn)"]
[null,"18-9-18 Granular","18-9-18 (granular)"]
[null,"2-11-48 granular","2-11-48 (granular)"]
[null,"22% UAN + N fusion","UAN + N fusion 22-0-0"]
[null,"28% UAN","UAN 28-0-0"]
[null,"28% UAN AgrotainPlus","UAN AgrotainPlus 28-0-0"]
[null,"32% UAN (liquid)","UAN 32-0-0 (liquid)"]
[null,"44% ESN (polymer coated granules)","ESN 44-0-0 (polymer coated granules)"]
[null,"46% SuperU (granulated)","SuperU 46-0-0 (granular)"]
[null,"46% Urea (granulated)","Urea 46-0-0 (granular)"]
[null,"7-20-20 Granular","7-20-20 (granular)"]
[null,"82-0-0 Anhydrous Ammonia","Anhydrous Ammonia 82-0-0"]
[null,"8-30-30-20S","8-30-30-20(S)"]
[null,"Annhydrous Ammonia","Anhydrous Ammonia"]
[null,"Blend 19-9.5-0","19-9.5-0"]
[null,"Duration Type I (ESN) (45-0-0)","Duration Type I (ESN) 45-0-0"]
[null,"Liquid Dairy Pit Manure","Liquid Dairy Pit Manure (slurry)"]
[]
["Chamber_Placement"]
[null,"between_rows","Between rows"]
[]
["Cover_Crop"]
[null,"Turnip/Millet/Soybean/Pea/Sunflower/Triticale/Canola","Brassica rapa/Panicum miliaceum/Glycine max/Pisum sativum/Helianthus annuus/Triticum durum/Brassica napus (Turnip/Millet/Soybean/Pea/Sunflower/Triticale/Canola)"]
[null,"Rye","Secale cereale (Rye)"]
[null,"Black Oat_Rye","Avena strigosa/Secale cereale (Black Oat/Rye)"]
[null,"Legume","Leguminosae (Legume)"]
[null,"rye grass","Lolium sp (Ryegrass)"]
[]
["Crop"]
[null,"Wheat","Triticum aestivum (Wheat)"]
[null,"Corn","Zea mays (Corn)"]
[null,"Andropogon gerdardii (Big Bluestem)","Andropogon gerardii (Big Bluestem)"]
[null,"Bare"]
[]
["Crop_Rotation_Descriptor"]
[null,"Corn_Continuous","Corn"]
[null,"3 yr corn_1 yr soybean_4 yr alfalfa","Corn, Corn, Corn, Soybean, Alfalfa, Alfalfa, Alfalfa, Alfalfa"]
[null,"Barley, Continuous","Barley"]
[null,"Corn, Dry  Bean","Corn, Dry Bean"]
[null,"Spring wheat-fallow","Spring Wheat/Fallow"]
[null,"Spring wheat-safflower-Rye (fallow)","Spring Wheat/Safflower/Rye/Fallow"]
[null,"Sudangrass, Winter  Wheat, Winter  Wheat","Sudangrass, Winter Wheat, Winter Wheat"]
[]
["DNA"]
[null,"Yes ","Yes"]
[]
["FAME"]
[null,"Yes ","Yes"]
[]
["Fertilizer_Amendment_Class"]
[null,"Integrated","Integrated (Combination of organic and synthetic)"]
[]
["Growth_Stage"]
[null,"Combine_Harvest","Harvest"]
[null,"Post Harvest","Post-harvest"]
[null,"Combine Harvest","Harvest"]
[null,"Physiological Maturity","Maturity"]
[null,"Feekes 10.0","Feekes 10"]
[]
["Harvested_Fraction"]
[null,"All possible corn biomass","All aboveground biomass"]
[null,"Grain+Cobs","Grain, Cobs"]
[null,"Around 50% removal","50% removal of aboveground biomass"]
[null,"All possible biomass","All aboveground biomass"]
[null,"Cotton Lint","Lint"]
[null,"Nothing","None"]
[null,"Shoot","All aboveground biomass"]
[]
["Irrigation"]
[null,"Yes ","Yes"]
[]
["Irrigation_Type"]
[null,"Linear Move","Linear Move Sprinkler"]
[null,"Lateral-move Sprinkler","Lateral Move Sprinkler"]
[]
["Landscape_Position"]
[null,"side_slope","Sideslope"]
[null,"summit_slope","Summit"]
[null,"toe_slope","Toeslope"]
[null,"summit","Summit"]
[null,"Side slope","Sideslope"]
[null,"Toe Slope","Toeslope"]
[null,"Summit Slope","Summit"]
[]
["Organic_Management"]
[null,"None","No"]
[]
["Plant_Fraction"]
[null,"Stalks + leaves","Stems and leaves"]
[null,"Biomass without grain","Stover (all non-grain biomass)"]
[null,"Below_earshank","Below earshank"]
[null,"Nongrain biomass","Stover (all non-grain biomass)"]
[null,"Biomass not grain, not cobs","Stems and leaves"]
[null,"leaf","Leaves"]
[null,"stalk","Stems"]
[null,"cob and grain","Cobs and grain"]
[null,"Above_earshank_plus_cob","Above earshank and cobs"]
[null,"Stover Residue","Stover (all non-grain biomass)"]
[null,"Stover","Stover (all non-grain biomass)"]
[null,"R6 biomass sampling","Aboveground biomass"]
[null,"stalk and leaves","Stems and leaves"]
[null,"stem","Stems"]
[]
["Planting_Method"]
[null,"twin-row","Twin Row"]
[]
["PLFA"]
[null,"Yes ","Yes"]
[]
["Reference_type"]
[null,"Journal article","Journal article about data"]
[]
["Research_Unit"]
[null,"Akron, CO","Akron, CO CPRM"]
[null,"Auburn, AL","Auburn, AL SDR"]
[null,"Mandan, ND","Mandan, ND NRMR"]
[null,"University Park, PA","University Park, PA PSWMR"]
[null,"Morris, MN","Morris, MN SMR"]
[null,"Brookings, SD","Brookings, SD ICSR"]
[null,"Houma, LA","Houma, LA SR"]
[null,"St. Paul, MN Lamberton","St. Paul, MN SWMR"]
[null,"St. Paul, MN Northfield","St. Paul, MN SWMR"]
[null,"St. Paul, MN Rosemount","St. Paul, MN SWMR"]
[null,"Lincoln, NE","Lincoln, NE AMR"]
[null,"Florence, SC","Florence, SC CPSWPRC"]
[null,"West Lafayette, IN","West Lafayette, IN NSER"]
[null,"Bowling Green, KY","Bowling Green, KY FAESR"]
[null,"CPCRC","Pendleton, OR CPCRC"]
[null,"Lubbock, TX","Lubbock, TX WEWCR"]
[null,"Morris, MN - 018","Morris, MN SMR"]
[null,"Sidney, MT","Sidney, MT ASRU"]
[null,"St. Paul, MN SWU","St. Paul, MN SWMR"]
[]
["Residue_Removal"]
[null,"Cob","Partial"]
[]
["Tillage_Descriptor"]
[null,"No_Till","No Till"]
[]
["Tillage_Event"]
[null,"Chisel","Chisel (or Chisel Plow)"]
[null,"Field Cultivator","Field Cultivator (between row weed control)"]
[null,"Chisel Plow","Chisel (or Chisel Plow)"]
[null,"Field cultivate","Field Cultivator (between row weed control)"]
[null,"Harrow","Harrow (raking event)"]
[null,"Pre-plant disk","Disk"]
[null,"Sweep Till","Sweep Till (for weed control prior to planting)"]
[null,"Cultivator","Field Cultivator (between row weed control)"]
[]
["Timing_Descriptor"]
[null,"post harvest  (within 2 weeks of harvest)","Post harvest (within 2 weeks of harvest)"]